Transaction Date,Local Authority Department,BENEFICIARY,Purpose,Amount,Non Recoverable,Merchant Category
01-01-2022,Dedicated Schools Budget,Personal Information - Redacted,Private Contractors Payment - Other,4270,0,VENDOR
01-01-2022,Children and Young People,Yellowstone Healthcare Ltd,Private Contractors Payment - Other,540,0,COMMERCIAL SUPPLIER
01-01-2022,Children and Young People,Yellowstone Healthcare Ltd,Private Contractors Payment - Other,405,0,COMMERCIAL SUPPLIER
01-01-2022,Housing Revenue Account,CTR Triangle Ltd,Professional Services - General,81180,0,VENDOR
01-01-2022,oneSource,Daisy Corporate Services Trading Ltd,Land Line Telephone Costs,5496.35,0,COMMERCIAL SUPPLIER
01-01-2022,oneSource,Daisy Corporate Services Trading Ltd,Land Line Telephone Costs,2045.83,0,COMMERCIAL SUPPLIER
01-01-2022,Housing Revenue Account,Daisy Corporate Services Trading Ltd,Cyclical/Planned Maintenance - Mechanical And Electrical,294.14,0,COMMERCIAL SUPPLIER
01-01-2022,oneSource,Daisy Corporate Services Trading Ltd,Land Line Telephone Costs,19390.84,0,COMMERCIAL SUPPLIER
01-01-2022,Housing Revenue Account,Daisy Corporate Services Trading Ltd,Land Line Telephone Costs,355.36,0,COMMERCIAL SUPPLIER
01-01-2022,Housing Revenue Account,Daisy Corporate Services Trading Ltd,Land Line Telephone Costs,2358.76,0,COMMERCIAL SUPPLIER
01-01-2022,oneSource,Bdi Securities,Security Services (Excluding Premises),911.25,0,COMMERCIAL SUPPLIER
01-01-2022,oneSource,Bdi Securities,Security Services (Excluding Premises),378,0,COMMERCIAL SUPPLIER
01-01-2022,Housing Revenue Account,The Lock Father,Security Services (Excluding Premises),214.05,0,COMMERCIAL SUPPLIER
01-01-2022,Housing Revenue Account,The Lock Father,Security Services (Excluding Premises),565.95,0,COMMERCIAL SUPPLIER
01-01-2022,"People, Policy and Performance",Titan Containers A/S,Storage And Archiving,286.75,0,VENDOR
01-01-2022,Adults & Health,Barts Health NHS Trust,Professional Services - General,178467,0,NHS BODIES
01-01-2022,Inclusive Economy & Housing,Thomson Reuters,Private Contractors Payment - Other,1650,0,COMMERCIAL SUPPLIER
01-01-2022,Housing Revenue Account,Just Housing (UK) Ltd,Private Contractors Payment - Other,2000,0,COMMERCIAL SUPPLIER
01-01-2022,"People, Policy and Performance",Novar Systems Ltd,Health And Safety Works,3749.44,0,NON COMMERCIAL SUPPLIER
01-01-2022,Environment and Sustainable Transport,Portakabin Ltd,Premises Hire - Facilities,3067.37,0,COMMERCIAL SUPPLIER
01-01-2022,Adults & Health,DGT Services Ltd,"Purchase - Equipment, Furniture And Materials",15750,0,COMMERCIAL SUPPLIER
01-01-2022,Adults & Health,DGT Services Ltd,"Purchase - Equipment, Furniture And Materials",23750,0,COMMERCIAL SUPPLIER
01-01-2022,Adults & Health,Blade Security UK,Security Of Premises,14580,0,COMMERCIAL SUPPLIER
01-01-2022,Brighter Futures Director,Club Manager Ltd,Ict Software,400,0,COMMERCIAL SUPPLIER
01-01-2022,Environment and Sustainable Transport,London Hire Ltd,Vehicle Hire,1250,0,COMMERCIAL SUPPLIER
01-01-2022,Environment and Sustainable Transport,London Hire Ltd,Vehicle Hire,1250,0,COMMERCIAL SUPPLIER
01-01-2022,Environment and Sustainable Transport,London Hire Ltd,Vehicle Hire,531.34,0,COMMERCIAL SUPPLIER
01-01-2022,Environment and Sustainable Transport,London Hire Ltd,Vehicle Hire,1039,0,COMMERCIAL SUPPLIER
01-01-2022,Environment and Sustainable Transport,London Hire Ltd,Vehicle Hire,1039,0,COMMERCIAL SUPPLIER
01-01-2022,Environment and Sustainable Transport,London Hire Ltd,Vehicle Hire,531.34,0,COMMERCIAL SUPPLIER
01-01-2022,Adults & Health,London Black Women's Project,Private Contractors Payment - Other,16494,0,VENDOR
01-01-2022,Environment and Sustainable Transport,National Association of Memorial Masons,Bereavement Services Equipment,220,0,COMMERCIAL SUPPLIER
01-01-2022,Dedicated Schools Budget,Personal Information - Redacted,Professional Services - General,34498,0,NON COMMERCIAL SUPPLIER
02-01-2022,"People, Policy and Performance",Personal Information - Redacted,Consultancy Fees,426.5,0,VENDOR
02-01-2022,Environment and Sustainable Transport,DD Mobile Auto Electrical,"Purchase - Equipment, Furniture And Materials",248,0,COMMERCIAL SUPPLIER
02-01-2022,oneSource - Non Shared,The Lock Father,Security Services (Excluding Premises),480,0,COMMERCIAL SUPPLIER
02-01-2022,Children and Young People,Personal Information - Redacted,Payment To Private Sector Landlords (Psl),650,0,INDIVIDUALS
02-01-2022,"People, Policy and Performance",hbinfo Ltd,Business Rates Payable,695,0,COMMERCIAL SUPPLIER
02-01-2022,RMS,Travis Perkins Trading Company Ltd,"Purchase - Equipment, Furniture And Materials",11941.37,0,COMMERCIAL SUPPLIER
02-01-2022,RMS,Travis Perkins Trading Company Ltd,"Purchase - Equipment, Furniture And Materials",4178.31,0,COMMERCIAL SUPPLIER
02-01-2022,RMS,Travis Perkins Trading Company Ltd,"Purchase - Equipment, Furniture And Materials",74141.35,0,COMMERCIAL SUPPLIER
02-01-2022,RMS,Travis Perkins Trading Company Ltd,"Purchase - Equipment, Furniture And Materials",49676.59,0,COMMERCIAL SUPPLIER
02-01-2022,RMS,Travis Perkins Trading Company Ltd,"Purchase - Equipment, Furniture And Materials",17006.92,0,COMMERCIAL SUPPLIER
02-01-2022,RMS,Travis Perkins Trading Company Ltd,"Purchase - Equipment, Furniture And Materials",116295.39,0,COMMERCIAL SUPPLIER
02-01-2022,RMS,Travis Perkins Trading Company Ltd,"Purchase - Equipment, Furniture And Materials",8177.79,0,COMMERCIAL SUPPLIER
02-01-2022,RMS,Travis Perkins Trading Company Ltd,"Purchase - Equipment, Furniture And Materials",13269.66,0,COMMERCIAL SUPPLIER
02-01-2022,RMS,Travis Perkins Trading Company Ltd,"Purchase - Equipment, Furniture And Materials",240,0,COMMERCIAL SUPPLIER
02-01-2022,RMS,Travis Perkins Trading Company Ltd,"Purchase - Equipment, Furniture And Materials",10131.07,0,COMMERCIAL SUPPLIER
02-01-2022,RMS,Travis Perkins Trading Company Ltd,"Purchase - Equipment, Furniture And Materials",10718.38,0,COMMERCIAL SUPPLIER
02-01-2022,RMS,Travis Perkins Trading Company Ltd,"Purchase - Equipment, Furniture And Materials",5.94,0,COMMERCIAL SUPPLIER
02-01-2022,RMS,Travis Perkins Trading Company Ltd,"Purchase - Equipment, Furniture And Materials",595.14,0,COMMERCIAL SUPPLIER
03-01-2022,Environment and Sustainable Transport,Danfo (Uk) Limited,Cleaning Services,2482.41,0,VENDOR
03-01-2022,RMS,AMA Security Ltd,Private Contractors Payment - Other,214,0,COMMERCIAL SUPPLIER
03-01-2022,RMS,AMA Security Ltd,Private Contractors Payment - Other,250,0,COMMERCIAL SUPPLIER
03-01-2022,RMS,AMA Security Ltd,Private Contractors Payment - Other,352,0,COMMERCIAL SUPPLIER
03-01-2022,"People, Policy and Performance",Askews and Holts Library Services Ltd,"Books, Publications And Resources",927.81,0,COMMERCIAL SUPPLIER
03-01-2022,"People, Policy and Performance",Askews and Holts Library Services Ltd,"Books, Publications And Resources",1467.24,0,COMMERCIAL SUPPLIER
03-01-2022,"People, Policy and Performance",Askews and Holts Library Services Ltd,"Books, Publications And Resources",712.24,0,COMMERCIAL SUPPLIER
03-01-2022,"People, Policy and Performance",Askews and Holts Library Services Ltd,"Books, Publications And Resources",1039.2,0,COMMERCIAL SUPPLIER
03-01-2022,Adults & Health,Deafblind UK.,Daycare - Private Contractors Payment,246,0,COMMERCIAL SUPPLIER
03-01-2022,Adults & Health,Deafblind UK.,Daycare - Private Contractors Payment,246.01,0,COMMERCIAL SUPPLIER
03-01-2022,Adults & Health,Deafblind UK.,Daycare - Private Contractors Payment,246,0,COMMERCIAL SUPPLIER
03-01-2022,Adults & Health,Deafblind UK.,Daycare - Private Contractors Payment,246,0,COMMERCIAL SUPPLIER
03-01-2022,Adults & Health,Deafblind UK.,Daycare - Private Contractors Payment,338.27,0,COMMERCIAL SUPPLIER
03-01-2022,Adults & Health,Deafblind UK.,Daycare - Private Contractors Payment,338.25,0,COMMERCIAL SUPPLIER
03-01-2022,Adults & Health,Deafblind UK.,Daycare - Private Contractors Payment,338.25,0,COMMERCIAL SUPPLIER
03-01-2022,Adults & Health,Deafblind UK.,Daycare - Private Contractors Payment,102.5,0,COMMERCIAL SUPPLIER
03-01-2022,Adults & Health,Deafblind UK.,Daycare - Private Contractors Payment,102.5,0,COMMERCIAL SUPPLIER
03-01-2022,Adults & Health,Deafblind UK.,Daycare - Private Contractors Payment,56.39,0,COMMERCIAL SUPPLIER
03-01-2022,Children and Young People,Shining Stars Fostering Agency Ltd,Fostering Agency Placements - Private Contractors Payment,775,0,COMMERCIAL SUPPLIER
03-01-2022,Children and Young People,Shining Stars Fostering Agency Ltd,Fostering Agency Placements - Private Contractors Payment,996.34,0,COMMERCIAL SUPPLIER
03-01-2022,Children and Young People,Shining Stars Fostering Agency Ltd,Fostering Agency Placements - Private Contractors Payment,775,0,COMMERCIAL SUPPLIER
03-01-2022,Children and Young People,Shining Stars Fostering Agency Ltd,Fostering Agency Placements - Private Contractors Payment,775,0,COMMERCIAL SUPPLIER
03-01-2022,Children and Young People,Sayers (Car Hire),Client Transport,1986.5,0,VENDOR
03-01-2022,Children and Young People,Sayers (Car Hire),Client Transport,797,0,VENDOR
03-01-2022,Children and Young People,Sayers (Car Hire),Client Transport,1050,0,VENDOR
03-01-2022,Children and Young People,Sayers (Car Hire),Client Transport,1097,0,VENDOR
03-01-2022,Children and Young People,Sayers (Car Hire),Client Transport,440,0,VENDOR
03-01-2022,Children and Young People,Sayers (Car Hire),Client Transport,410,0,VENDOR
03-01-2022,Children and Young People,Sayers (Car Hire),Client Transport,3150,0,VENDOR
03-01-2022,Children and Young People,Sayers (Car Hire),Client Transport,256,0,VENDOR
03-01-2022,Children and Young People,Sayers (Car Hire),Client Transport,1580,0,VENDOR
03-01-2022,Children and Young People,Sayers (Car Hire),Client Transport,15030.5,0,VENDOR
03-01-2022,Adults & Health,Sayers (Car Hire),Payments To Voluntary Sector,210,0,VENDOR
03-01-2022,Adults & Health,Sayers (Car Hire),Payments To Voluntary Sector,70,0,VENDOR
03-01-2022,Adults & Health,Sayers (Car Hire),Payments To Voluntary Sector,120,0,VENDOR
03-01-2022,Adults & Health,Sayers (Car Hire),Payments To Voluntary Sector,100,0,VENDOR
03-01-2022,Adults & Health,Sayers (Car Hire),Payments To Voluntary Sector,80,0,VENDOR
03-01-2022,Children and Young People,Sayers (Car Hire),Client Transport,12917,0,VENDOR
03-01-2022,Children and Young People,Sayers (Car Hire),Client Transport,360,0,VENDOR
03-01-2022,Children and Young People,Sayers (Car Hire),Client Transport,1036,0,VENDOR
03-01-2022,Children and Young People,Sayers (Car Hire),Client Transport,741,0,VENDOR
03-01-2022,Children and Young People,Sayers (Car Hire),Client Transport,2980,0,VENDOR
03-01-2022,Children and Young People,Sayers (Car Hire),Client Transport,1098,0,VENDOR
03-01-2022,Children and Young People,Sayers (Car Hire),Client Transport,270,0,VENDOR
03-01-2022,Children and Young People,Sayers (Car Hire),Client Transport,550,0,VENDOR
03-01-2022,Children and Young People,Sayers (Car Hire),Client Transport,733,0,VENDOR
03-01-2022,Children and Young People,Sayers (Car Hire),Client Transport,290,0,VENDOR
03-01-2022,Children and Young People,Sayers (Car Hire),Client Transport,1300,0,VENDOR
03-01-2022,Children and Young People,Sayers (Car Hire),Client Transport,1848.5,0,VENDOR
03-01-2022,oneSource,Royal Mail Group Plc,Postage And Courier Services,438.11,0,COMMERCIAL SUPPLIER
03-01-2022,oneSource,Royal Mail Group Plc,Postage And Courier Services,5719.8,0,COMMERCIAL SUPPLIER
03-01-2022,Adults & Health,Reed Employment Plc,Daycare - Private Contractors Payment,121.95,0,COMMERCIAL SUPPLIER
03-01-2022,Adults & Health,Reed Employment Plc,Daycare - Private Contractors Payment,187.2,0,COMMERCIAL SUPPLIER
03-01-2022,Adults & Health,Reed Employment Plc,Daycare - Private Contractors Payment,187.2,0,COMMERCIAL SUPPLIER
03-01-2022,Adults & Health,Reed Employment Plc,Daycare - Private Contractors Payment,187.2,0,COMMERCIAL SUPPLIER
03-01-2022,Adults & Health,Reed Employment Plc,Daycare - Private Contractors Payment,291.84,0,COMMERCIAL SUPPLIER
03-01-2022,Adults & Health,Reed Employment Plc,Daycare - Private Contractors Payment,299.52,0,COMMERCIAL SUPPLIER
03-01-2022,Adults & Health,Reed Employment Plc,Daycare - Private Contractors Payment,299.52,0,COMMERCIAL SUPPLIER
03-01-2022,Adults & Health,Reed Employment Plc,Daycare - Private Contractors Payment,299.52,0,COMMERCIAL SUPPLIER
03-01-2022,Adults & Health,Reed Employment Plc,Daycare - Private Contractors Payment,89.52,0,COMMERCIAL SUPPLIER
03-01-2022,Adults & Health,Reed Employment Plc,Daycare - Private Contractors Payment,542.88,0,COMMERCIAL SUPPLIER
03-01-2022,Adults & Health,Newham Health Collaborative Ltd,Payment To Health Authorities,22238.5,0,NON COMMERCIAL SUPPLIER
03-01-2022,Adults & Health,Newham Health Collaborative Ltd,Payment To Health Authorities,2305.8,0,NON COMMERCIAL SUPPLIER
03-01-2022,"People, Policy and Performance",Personal Information - Redacted,Professional Services - General,44.2,0,Employee
03-01-2022,"People, Policy and Performance",Personal Information - Redacted,Photocopying,-2.92,0,Employee
03-01-2022,"People, Policy and Performance",Personal Information - Redacted,Photocopying,12.49,0,Employee
03-01-2022,"People, Policy and Performance",Personal Information - Redacted,Photocopying,65.4,0,Employee
03-01-2022,Children and Young People,Personal Information - Redacted,Ict Software,69,0,Employee
03-01-2022,Children and Young People,Personal Information - Redacted,Ict Software,6.66,0,Employee
03-01-2022,Adults & Health,Perfect Community Care,Daycare - Private Contractors Payment,180,0,COMMERCIAL SUPPLIER
03-01-2022,Adults & Health,Perfect Community Care,Daycare - Private Contractors Payment,180,0,COMMERCIAL SUPPLIER
03-01-2022,Adults & Health,Perfect Community Care,Daycare - Private Contractors Payment,180,0,COMMERCIAL SUPPLIER
03-01-2022,Adults & Health,Perfect Community Care,Daycare - Private Contractors Payment,180,0,COMMERCIAL SUPPLIER
03-01-2022,Adults & Health,Perfect Community Care,Daycare - Private Contractors Payment,180,0,COMMERCIAL SUPPLIER
03-01-2022,Adults & Health,Perfect Community Care,Daycare - Private Contractors Payment,180,0,COMMERCIAL SUPPLIER
03-01-2022,Adults & Health,Perfect Community Care,Daycare - Private Contractors Payment,180,0,COMMERCIAL SUPPLIER
03-01-2022,Adults & Health,Perfect Community Care,Daycare - Private Contractors Payment,180,0,COMMERCIAL SUPPLIER
03-01-2022,Adults & Health,DMP Healthcare (Heatherbrook) Ltd,Residential Care Income,-152.2,0,NON COMMERCIAL SUPPLIER
03-01-2022,Adults & Health,DMP Healthcare (Heatherbrook) Ltd,Nursing Homes - Private Contractors Payment,741.84,0,NON COMMERCIAL SUPPLIER
03-01-2022,Adults & Health,DMP Healthcare (Heatherbrook) Ltd,Residential Care Income,-152.2,0,NON COMMERCIAL SUPPLIER
03-01-2022,Adults & Health,DMP Healthcare (Heatherbrook) Ltd,Nursing Homes - Private Contractors Payment,741.84,0,NON COMMERCIAL SUPPLIER
03-01-2022,Adults & Health,DMP Healthcare (Heatherbrook) Ltd,Nursing Homes - Private Contractors Payment,741.84,0,NON COMMERCIAL SUPPLIER
03-01-2022,Adults & Health,DMP Healthcare (Heatherbrook) Ltd,Residential Care Income,-152.2,0,NON COMMERCIAL SUPPLIER
03-01-2022,Adults & Health,DMP Healthcare (Heatherbrook) Ltd,Nursing Homes - Private Contractors Payment,741.84,0,NON COMMERCIAL SUPPLIER
03-01-2022,Adults & Health,DMP Healthcare (Heatherbrook) Ltd,Residential Care Income,-152.2,0,NON COMMERCIAL SUPPLIER
03-01-2022,Adults & Health,Hillsview Wood House- Eastwood House,Residential Placements - Private Contractors Payment,700,0,COMMERCIAL SUPPLIER
03-01-2022,Adults & Health,Hillsview Wood House- Eastwood House,Residential Placements - Private Contractors Payment,700,0,COMMERCIAL SUPPLIER
03-01-2022,Adults & Health,Hillsview Wood House- Eastwood House,Residential Placements - Private Contractors Payment,700,0,COMMERCIAL SUPPLIER
03-01-2022,Adults & Health,Hillsview Wood House- Eastwood House,Residential Placements - Private Contractors Payment,700,0,COMMERCIAL SUPPLIER
03-01-2022,Adults & Health,Home From Home Care Ltd,Residential Placements - Private Contractors Payment,4135.27,0,NON COMMERCIAL SUPPLIER
03-01-2022,Adults & Health,Home From Home Care Ltd,Residential Placements - Private Contractors Payment,4135.27,0,NON COMMERCIAL SUPPLIER
03-01-2022,Adults & Health,Home From Home Care Ltd,Residential Placements - Private Contractors Payment,4135.27,0,NON COMMERCIAL SUPPLIER
03-01-2022,Adults & Health,Home From Home Care Ltd,Residential Placements - Private Contractors Payment,4135.27,0,NON COMMERCIAL SUPPLIER
03-01-2022,Adults & Health,Eastern County Care,Residential Placements - Private Contractors Payment,1503.71,0,COMMERCIAL SUPPLIER
03-01-2022,Adults & Health,Eastern County Care,Residential Placements - Private Contractors Payment,1503.71,0,COMMERCIAL SUPPLIER
03-01-2022,Adults & Health,Eastern County Care,Residential Placements - Private Contractors Payment,1503.71,0,COMMERCIAL SUPPLIER
03-01-2022,Adults & Health,Eastern County Care,Residential Placements - Private Contractors Payment,1503.71,0,COMMERCIAL SUPPLIER
03-01-2022,Adults & Health,Merevale House Residential Home,Residential Placements - Private Contractors Payment,1500,0,VENDOR
03-01-2022,Adults & Health,Merevale House Residential Home,Residential Placements - Private Contractors Payment,1500,0,VENDOR
03-01-2022,Adults & Health,Merevale House Residential Home,Residential Placements - Private Contractors Payment,1500,0,VENDOR
03-01-2022,Adults & Health,Merevale House Residential Home,Residential Placements - Private Contractors Payment,1500,0,VENDOR
03-01-2022,Adults & Health,Lukka Care Homes Limited,Nursing Homes - Private Contractors Payment,684.44,0,VENDOR
03-01-2022,Adults & Health,Lukka Care Homes Limited,Residential Care Income,-152.2,0,VENDOR
03-01-2022,Adults & Health,Lukka Care Homes Limited,Nursing Homes - Private Contractors Payment,684.44,0,VENDOR
03-01-2022,Adults & Health,Lukka Care Homes Limited,Residential Care Income,-152.2,0,VENDOR
03-01-2022,Adults & Health,Lukka Care Homes Limited,Nursing Homes - Private Contractors Payment,684.44,0,VENDOR
03-01-2022,Adults & Health,Lukka Care Homes Limited,Residential Care Income,-152.2,0,VENDOR
03-01-2022,Adults & Health,Lukka Care Homes Limited,Residential Care Income,-152.2,0,VENDOR
03-01-2022,Adults & Health,Lukka Care Homes Limited,Nursing Homes - Private Contractors Payment,684.44,0,VENDOR
03-01-2022,Adults & Health,Jem Care Home Services Ltd,Residential Care Income,-174.88,0,COMMERCIAL SUPPLIER
03-01-2022,Adults & Health,Jem Care Home Services Ltd,Nursing Homes - Private Contractors Payment,650,0,COMMERCIAL SUPPLIER
03-01-2022,Adults & Health,Jem Care Home Services Ltd,Residential Care Income,-174.88,0,COMMERCIAL SUPPLIER
03-01-2022,Adults & Health,Jem Care Home Services Ltd,Nursing Homes - Private Contractors Payment,650,0,COMMERCIAL SUPPLIER
03-01-2022,Adults & Health,Jem Care Home Services Ltd,Nursing Homes - Private Contractors Payment,650,0,COMMERCIAL SUPPLIER
03-01-2022,Adults & Health,Jem Care Home Services Ltd,Residential Care Income,-174.88,0,COMMERCIAL SUPPLIER
03-01-2022,Adults & Health,Jem Care Home Services Ltd,Nursing Homes - Private Contractors Payment,650,0,COMMERCIAL SUPPLIER
03-01-2022,Adults & Health,Jem Care Home Services Ltd,Residential Care Income,-174.88,0,COMMERCIAL SUPPLIER
03-01-2022,Adults & Health,Hillsview Wood House- Eastwood House,Residential Placements - Private Contractors Payment,700,0,COMMERCIAL SUPPLIER
03-01-2022,Adults & Health,Hillsview Wood House- Eastwood House,Residential Placements - Private Contractors Payment,700,0,COMMERCIAL SUPPLIER
03-01-2022,Adults & Health,Hillsview Wood House- Eastwood House,Residential Placements - Private Contractors Payment,700,0,COMMERCIAL SUPPLIER
03-01-2022,Adults & Health,Hillsview Wood House- Eastwood House,Residential Placements - Private Contractors Payment,700,0,COMMERCIAL SUPPLIER
03-01-2022,Adults & Health,Hillsview Wood House- Eastwood House,Residential Placements - Private Contractors Payment,700,0,COMMERCIAL SUPPLIER
03-01-2022,Adults & Health,Hillsview Wood House- Eastwood House,Residential Placements - Private Contractors Payment,700,0,COMMERCIAL SUPPLIER
03-01-2022,Adults & Health,Hillsview Wood House- Eastwood House,Residential Placements - Private Contractors Payment,700,0,COMMERCIAL SUPPLIER
03-01-2022,Adults & Health,Hillsview Wood House- Eastwood House,Residential Placements - Private Contractors Payment,700,0,COMMERCIAL SUPPLIER
03-01-2022,Adults & Health,Gable Court NH Ltd,Nursing Homes - Private Contractors Payment,738,0,COMMERCIAL SUPPLIER
03-01-2022,Adults & Health,Gable Court NH Ltd,Nursing Homes - Private Contractors Payment,738,0,COMMERCIAL SUPPLIER
03-01-2022,Adults & Health,Gable Court NH Ltd,Nursing Homes - Private Contractors Payment,738,0,COMMERCIAL SUPPLIER
03-01-2022,Adults & Health,Gable Court NH Ltd,Nursing Homes - Private Contractors Payment,738,0,COMMERCIAL SUPPLIER
03-01-2022,Adults & Health,Airthrie Homes,Residential Care Income,-86.99,0,VENDOR
03-01-2022,Adults & Health,Airthrie Homes,Residential Placements - Private Contractors Payment,1165.32,0,VENDOR
03-01-2022,Adults & Health,Airthrie Homes,Residential Placements - Private Contractors Payment,1165.32,0,VENDOR
03-01-2022,Adults & Health,Airthrie Homes,Residential Care Income,-86.99,0,VENDOR
03-01-2022,Adults & Health,Airthrie Homes,Residential Placements - Private Contractors Payment,1165.32,0,VENDOR
03-01-2022,Adults & Health,Airthrie Homes,Residential Care Income,-86.99,0,VENDOR
03-01-2022,Adults & Health,Airthrie Homes,Residential Care Income,-86.99,0,VENDOR
03-01-2022,Adults & Health,Airthrie Homes,Residential Placements - Private Contractors Payment,1165.32,0,VENDOR
03-01-2022,Adults & Health,L & Q Living,Residential Placements - Private Contractors Payment,929,0,VENDOR
03-01-2022,Adults & Health,L & Q Living,Residential Placements - Private Contractors Payment,929,0,VENDOR
03-01-2022,Adults & Health,L & Q Living,Residential Placements - Private Contractors Payment,929,0,VENDOR
03-01-2022,Adults & Health,L & Q Living,Residential Placements - Private Contractors Payment,929,0,VENDOR
03-01-2022,Adults & Health,Cambridge Nursing Home,Nursing Homes - Private Contractors Payment,700,0,VENDOR
03-01-2022,Adults & Health,Cambridge Nursing Home,Residential Care Income,-86.75,0,VENDOR
03-01-2022,Adults & Health,Cambridge Nursing Home,Residential Care Income,-86.75,0,VENDOR
03-01-2022,Adults & Health,Cambridge Nursing Home,Nursing Homes - Private Contractors Payment,700,0,VENDOR
03-01-2022,Adults & Health,Cambridge Nursing Home,Residential Care Income,-86.75,0,VENDOR
03-01-2022,Adults & Health,Cambridge Nursing Home,Nursing Homes - Private Contractors Payment,700,0,VENDOR
03-01-2022,Adults & Health,Cambridge Nursing Home,Nursing Homes - Private Contractors Payment,700,0,VENDOR
03-01-2022,Adults & Health,Cambridge Nursing Home,Residential Care Income,-86.75,0,VENDOR
03-01-2022,Adults & Health,HC-One,Nursing Homes - Private Contractors Payment,590,0,COMMERCIAL SUPPLIER
03-01-2022,Adults & Health,HC-One,Nursing Homes - Private Contractors Payment,590,0,COMMERCIAL SUPPLIER
03-01-2022,Adults & Health,HC-One,Nursing Homes - Private Contractors Payment,590,0,COMMERCIAL SUPPLIER
03-01-2022,Adults & Health,HC-One,Nursing Homes - Private Contractors Payment,590,0,COMMERCIAL SUPPLIER
03-01-2022,Adults & Health,Barchester Healthcare Homes Limited t/a Westgate House,Nursing Homes - Private Contractors Payment,820,0,NON COMMERCIAL SUPPLIER
03-01-2022,Adults & Health,Barchester Healthcare Homes Limited t/a Westgate House,Nursing Homes - Private Contractors Payment,820,0,NON COMMERCIAL SUPPLIER
03-01-2022,Adults & Health,Barchester Healthcare Homes Limited t/a Westgate House,Nursing Homes - Private Contractors Payment,820,0,NON COMMERCIAL SUPPLIER
03-01-2022,Adults & Health,Barchester Healthcare Homes Limited t/a Westgate House,Nursing Homes - Private Contractors Payment,820,0,NON COMMERCIAL SUPPLIER
03-01-2022,Adults & Health,L & Q Living,Residential Placements - Private Contractors Payment,1230,0,VENDOR
03-01-2022,Adults & Health,L & Q Living,Residential Placements - Private Contractors Payment,1230,0,VENDOR
03-01-2022,Adults & Health,L & Q Living,Residential Placements - Private Contractors Payment,1230,0,VENDOR
03-01-2022,Adults & Health,L & Q Living,Residential Placements - Private Contractors Payment,1230,0,VENDOR
03-01-2022,Adults & Health,Bondcare(London)The Fountains,Residential Placements - Private Contractors Payment,700,0,COMMERCIAL SUPPLIER
03-01-2022,Adults & Health,Bondcare(London)The Fountains,Residential Care Income,-318.08,0,COMMERCIAL SUPPLIER
03-01-2022,Adults & Health,Bondcare(London)The Fountains,Residential Care Income,-318.08,0,COMMERCIAL SUPPLIER
03-01-2022,Adults & Health,Bondcare(London)The Fountains,Residential Placements - Private Contractors Payment,700,0,COMMERCIAL SUPPLIER
03-01-2022,Adults & Health,Bondcare(London)The Fountains,Residential Care Income,-318.08,0,COMMERCIAL SUPPLIER
03-01-2022,Adults & Health,Bondcare(London)The Fountains,Residential Placements - Private Contractors Payment,700,0,COMMERCIAL SUPPLIER
03-01-2022,Adults & Health,Bondcare(London)The Fountains,Residential Placements - Private Contractors Payment,700,0,COMMERCIAL SUPPLIER
03-01-2022,Adults & Health,Bondcare(London)The Fountains,Residential Care Income,-318.08,0,COMMERCIAL SUPPLIER
03-01-2022,Adults & Health,Ashgate House Ltd,Residential Placements - Private Contractors Payment,1590.08,0,COMMERCIAL SUPPLIER
03-01-2022,Adults & Health,Ashgate House Ltd,Residential Placements - Private Contractors Payment,1590.08,0,COMMERCIAL SUPPLIER
03-01-2022,Adults & Health,Ashgate House Ltd,Residential Placements - Private Contractors Payment,1590.08,0,COMMERCIAL SUPPLIER
03-01-2022,Adults & Health,Ashgate House Ltd,Residential Placements - Private Contractors Payment,1590.08,0,COMMERCIAL SUPPLIER
03-01-2022,Adults & Health,Woodlands Nursing Home,Residential Care Income,-152.94,0,COMMERCIAL SUPPLIER
03-01-2022,Adults & Health,Woodlands Nursing Home,Nursing Homes - Private Contractors Payment,634.44,0,COMMERCIAL SUPPLIER
03-01-2022,Adults & Health,Woodlands Nursing Home,Residential Care Income,-152.94,0,COMMERCIAL SUPPLIER
03-01-2022,Adults & Health,Woodlands Nursing Home,Nursing Homes - Private Contractors Payment,634.44,0,COMMERCIAL SUPPLIER
03-01-2022,Adults & Health,Woodlands Nursing Home,Nursing Homes - Private Contractors Payment,634.44,0,COMMERCIAL SUPPLIER
03-01-2022,Adults & Health,Woodlands Nursing Home,Residential Care Income,-152.94,0,COMMERCIAL SUPPLIER
03-01-2022,Adults & Health,Woodlands Nursing Home,Residential Care Income,-152.94,0,COMMERCIAL SUPPLIER
03-01-2022,Adults & Health,Woodlands Nursing Home,Nursing Homes - Private Contractors Payment,634.44,0,COMMERCIAL SUPPLIER
03-01-2022,Adults & Health,Bondcare(London)The Fountains,Nursing Homes - Private Contractors Payment,601.97,0,COMMERCIAL SUPPLIER
03-01-2022,Adults & Health,Bondcare(London)The Fountains,Nursing Homes - Private Contractors Payment,601.97,0,COMMERCIAL SUPPLIER
03-01-2022,Adults & Health,Bondcare(London)The Fountains,Nursing Homes - Private Contractors Payment,601.97,0,COMMERCIAL SUPPLIER
03-01-2022,Adults & Health,Bondcare(London)The Fountains,Nursing Homes - Private Contractors Payment,601.97,0,COMMERCIAL SUPPLIER
03-01-2022,Adults & Health,Trees Park (Eastham) Limited,Nursing Homes - Private Contractors Payment,754.56,0,VENDOR
03-01-2022,Adults & Health,Trees Park (Eastham) Limited,Residential Care Income,-152.92,0,VENDOR
03-01-2022,Adults & Health,Trees Park (Eastham) Limited,Residential Care Income,-152.92,0,VENDOR
03-01-2022,Adults & Health,Trees Park (Eastham) Limited,Nursing Homes - Private Contractors Payment,754.56,0,VENDOR
03-01-2022,Adults & Health,Trees Park (Eastham) Limited,Residential Care Income,-152.92,0,VENDOR
03-01-2022,Adults & Health,Trees Park (Eastham) Limited,Nursing Homes - Private Contractors Payment,754.56,0,VENDOR
03-01-2022,Adults & Health,Trees Park (Eastham) Limited,Nursing Homes - Private Contractors Payment,754.56,0,VENDOR
03-01-2022,Adults & Health,Trees Park (Eastham) Limited,Residential Care Income,-152.92,0,VENDOR
03-01-2022,Adults & Health,B&M Investments Limited t/a B&M Care,Residential Placements - Private Contractors Payment,950,0,NON COMMERCIAL SUPPLIER
03-01-2022,Adults & Health,B&M Investments Limited t/a B&M Care,Residential Placements - Private Contractors Payment,950,0,NON COMMERCIAL SUPPLIER
03-01-2022,Adults & Health,B&M Investments Limited t/a B&M Care,Residential Placements - Private Contractors Payment,950,0,NON COMMERCIAL SUPPLIER
03-01-2022,Adults & Health,B&M Investments Limited t/a B&M Care,Residential Placements - Private Contractors Payment,950,0,NON COMMERCIAL SUPPLIER
03-01-2022,Adults & Health,Northbrook Homes Ltd,Residential Care Income,-105.75,0,COMMERCIAL SUPPLIER
03-01-2022,Adults & Health,Northbrook Homes Ltd,Residential Placements - Private Contractors Payment,1085,0,COMMERCIAL SUPPLIER
03-01-2022,Adults & Health,Eden Supported Services Ltd,Supported Other Accommodation - Private Contractors Payment,1630,0,COMMERCIAL SUPPLIER
03-01-2022,Adults & Health,Ebenezer Residential Care Home,Residential Placements - Private Contractors Payment,1400,0,VENDOR
03-01-2022,Adults & Health,Northbrook Homes Ltd,Residential Placements - Private Contractors Payment,1085,0,COMMERCIAL SUPPLIER
03-01-2022,Adults & Health,Northbrook Homes Ltd,Residential Care Income,-105.75,0,COMMERCIAL SUPPLIER
03-01-2022,Adults & Health,Eden Supported Services Ltd,Supported Other Accommodation - Private Contractors Payment,1630,0,COMMERCIAL SUPPLIER
03-01-2022,Adults & Health,Tealk Services Ltd,Residential Placements - Private Contractors Payment,850,0,NON COMMERCIAL SUPPLIER
03-01-2022,Adults & Health,Ebenezer Residential Care Home,Residential Placements - Private Contractors Payment,1400,0,VENDOR
03-01-2022,Adults & Health,Tealk Services Ltd,Residential Placements - Private Contractors Payment,850,0,NON COMMERCIAL SUPPLIER
03-01-2022,Adults & Health,Northbrook Homes Ltd,Residential Care Income,-105.75,0,COMMERCIAL SUPPLIER
03-01-2022,Adults & Health,Northbrook Homes Ltd,Residential Placements - Private Contractors Payment,1085,0,COMMERCIAL SUPPLIER
03-01-2022,Adults & Health,Eden Supported Services Ltd,Supported Other Accommodation - Private Contractors Payment,1630,0,COMMERCIAL SUPPLIER
03-01-2022,Adults & Health,Tealk Services Ltd,Residential Placements - Private Contractors Payment,850,0,NON COMMERCIAL SUPPLIER
03-01-2022,Adults & Health,Ebenezer Residential Care Home,Residential Placements - Private Contractors Payment,1400,0,VENDOR
03-01-2022,Adults & Health,Northbrook Homes Ltd,Residential Care Income,-105.75,0,COMMERCIAL SUPPLIER
03-01-2022,Adults & Health,Northbrook Homes Ltd,Residential Placements - Private Contractors Payment,1085,0,COMMERCIAL SUPPLIER
03-01-2022,Adults & Health,Eden Supported Services Ltd,Supported Other Accommodation - Private Contractors Payment,1630,0,COMMERCIAL SUPPLIER
03-01-2022,Adults & Health,Tealk Services Ltd,Residential Placements - Private Contractors Payment,850,0,NON COMMERCIAL SUPPLIER
03-01-2022,Adults & Health,Ebenezer Residential Care Home,Residential Placements - Private Contractors Payment,1400,0,VENDOR
03-01-2022,Adults & Health,Supported Living Services Ltd,Supported Other Accommodation - Private Contractors Payment,670,0,COMMERCIAL SUPPLIER
03-01-2022,Adults & Health,Supported Living Services Ltd,Supported Other Accommodation - Private Contractors Payment,670,0,COMMERCIAL SUPPLIER
03-01-2022,Adults & Health,Supported Living Services Ltd,Supported Other Accommodation - Private Contractors Payment,670,0,COMMERCIAL SUPPLIER
03-01-2022,Adults & Health,Supported Living Services Ltd,Supported Other Accommodation - Private Contractors Payment,670,0,COMMERCIAL SUPPLIER
03-01-2022,Adults & Health,Folkestone Nursing Home,Nursing Homes - Private Contractors Payment,608.31,0,VENDOR
03-01-2022,Adults & Health,Folkestone Nursing Home,Nursing Homes - Private Contractors Payment,608.31,0,VENDOR
03-01-2022,Adults & Health,Folkestone Nursing Home,Nursing Homes - Private Contractors Payment,608.31,0,VENDOR
03-01-2022,Adults & Health,Folkestone Nursing Home,Nursing Homes - Private Contractors Payment,608.31,0,VENDOR
03-01-2022,Adults & Health,HC-One,Nursing Homes - Private Contractors Payment,516.85,0,COMMERCIAL SUPPLIER
03-01-2022,Adults & Health,HC-One,Nursing Homes - Private Contractors Payment,516.85,0,COMMERCIAL SUPPLIER
03-01-2022,Adults & Health,HC-One,Nursing Homes - Private Contractors Payment,516.85,0,COMMERCIAL SUPPLIER
03-01-2022,Adults & Health,HC-One,Nursing Homes - Private Contractors Payment,516.85,0,COMMERCIAL SUPPLIER
03-01-2022,Adults & Health,Barchester Healthcare Homes Limited t/a Westgate House,Residential Placements - Private Contractors Payment,954,0,NON COMMERCIAL SUPPLIER
03-01-2022,Adults & Health,Barchester Healthcare Homes Limited t/a Westgate House,Residential Placements - Private Contractors Payment,954,0,NON COMMERCIAL SUPPLIER
03-01-2022,Adults & Health,Barchester Healthcare Homes Limited t/a Westgate House,Residential Placements - Private Contractors Payment,954,0,NON COMMERCIAL SUPPLIER
03-01-2022,Adults & Health,Barchester Healthcare Homes Limited t/a Westgate House,Residential Placements - Private Contractors Payment,954,0,NON COMMERCIAL SUPPLIER
03-01-2022,Adults & Health,Sahara Homes Ltd,Residential Placements - Private Contractors Payment,2300,0,COMMERCIAL SUPPLIER
03-01-2022,Adults & Health,Barchester Healthcare Homes Limited t/a Westgate House,Nursing Homes - Private Contractors Payment,909.9,0,NON COMMERCIAL SUPPLIER
03-01-2022,Adults & Health,Sahara Homes Ltd,Residential Placements - Private Contractors Payment,2300,0,COMMERCIAL SUPPLIER
03-01-2022,Adults & Health,Barchester Healthcare Homes Limited t/a Westgate House,Nursing Homes - Private Contractors Payment,909.9,0,NON COMMERCIAL SUPPLIER
03-01-2022,Adults & Health,Sahara Homes Ltd,Residential Placements - Private Contractors Payment,2300,0,COMMERCIAL SUPPLIER
03-01-2022,Adults & Health,Barchester Healthcare Homes Limited t/a Westgate House,Nursing Homes - Private Contractors Payment,909.9,0,NON COMMERCIAL SUPPLIER
03-01-2022,Adults & Health,Sahara Homes Ltd,Residential Placements - Private Contractors Payment,2300,0,COMMERCIAL SUPPLIER
03-01-2022,Adults & Health,Barchester Healthcare Homes Limited t/a Westgate House,Nursing Homes - Private Contractors Payment,909.9,0,NON COMMERCIAL SUPPLIER
03-01-2022,Adults & Health,Hillsview Wood House- Eastwood House,Residential Placements - Private Contractors Payment,900,0,COMMERCIAL SUPPLIER
03-01-2022,Adults & Health,Ebenezer Residential Care Home,Supported Other Accommodation - Private Contractors Payment,750,0,VENDOR
03-01-2022,Adults & Health,Hillsview Wood House- Eastwood House,Residential Placements - Private Contractors Payment,900,0,COMMERCIAL SUPPLIER
03-01-2022,Adults & Health,Hillsview Wood House- Eastwood House,Residential Placements - Private Contractors Payment,900,0,COMMERCIAL SUPPLIER
03-01-2022,Adults & Health,Ebenezer Residential Care Home,Supported Other Accommodation - Private Contractors Payment,750,0,VENDOR
03-01-2022,Adults & Health,Hillsview Wood House- Eastwood House,Residential Placements - Private Contractors Payment,900,0,COMMERCIAL SUPPLIER
03-01-2022,Adults & Health,Ebenezer Residential Care Home,Supported Other Accommodation - Private Contractors Payment,750,0,VENDOR
03-01-2022,Adults & Health,Ebenezer Residential Care Home,Supported Other Accommodation - Private Contractors Payment,750,0,VENDOR
03-01-2022,Adults & Health,Barchester Healthcare Homes Limited t/a Westgate House,Residential Placements - Private Contractors Payment,954,0,NON COMMERCIAL SUPPLIER
03-01-2022,Adults & Health,Barchester Healthcare Homes Limited t/a Westgate House,Residential Placements - Private Contractors Payment,954,0,NON COMMERCIAL SUPPLIER
03-01-2022,Adults & Health,Barchester Healthcare Homes Limited t/a Westgate House,Residential Placements - Private Contractors Payment,954,0,NON COMMERCIAL SUPPLIER
03-01-2022,Adults & Health,Barchester Healthcare Homes Limited t/a Westgate House,Residential Placements - Private Contractors Payment,954,0,NON COMMERCIAL SUPPLIER
03-01-2022,Adults & Health,Drumpark Care Ltd,Residential Placements - Private Contractors Payment,617.04,0,COMMERCIAL SUPPLIER
03-01-2022,Adults & Health,Drumpark Care Ltd,Residential Placements - Private Contractors Payment,617.04,0,COMMERCIAL SUPPLIER
03-01-2022,Adults & Health,Drumpark Care Ltd,Residential Placements - Private Contractors Payment,617.04,0,COMMERCIAL SUPPLIER
03-01-2022,Adults & Health,Drumpark Care Ltd,Residential Placements - Private Contractors Payment,617.04,0,COMMERCIAL SUPPLIER
03-01-2022,Adults & Health,Shepherds Corner,Residential Placements - Private Contractors Payment,1350,0,VENDOR
03-01-2022,Adults & Health,Shepherds Corner,Residential Placements - Private Contractors Payment,1350,0,VENDOR
03-01-2022,Adults & Health,Shepherds Corner,Residential Placements - Private Contractors Payment,1350,0,VENDOR
03-01-2022,Adults & Health,Shepherds Corner,Residential Placements - Private Contractors Payment,1350,0,VENDOR
03-01-2022,Adults & Health,Leyton House Community Care Ltd,Supported Other Accommodation - Private Contractors Payment,850,0,COMMERCIAL SUPPLIER
03-01-2022,Adults & Health,Leyton House Community Care Ltd,Supported Other Accommodation - Private Contractors Payment,850,0,COMMERCIAL SUPPLIER
03-01-2022,Adults & Health,Leyton House Community Care Ltd,Supported Other Accommodation - Private Contractors Payment,850,0,COMMERCIAL SUPPLIER
03-01-2022,Adults & Health,Leyton House Community Care Ltd,Supported Other Accommodation - Private Contractors Payment,850,0,COMMERCIAL SUPPLIER
03-01-2022,Adults & Health,Sahara Homes Ltd,Residential Placements - Private Contractors Payment,1800,0,COMMERCIAL SUPPLIER
03-01-2022,Adults & Health,Nellsar Care Homes,Residential Care Income,-152.2,0,NON COMMERCIAL SUPPLIER
03-01-2022,Adults & Health,Nellsar Care Homes,Residential Placements - Private Contractors Payment,580,0,NON COMMERCIAL SUPPLIER
03-01-2022,Adults & Health,Sahara Homes Ltd,Residential Placements - Private Contractors Payment,1800,0,COMMERCIAL SUPPLIER
03-01-2022,Adults & Health,Nellsar Care Homes,Residential Placements - Private Contractors Payment,580,0,NON COMMERCIAL SUPPLIER
03-01-2022,Adults & Health,Nellsar Care Homes,Residential Care Income,-152.2,0,NON COMMERCIAL SUPPLIER
03-01-2022,Adults & Health,Sahara Homes Ltd,Residential Placements - Private Contractors Payment,1800,0,COMMERCIAL SUPPLIER
03-01-2022,Adults & Health,Nellsar Care Homes,Residential Placements - Private Contractors Payment,580,0,NON COMMERCIAL SUPPLIER
03-01-2022,Adults & Health,Nellsar Care Homes,Residential Care Income,-152.2,0,NON COMMERCIAL SUPPLIER
03-01-2022,Adults & Health,Sahara Homes Ltd,Residential Placements - Private Contractors Payment,1800,0,COMMERCIAL SUPPLIER
03-01-2022,Adults & Health,Nellsar Care Homes,Residential Placements - Private Contractors Payment,580,0,NON COMMERCIAL SUPPLIER
03-01-2022,Adults & Health,Nellsar Care Homes,Residential Care Income,-152.2,0,NON COMMERCIAL SUPPLIER
03-01-2022,Adults & Health,Churchill House,Residential Placements - Private Contractors Payment,900.71,0,NON COMMERCIAL SUPPLIER
03-01-2022,Adults & Health,Churchill House,Residential Placements - Private Contractors Payment,900.71,0,NON COMMERCIAL SUPPLIER
03-01-2022,Adults & Health,Churchill House,Residential Placements - Private Contractors Payment,900.71,0,NON COMMERCIAL SUPPLIER
03-01-2022,Adults & Health,Churchill House,Residential Placements - Private Contractors Payment,900.71,0,NON COMMERCIAL SUPPLIER
03-01-2022,Adults & Health,HC-One,Nursing Homes - Private Contractors Payment,516.85,0,COMMERCIAL SUPPLIER
03-01-2022,Adults & Health,HC-One,Nursing Homes - Private Contractors Payment,516.85,0,COMMERCIAL SUPPLIER
03-01-2022,Adults & Health,HC-One,Nursing Homes - Private Contractors Payment,516.85,0,COMMERCIAL SUPPLIER
03-01-2022,Adults & Health,HC-One,Nursing Homes - Private Contractors Payment,516.85,0,COMMERCIAL SUPPLIER
03-01-2022,Adults & Health,Leyton House Community Care Ltd,Supported Other Accommodation - Private Contractors Payment,745,0,COMMERCIAL SUPPLIER
03-01-2022,Adults & Health,Leyton House Community Care Ltd,Supported Other Accommodation - Private Contractors Payment,745,0,COMMERCIAL SUPPLIER
03-01-2022,Adults & Health,Leyton House Community Care Ltd,Supported Other Accommodation - Private Contractors Payment,745,0,COMMERCIAL SUPPLIER
03-01-2022,Adults & Health,Leyton House Community Care Ltd,Supported Other Accommodation - Private Contractors Payment,745,0,COMMERCIAL SUPPLIER
03-01-2022,Adults & Health,The Avenues Trust,Residential Placements - Private Contractors Payment,1600,0,COMMERCIAL SUPPLIER
03-01-2022,Adults & Health,The Avenues Trust,Residential Placements - Private Contractors Payment,1600,0,COMMERCIAL SUPPLIER
03-01-2022,Adults & Health,The Avenues Trust,Residential Placements - Private Contractors Payment,1600,0,COMMERCIAL SUPPLIER
03-01-2022,Adults & Health,The Avenues Trust,Residential Placements - Private Contractors Payment,1600,0,COMMERCIAL SUPPLIER
03-01-2022,Adults & Health,DMP Healthcare (Cherry Orchard) Ltd,Nursing Homes - Private Contractors Payment,634.44,0,COMMERCIAL SUPPLIER
03-01-2022,Adults & Health,DMP Healthcare (Cherry Orchard) Ltd,Nursing Homes - Private Contractors Payment,634.44,0,COMMERCIAL SUPPLIER
03-01-2022,Adults & Health,DMP Healthcare (Cherry Orchard) Ltd,Nursing Homes - Private Contractors Payment,634.44,0,COMMERCIAL SUPPLIER
03-01-2022,Adults & Health,DMP Healthcare (Cherry Orchard) Ltd,Nursing Homes - Private Contractors Payment,634.44,0,COMMERCIAL SUPPLIER
03-01-2022,Adults & Health,Trees Park (Eastham) Limited,Residential Placements - Private Contractors Payment,604,0,VENDOR
03-01-2022,Adults & Health,Trees Park (Eastham) Limited,Residential Placements - Private Contractors Payment,604,0,VENDOR
03-01-2022,Adults & Health,Trees Park (Eastham) Limited,Residential Placements - Private Contractors Payment,604,0,VENDOR
03-01-2022,Adults & Health,Trees Park (Eastham) Limited,Residential Placements - Private Contractors Payment,604,0,VENDOR
03-01-2022,Adults & Health,HC-One,Residential Placements - Private Contractors Payment,632.98,0,COMMERCIAL SUPPLIER
03-01-2022,Adults & Health,HC-One,Residential Placements - Private Contractors Payment,632.98,0,COMMERCIAL SUPPLIER
03-01-2022,Adults & Health,HC-One,Residential Placements - Private Contractors Payment,632.98,0,COMMERCIAL SUPPLIER
03-01-2022,Adults & Health,HC-One,Residential Placements - Private Contractors Payment,632.98,0,COMMERCIAL SUPPLIER
03-01-2022,Adults & Health,Platform Support Services,Supported Other Accommodation - Private Contractors Payment,720,0,COMMERCIAL SUPPLIER
03-01-2022,Adults & Health,Platform Support Services,Supported Other Accommodation - Private Contractors Payment,720,0,COMMERCIAL SUPPLIER
03-01-2022,Adults & Health,Platform Support Services,Supported Other Accommodation - Private Contractors Payment,720,0,COMMERCIAL SUPPLIER
03-01-2022,Adults & Health,Platform Support Services,Supported Other Accommodation - Private Contractors Payment,720,0,COMMERCIAL SUPPLIER
03-01-2022,Adults & Health,Folkestone Nursing Home,Nursing Homes - Private Contractors Payment,601.97,0,VENDOR
03-01-2022,Adults & Health,Folkestone Nursing Home,Nursing Homes - Private Contractors Payment,601.97,0,VENDOR
03-01-2022,Adults & Health,Folkestone Nursing Home,Nursing Homes - Private Contractors Payment,601.97,0,VENDOR
03-01-2022,Adults & Health,Folkestone Nursing Home,Nursing Homes - Private Contractors Payment,601.97,0,VENDOR
03-01-2022,Adults & Health,Leyton House Community Care Ltd,Supported Other Accommodation - Private Contractors Payment,745,0,COMMERCIAL SUPPLIER
03-01-2022,Adults & Health,Leyton House Community Care Ltd,Supported Other Accommodation - Private Contractors Payment,745,0,COMMERCIAL SUPPLIER
03-01-2022,Adults & Health,Leyton House Community Care Ltd,Supported Other Accommodation - Private Contractors Payment,745,0,COMMERCIAL SUPPLIER
03-01-2022,Adults & Health,Leyton House Community Care Ltd,Supported Other Accommodation - Private Contractors Payment,745,0,COMMERCIAL SUPPLIER
03-01-2022,Adults & Health,HC-One,Residential Placements - Private Contractors Payment,563.6,0,COMMERCIAL SUPPLIER
03-01-2022,Adults & Health,HC-One,Residential Placements - Private Contractors Payment,563.6,0,COMMERCIAL SUPPLIER
03-01-2022,Adults & Health,HC-One,Residential Placements - Private Contractors Payment,563.6,0,COMMERCIAL SUPPLIER
03-01-2022,Adults & Health,HC-One,Residential Placements - Private Contractors Payment,563.6,0,COMMERCIAL SUPPLIER
03-01-2022,Adults & Health,DMP Healthcare (Cherry Orchard) Ltd,Residential Placements - Private Contractors Payment,850,0,COMMERCIAL SUPPLIER
03-01-2022,Adults & Health,DMP Healthcare (Cherry Orchard) Ltd,Residential Placements - Private Contractors Payment,850,0,COMMERCIAL SUPPLIER
03-01-2022,Adults & Health,DMP Healthcare (Cherry Orchard) Ltd,Residential Placements - Private Contractors Payment,850,0,COMMERCIAL SUPPLIER
03-01-2022,Adults & Health,DMP Healthcare (Cherry Orchard) Ltd,Residential Placements - Private Contractors Payment,850,0,COMMERCIAL SUPPLIER
03-01-2022,Adults & Health,The Avenues Trust,Residential Placements - Private Contractors Payment,1540.93,0,COMMERCIAL SUPPLIER
03-01-2022,Adults & Health,The Avenues Trust,Residential Placements - Private Contractors Payment,1540.93,0,COMMERCIAL SUPPLIER
03-01-2022,Adults & Health,The Avenues Trust,Residential Placements - Private Contractors Payment,1540.93,0,COMMERCIAL SUPPLIER
03-01-2022,Adults & Health,The Avenues Trust,Residential Placements - Private Contractors Payment,1540.93,0,COMMERCIAL SUPPLIER
03-01-2022,Adults & Health,Dothan House-Genesis Residential Homes Ltd,Residential Placements - Private Contractors Payment,604,0,VENDOR
03-01-2022,Adults & Health,Dothan House-Genesis Residential Homes Ltd,Residential Placements - Private Contractors Payment,604,0,VENDOR
03-01-2022,Adults & Health,Dothan House-Genesis Residential Homes Ltd,Residential Placements - Private Contractors Payment,604,0,VENDOR
03-01-2022,Adults & Health,Dothan House-Genesis Residential Homes Ltd,Residential Placements - Private Contractors Payment,604,0,VENDOR
03-01-2022,Adults & Health,HC One Ltd t/a Aspen Court,Residential Placements - Private Contractors Payment,629.99,0,COMMERCIAL SUPPLIER
03-01-2022,Adults & Health,HC One Ltd t/a Aspen Court,Residential Care Income,-364.69,0,COMMERCIAL SUPPLIER
03-01-2022,Adults & Health,HC One Ltd t/a Aspen Court,Residential Placements - Private Contractors Payment,629.99,0,COMMERCIAL SUPPLIER
03-01-2022,Adults & Health,HC One Ltd t/a Aspen Court,Residential Care Income,-364.69,0,COMMERCIAL SUPPLIER
03-01-2022,Adults & Health,HC One Ltd t/a Aspen Court,Residential Placements - Private Contractors Payment,629.99,0,COMMERCIAL SUPPLIER
03-01-2022,Adults & Health,HC One Ltd t/a Aspen Court,Residential Care Income,-364.69,0,COMMERCIAL SUPPLIER
03-01-2022,Adults & Health,HC One Ltd t/a Aspen Court,Residential Placements - Private Contractors Payment,629.99,0,COMMERCIAL SUPPLIER
03-01-2022,Adults & Health,HC One Ltd t/a Aspen Court,Residential Care Income,-364.69,0,COMMERCIAL SUPPLIER
03-01-2022,Adults & Health,Sahara Homes Ltd,Residential Placements - Private Contractors Payment,1600,0,COMMERCIAL SUPPLIER
03-01-2022,Adults & Health,Sahara Homes Ltd,Residential Placements - Private Contractors Payment,1600,0,COMMERCIAL SUPPLIER
03-01-2022,Adults & Health,Sahara Homes Ltd,Residential Placements - Private Contractors Payment,1600,0,COMMERCIAL SUPPLIER
03-01-2022,Adults & Health,Sahara Homes Ltd,Residential Placements - Private Contractors Payment,1600,0,COMMERCIAL SUPPLIER
03-01-2022,Adults & Health,Hilton Supported Living,Supported Other Accommodation - Private Contractors Payment,740,0,COMMERCIAL SUPPLIER
03-01-2022,Adults & Health,Hilton Supported Living,Supported Other Accommodation - Private Contractors Payment,740,0,COMMERCIAL SUPPLIER
03-01-2022,Adults & Health,Hilton Supported Living,Supported Other Accommodation - Private Contractors Payment,740,0,COMMERCIAL SUPPLIER
03-01-2022,Adults & Health,Hilton Supported Living,Supported Other Accommodation - Private Contractors Payment,740,0,COMMERCIAL SUPPLIER
03-01-2022,Adults & Health,Oaklodge Supporting Living Ltd,Supported Other Accommodation - Private Contractors Payment,983,0,VENDOR
03-01-2022,Adults & Health,Oaklodge Supporting Living Ltd,Supported Other Accommodation - Private Contractors Payment,983,0,VENDOR
03-01-2022,Adults & Health,Oaklodge Supporting Living Ltd,Supported Other Accommodation - Private Contractors Payment,983,0,VENDOR
03-01-2022,Adults & Health,Oaklodge Supporting Living Ltd,Supported Other Accommodation - Private Contractors Payment,983,0,VENDOR
03-01-2022,Adults & Health,Barchester Healthcare Homes Limited t/a Westgate House,Nursing Homes - Private Contractors Payment,1050,0,NON COMMERCIAL SUPPLIER
03-01-2022,Adults & Health,Barchester Healthcare Homes Limited t/a Westgate House,Nursing Homes - Private Contractors Payment,1050,0,NON COMMERCIAL SUPPLIER
03-01-2022,Adults & Health,Barchester Healthcare Homes Limited t/a Westgate House,Nursing Homes - Private Contractors Payment,1050,0,NON COMMERCIAL SUPPLIER
03-01-2022,Adults & Health,Barchester Healthcare Homes Limited t/a Westgate House,Nursing Homes - Private Contractors Payment,1050,0,NON COMMERCIAL SUPPLIER
03-01-2022,Adults & Health,Faircross Care Home,Residential Placements - Private Contractors Payment,950,0,COMMERCIAL SUPPLIER
03-01-2022,Adults & Health,Faircross Care Home,Residential Placements - Private Contractors Payment,950,0,COMMERCIAL SUPPLIER
03-01-2022,Adults & Health,Faircross Care Home,Residential Placements - Private Contractors Payment,950,0,COMMERCIAL SUPPLIER
03-01-2022,Adults & Health,Faircross Care Home,Residential Placements - Private Contractors Payment,950,0,COMMERCIAL SUPPLIER
03-01-2022,Adults & Health,Sasa Homes Limited,Respite Care - Private Contractors Payment,2500,0,COMMERCIAL SUPPLIER
03-01-2022,Adults & Health,Sasa Homes Limited,Respite Care - Private Contractors Payment,2500,0,COMMERCIAL SUPPLIER
03-01-2022,Adults & Health,Sasa Homes Limited,Respite Care - Private Contractors Payment,2500,0,COMMERCIAL SUPPLIER
03-01-2022,Adults & Health,Sasa Homes Limited,Respite Care - Private Contractors Payment,2500,0,COMMERCIAL SUPPLIER
03-01-2022,Adults & Health,Ruislip Nursing Home Ltd,Nursing Homes - Private Contractors Payment,1800,0,COMMERCIAL SUPPLIER
03-01-2022,Adults & Health,Ruislip Nursing Home Ltd,Residential Care Income,-49.8,0,COMMERCIAL SUPPLIER
03-01-2022,Adults & Health,Ruislip Nursing Home Ltd,Nursing Homes - Private Contractors Payment,1800,0,COMMERCIAL SUPPLIER
03-01-2022,Adults & Health,Ruislip Nursing Home Ltd,Residential Care Income,-49.8,0,COMMERCIAL SUPPLIER
03-01-2022,Adults & Health,Ruislip Nursing Home Ltd,Nursing Homes - Private Contractors Payment,1800,0,COMMERCIAL SUPPLIER
03-01-2022,Adults & Health,Ruislip Nursing Home Ltd,Residential Care Income,-49.8,0,COMMERCIAL SUPPLIER
03-01-2022,Adults & Health,Ruislip Nursing Home Ltd,Nursing Homes - Private Contractors Payment,1800,0,COMMERCIAL SUPPLIER
03-01-2022,Adults & Health,Ruislip Nursing Home Ltd,Residential Care Income,-49.8,0,COMMERCIAL SUPPLIER
03-01-2022,Adults & Health,Rosewood Lodge,Residential Placements - Private Contractors Payment,574.87,0,VENDOR
03-01-2022,Adults & Health,Rosewood Lodge,Residential Placements - Private Contractors Payment,574.87,0,VENDOR
03-01-2022,Adults & Health,Rosewood Lodge,Residential Placements - Private Contractors Payment,574.87,0,VENDOR
03-01-2022,Adults & Health,Rosewood Lodge,Residential Placements - Private Contractors Payment,574.87,0,VENDOR
03-01-2022,Adults & Health,HC-One,Nursing Homes - Private Contractors Payment,527.19,0,COMMERCIAL SUPPLIER
03-01-2022,Adults & Health,HC-One,Nursing Homes - Private Contractors Payment,527.19,0,COMMERCIAL SUPPLIER
03-01-2022,Adults & Health,HC-One,Nursing Homes - Private Contractors Payment,527.19,0,COMMERCIAL SUPPLIER
03-01-2022,Adults & Health,HC-One,Nursing Homes - Private Contractors Payment,527.19,0,COMMERCIAL SUPPLIER
03-01-2022,Adults & Health,HC-One,Nursing Homes - Private Contractors Payment,601.87,0,COMMERCIAL SUPPLIER
03-01-2022,Adults & Health,HC-One,Nursing Homes - Private Contractors Payment,601.87,0,COMMERCIAL SUPPLIER
03-01-2022,Adults & Health,HC-One,Nursing Homes - Private Contractors Payment,601.87,0,COMMERCIAL SUPPLIER
03-01-2022,Adults & Health,HC-One,Nursing Homes - Private Contractors Payment,601.87,0,COMMERCIAL SUPPLIER
03-01-2022,Adults & Health,Four Seasons (N0.10) Limited Re.Summerdale Court Care Home,Nursing Homes - Private Contractors Payment,601.87,0,VENDOR
03-01-2022,Adults & Health,Four Seasons (N0.10) Limited Re.Summerdale Court Care Home,Nursing Homes - Private Contractors Payment,601.87,0,VENDOR
03-01-2022,Adults & Health,Four Seasons (N0.10) Limited Re.Summerdale Court Care Home,Nursing Homes - Private Contractors Payment,601.87,0,VENDOR
03-01-2022,Adults & Health,Four Seasons (N0.10) Limited Re.Summerdale Court Care Home,Nursing Homes - Private Contractors Payment,601.87,0,VENDOR
03-01-2022,Adults & Health,Barchester Healthcare Homes Limited t/a Westgate House,Residential Placements - Private Contractors Payment,534.63,0,NON COMMERCIAL SUPPLIER
03-01-2022,Adults & Health,Barchester Healthcare Homes Limited t/a Westgate House,Residential Placements - Private Contractors Payment,534.63,0,NON COMMERCIAL SUPPLIER
03-01-2022,Adults & Health,Barchester Healthcare Homes Limited t/a Westgate House,Residential Placements - Private Contractors Payment,534.63,0,NON COMMERCIAL SUPPLIER
03-01-2022,Adults & Health,Barchester Healthcare Homes Limited t/a Westgate House,Residential Placements - Private Contractors Payment,534.63,0,NON COMMERCIAL SUPPLIER
03-01-2022,Adults & Health,Barchester Healthcare Homes Ltd Re- Ashlar House,Nursing Homes - Private Contractors Payment,834.44,0,NON COMMERCIAL SUPPLIER
03-01-2022,Adults & Health,Barchester Healthcare Homes Ltd Re- Ashlar House,Nursing Homes - Private Contractors Payment,834.44,0,NON COMMERCIAL SUPPLIER
03-01-2022,Adults & Health,Barchester Healthcare Homes Ltd Re- Ashlar House,Nursing Homes - Private Contractors Payment,834.44,0,NON COMMERCIAL SUPPLIER
03-01-2022,Adults & Health,Barchester Healthcare Homes Ltd Re- Ashlar House,Nursing Homes - Private Contractors Payment,834.44,0,NON COMMERCIAL SUPPLIER
03-01-2022,Adults & Health,Primroses Care Ltd,Residential Placements - Private Contractors Payment,1050,0,NON COMMERCIAL SUPPLIER
03-01-2022,Adults & Health,Primroses Care Ltd,Residential Placements - Private Contractors Payment,1050,0,NON COMMERCIAL SUPPLIER
03-01-2022,Adults & Health,Primroses Care Ltd,Residential Placements - Private Contractors Payment,1050,0,NON COMMERCIAL SUPPLIER
03-01-2022,Adults & Health,Primroses Care Ltd,Residential Placements - Private Contractors Payment,1050,0,NON COMMERCIAL SUPPLIER
03-01-2022,Adults & Health,Beaumont Court Care Home,Residential Placements - Private Contractors Payment,780,0,COMMERCIAL SUPPLIER
03-01-2022,Adults & Health,Beaumont Court Care Home,Residential Placements - Private Contractors Payment,780,0,COMMERCIAL SUPPLIER
03-01-2022,Adults & Health,Beaumont Court Care Home,Residential Placements - Private Contractors Payment,780,0,COMMERCIAL SUPPLIER
03-01-2022,Adults & Health,Beaumont Court Care Home,Residential Placements - Private Contractors Payment,780,0,COMMERCIAL SUPPLIER
03-01-2022,Adults & Health,Eden Supported Services Ltd,Residential Placements - Private Contractors Payment,1946.55,0,COMMERCIAL SUPPLIER
03-01-2022,Adults & Health,Eden Supported Services Ltd,Residential Placements - Private Contractors Payment,1946.55,0,COMMERCIAL SUPPLIER
03-01-2022,Adults & Health,Eden Supported Services Ltd,Residential Placements - Private Contractors Payment,1946.55,0,COMMERCIAL SUPPLIER
03-01-2022,Adults & Health,Eden Supported Services Ltd,Residential Placements - Private Contractors Payment,1946.55,0,COMMERCIAL SUPPLIER
03-01-2022,Adults & Health,Cornerstone Healthcare Group,Nursing Homes - Private Contractors Payment,1837,0,COMMERCIAL SUPPLIER
03-01-2022,Adults & Health,Cornerstone Healthcare Group,Nursing Homes - Private Contractors Payment,1837,0,COMMERCIAL SUPPLIER
03-01-2022,Adults & Health,Cornerstone Healthcare Group,Nursing Homes - Private Contractors Payment,1837,0,COMMERCIAL SUPPLIER
03-01-2022,Adults & Health,Cornerstone Healthcare Group,Nursing Homes - Private Contractors Payment,1837,0,COMMERCIAL SUPPLIER
03-01-2022,Adults & Health,Four Seasons (N0.10) Limited Re.Summerdale Court Care Home,Nursing Homes - Private Contractors Payment,573.88,0,VENDOR
03-01-2022,Adults & Health,Four Seasons (N0.10) Limited Re.Summerdale Court Care Home,Residential Care Income,-134.47,0,VENDOR
03-01-2022,Adults & Health,Four Seasons (N0.10) Limited Re.Summerdale Court Care Home,Residential Care Income,-134.47,0,VENDOR
03-01-2022,Adults & Health,Four Seasons (N0.10) Limited Re.Summerdale Court Care Home,Nursing Homes - Private Contractors Payment,573.88,0,VENDOR
03-01-2022,Adults & Health,Four Seasons (N0.10) Limited Re.Summerdale Court Care Home,Nursing Homes - Private Contractors Payment,573.88,0,VENDOR
03-01-2022,Adults & Health,Four Seasons (N0.10) Limited Re.Summerdale Court Care Home,Residential Care Income,-134.47,0,VENDOR
03-01-2022,Adults & Health,Four Seasons (N0.10) Limited Re.Summerdale Court Care Home,Nursing Homes - Private Contractors Payment,573.88,0,VENDOR
03-01-2022,Adults & Health,Four Seasons (N0.10) Limited Re.Summerdale Court Care Home,Residential Care Income,-134.47,0,VENDOR
03-01-2022,Adults & Health,Barchester Healthcare Homes Limited t/a Westgate House,Residential Placements - Private Contractors Payment,1200,0,NON COMMERCIAL SUPPLIER
03-01-2022,Adults & Health,Barchester Healthcare Homes Limited t/a Westgate House,Residential Placements - Private Contractors Payment,1200,0,NON COMMERCIAL SUPPLIER
03-01-2022,Adults & Health,Barchester Healthcare Homes Limited t/a Westgate House,Residential Placements - Private Contractors Payment,1200,0,NON COMMERCIAL SUPPLIER
03-01-2022,Adults & Health,Barchester Healthcare Homes Limited t/a Westgate House,Residential Placements - Private Contractors Payment,1200,0,NON COMMERCIAL SUPPLIER
03-01-2022,Adults & Health,Four Seasons (N0.10) Limited Re.Summerdale Court Care Home,Nursing Homes - Private Contractors Payment,608.31,0,VENDOR
03-01-2022,Adults & Health,Four Seasons (N0.10) Limited Re.Summerdale Court Care Home,Nursing Homes - Private Contractors Payment,608.31,0,VENDOR
03-01-2022,Adults & Health,Four Seasons (N0.10) Limited Re.Summerdale Court Care Home,Nursing Homes - Private Contractors Payment,608.31,0,VENDOR
03-01-2022,Adults & Health,Four Seasons (N0.10) Limited Re.Summerdale Court Care Home,Nursing Homes - Private Contractors Payment,608.31,0,VENDOR
03-01-2022,Adults & Health,Four Seasons (N0.10) Limited Re.Summerdale Court Care Home,Nursing Homes - Private Contractors Payment,608.31,0,VENDOR
03-01-2022,Adults & Health,Four Seasons (N0.10) Limited Re.Summerdale Court Care Home,Nursing Homes - Private Contractors Payment,608.31,0,VENDOR
03-01-2022,Adults & Health,Four Seasons (N0.10) Limited Re.Summerdale Court Care Home,Nursing Homes - Private Contractors Payment,608.31,0,VENDOR
03-01-2022,Adults & Health,Four Seasons (N0.10) Limited Re.Summerdale Court Care Home,Nursing Homes - Private Contractors Payment,608.31,0,VENDOR
03-01-2022,Adults & Health,HC-One,Nursing Homes - Private Contractors Payment,608.31,0,COMMERCIAL SUPPLIER
03-01-2022,Adults & Health,Barchester Healthcare Homes Limited t/a Westgate House,Nursing Homes - Private Contractors Payment,637.98,0,NON COMMERCIAL SUPPLIER
03-01-2022,Adults & Health,Barchester Healthcare Homes Limited t/a Westgate House,Residential Care Income,-152.2,0,NON COMMERCIAL SUPPLIER
03-01-2022,Adults & Health,HC-One,Residential Placements - Private Contractors Payment,591.64,0,COMMERCIAL SUPPLIER
03-01-2022,Adults & Health,Trees Park (Eastham) Limited,Nursing Homes - Private Contractors Payment,637.98,0,VENDOR
03-01-2022,Adults & Health,Barchester Healthcare Homes Limited t/a Westgate House,Residential Care Income,-148.93,0,NON COMMERCIAL SUPPLIER
03-01-2022,Adults & Health,Barchester Healthcare Homes Limited t/a Westgate House,Nursing Homes - Private Contractors Payment,637.98,0,NON COMMERCIAL SUPPLIER
03-01-2022,Adults & Health,Barchester Healthcare Homes Limited t/a Westgate House,Residential Care Income,-152.2,0,NON COMMERCIAL SUPPLIER
03-01-2022,Adults & Health,Barchester Healthcare Homes Limited t/a Westgate House,Nursing Homes - Private Contractors Payment,637.98,0,NON COMMERCIAL SUPPLIER
03-01-2022,Adults & Health,Four Seasons (N0.10) Limited Re.Summerdale Court Care Home,Residential Placements - Private Contractors Payment,560.5,0,VENDOR
03-01-2022,Adults & Health,Four Seasons (N0.10) Limited Re.Summerdale Court Care Home,Residential Care Income,-161.05,0,VENDOR
03-01-2022,Adults & Health,Four Seasons (N0.10) Limited Re.Summerdale Court Care Home,Nursing Homes - Private Contractors Payment,637.98,0,VENDOR
03-01-2022,Adults & Health,Four Seasons (N0.10) Limited Re.Summerdale Court Care Home,Nursing Homes - Private Contractors Payment,637.98,0,VENDOR
03-01-2022,Adults & Health,Four Seasons (N0.10) Limited Re.Summerdale Court Care Home,Residential Care Income,-161.05,0,VENDOR
03-01-2022,Adults & Health,Folkestone Nursing Home,Residential Care Income,-152.2,0,VENDOR
03-01-2022,Adults & Health,Folkestone Nursing Home,Residential Placements - Private Contractors Payment,594.97,0,VENDOR
03-01-2022,Adults & Health,Barchester Healthcare Homes Limited t/a Westgate House,Nursing Homes - Private Contractors Payment,608.31,0,NON COMMERCIAL SUPPLIER
03-01-2022,Adults & Health,Barchester Healthcare Homes Limited t/a Westgate House,Residential Care Income,-163.61,0,NON COMMERCIAL SUPPLIER
03-01-2022,Adults & Health,Folkestone Nursing Home,Nursing Homes - Private Contractors Payment,637.98,0,VENDOR
03-01-2022,Adults & Health,Folkestone Nursing Home,Nursing Homes - Private Contractors Payment,637.98,0,VENDOR
03-01-2022,Adults & Health,HC-One,Nursing Homes - Private Contractors Payment,608.31,0,COMMERCIAL SUPPLIER
03-01-2022,Adults & Health,Barchester Healthcare Homes Limited t/a Westgate House,Residential Care Income,-149.95,0,NON COMMERCIAL SUPPLIER
03-01-2022,Adults & Health,Barchester Healthcare Homes Limited t/a Westgate House,Nursing Homes - Private Contractors Payment,637.98,0,NON COMMERCIAL SUPPLIER
03-01-2022,Adults & Health,Barchester Healthcare Homes Limited t/a Westgate House,Nursing Homes - Private Contractors Payment,637.98,0,NON COMMERCIAL SUPPLIER
03-01-2022,Adults & Health,Barchester Healthcare Homes Limited t/a Westgate House,Residential Care Income,-152.2,0,NON COMMERCIAL SUPPLIER
03-01-2022,Adults & Health,HC-One,Residential Placements - Private Contractors Payment,591.64,0,COMMERCIAL SUPPLIER
03-01-2022,Adults & Health,HC-One,Nursing Homes - Private Contractors Payment,608.31,0,COMMERCIAL SUPPLIER
03-01-2022,Adults & Health,Barchester Healthcare Homes Limited t/a Westgate House,Nursing Homes - Private Contractors Payment,637.98,0,NON COMMERCIAL SUPPLIER
03-01-2022,Adults & Health,Barchester Healthcare Homes Limited t/a Westgate House,Residential Care Income,-149.95,0,NON COMMERCIAL SUPPLIER
03-01-2022,Adults & Health,Four Seasons (N0.10) Limited Re.Summerdale Court Care Home,Nursing Homes - Private Contractors Payment,637.98,0,VENDOR
03-01-2022,Adults & Health,Four Seasons (N0.10) Limited Re.Summerdale Court Care Home,Residential Care Income,-161.05,0,VENDOR
03-01-2022,Adults & Health,Four Seasons (N0.10) Limited Re.Summerdale Court Care Home,Residential Placements - Private Contractors Payment,560.5,0,VENDOR
03-01-2022,Adults & Health,Four Seasons (N0.10) Limited Re.Summerdale Court Care Home,Nursing Homes - Private Contractors Payment,637.98,0,VENDOR
03-01-2022,Adults & Health,Folkestone Nursing Home,Residential Care Income,-152.2,0,VENDOR
03-01-2022,Adults & Health,Folkestone Nursing Home,Residential Placements - Private Contractors Payment,594.97,0,VENDOR
03-01-2022,Adults & Health,HC-One,Nursing Homes - Private Contractors Payment,608.31,0,COMMERCIAL SUPPLIER
03-01-2022,Adults & Health,Folkestone Nursing Home,Nursing Homes - Private Contractors Payment,637.98,0,VENDOR
03-01-2022,Adults & Health,Folkestone Nursing Home,Nursing Homes - Private Contractors Payment,637.98,0,VENDOR
03-01-2022,Adults & Health,HC-One,Residential Placements - Private Contractors Payment,591.64,0,COMMERCIAL SUPPLIER
03-01-2022,Adults & Health,Trees Park (Eastham) Limited,Nursing Homes - Private Contractors Payment,637.98,0,VENDOR
03-01-2022,Adults & Health,Barchester Healthcare Homes Limited t/a Westgate House,Residential Care Income,-148.93,0,NON COMMERCIAL SUPPLIER
03-01-2022,Adults & Health,Barchester Healthcare Homes Limited t/a Westgate House,Nursing Homes - Private Contractors Payment,637.98,0,NON COMMERCIAL SUPPLIER
03-01-2022,Adults & Health,Barchester Healthcare Homes Limited t/a Westgate House,Residential Care Income,-152.2,0,NON COMMERCIAL SUPPLIER
03-01-2022,Adults & Health,Barchester Healthcare Homes Limited t/a Westgate House,Nursing Homes - Private Contractors Payment,637.98,0,NON COMMERCIAL SUPPLIER
03-01-2022,Adults & Health,Barchester Healthcare Homes Limited t/a Westgate House,Residential Care Income,-152.2,0,NON COMMERCIAL SUPPLIER
03-01-2022,Adults & Health,Barchester Healthcare Homes Limited t/a Westgate House,Nursing Homes - Private Contractors Payment,637.98,0,NON COMMERCIAL SUPPLIER
03-01-2022,Adults & Health,Barchester Healthcare Homes Limited t/a Westgate House,Residential Care Income,-148.93,0,NON COMMERCIAL SUPPLIER
03-01-2022,Adults & Health,Barchester Healthcare Homes Limited t/a Westgate House,Nursing Homes - Private Contractors Payment,637.98,0,NON COMMERCIAL SUPPLIER
03-01-2022,Adults & Health,HC-One,Nursing Homes - Private Contractors Payment,608.31,0,COMMERCIAL SUPPLIER
03-01-2022,Adults & Health,Four Seasons (N0.10) Limited Re.Summerdale Court Care Home,Nursing Homes - Private Contractors Payment,637.98,0,VENDOR
03-01-2022,Adults & Health,Four Seasons (N0.10) Limited Re.Summerdale Court Care Home,Residential Placements - Private Contractors Payment,560.5,0,VENDOR
03-01-2022,Adults & Health,Barchester Healthcare Homes Limited t/a Westgate House,Residential Care Income,-163.61,0,NON COMMERCIAL SUPPLIER
03-01-2022,Adults & Health,Barchester Healthcare Homes Limited t/a Westgate House,Nursing Homes - Private Contractors Payment,608.31,0,NON COMMERCIAL SUPPLIER
03-01-2022,Adults & Health,Folkestone Nursing Home,Nursing Homes - Private Contractors Payment,637.98,0,VENDOR
03-01-2022,Adults & Health,Folkestone Nursing Home,Nursing Homes - Private Contractors Payment,637.98,0,VENDOR
03-01-2022,Adults & Health,Four Seasons (N0.10) Limited Re.Summerdale Court Care Home,Residential Care Income,-161.05,0,VENDOR
03-01-2022,Adults & Health,Four Seasons (N0.10) Limited Re.Summerdale Court Care Home,Nursing Homes - Private Contractors Payment,637.98,0,VENDOR
03-01-2022,Adults & Health,HC-One,Residential Placements - Private Contractors Payment,591.64,0,COMMERCIAL SUPPLIER
03-01-2022,Adults & Health,Trees Park (Eastham) Limited,Nursing Homes - Private Contractors Payment,637.98,0,VENDOR
03-01-2022,Adults & Health,Barchester Healthcare Homes Limited t/a Westgate House,Nursing Homes - Private Contractors Payment,637.98,0,NON COMMERCIAL SUPPLIER
03-01-2022,Adults & Health,Barchester Healthcare Homes Limited t/a Westgate House,Residential Care Income,-149.95,0,NON COMMERCIAL SUPPLIER
03-01-2022,Adults & Health,HC-One,Nursing Homes - Private Contractors Payment,608.31,0,COMMERCIAL SUPPLIER
03-01-2022,Adults & Health,Barchester Healthcare Homes Limited t/a Westgate House,Nursing Homes - Private Contractors Payment,637.98,0,NON COMMERCIAL SUPPLIER
03-01-2022,Adults & Health,Barchester Healthcare Homes Limited t/a Westgate House,Residential Care Income,-152.2,0,NON COMMERCIAL SUPPLIER
03-01-2022,Adults & Health,HC-One,Nursing Homes - Private Contractors Payment,608.31,0,COMMERCIAL SUPPLIER
03-01-2022,Adults & Health,Folkestone Nursing Home,Residential Placements - Private Contractors Payment,594.97,0,VENDOR
03-01-2022,Adults & Health,Folkestone Nursing Home,Residential Care Income,-152.2,0,VENDOR
03-01-2022,Adults & Health,Barchester Healthcare Homes Limited t/a Westgate House,Nursing Homes - Private Contractors Payment,608.31,0,NON COMMERCIAL SUPPLIER
03-01-2022,Adults & Health,Barchester Healthcare Homes Limited t/a Westgate House,Residential Care Income,-163.61,0,NON COMMERCIAL SUPPLIER
03-01-2022,Adults & Health,Folkestone Nursing Home,Nursing Homes - Private Contractors Payment,637.98,0,VENDOR
03-01-2022,Adults & Health,Four Seasons (N0.10) Limited Re.Summerdale Court Care Home,Nursing Homes - Private Contractors Payment,637.98,0,VENDOR
03-01-2022,Adults & Health,Trees Park (Eastham) Limited,Nursing Homes - Private Contractors Payment,637.98,0,VENDOR
03-01-2022,Adults & Health,Barchester Healthcare Homes Limited t/a Westgate House,Residential Care Income,-152.2,0,NON COMMERCIAL SUPPLIER
03-01-2022,Adults & Health,Barchester Healthcare Homes Limited t/a Westgate House,Nursing Homes - Private Contractors Payment,637.98,0,NON COMMERCIAL SUPPLIER
03-01-2022,Adults & Health,Barchester Healthcare Homes Limited t/a Westgate House,Residential Care Income,-148.93,0,NON COMMERCIAL SUPPLIER
03-01-2022,Adults & Health,Barchester Healthcare Homes Limited t/a Westgate House,Nursing Homes - Private Contractors Payment,637.98,0,NON COMMERCIAL SUPPLIER
03-01-2022,Adults & Health,Barchester Healthcare Homes Limited t/a Westgate House,Nursing Homes - Private Contractors Payment,637.98,0,NON COMMERCIAL SUPPLIER
03-01-2022,Adults & Health,Barchester Healthcare Homes Limited t/a Westgate House,Residential Care Income,-149.95,0,NON COMMERCIAL SUPPLIER
03-01-2022,Adults & Health,Barchester Healthcare Homes Limited t/a Westgate House,Nursing Homes - Private Contractors Payment,637.98,0,NON COMMERCIAL SUPPLIER
03-01-2022,Adults & Health,Barchester Healthcare Homes Limited t/a Westgate House,Residential Care Income,-152.2,0,NON COMMERCIAL SUPPLIER
03-01-2022,Adults & Health,HC-One,Nursing Homes - Private Contractors Payment,608.31,0,COMMERCIAL SUPPLIER
03-01-2022,Adults & Health,Folkestone Nursing Home,Residential Care Income,-152.2,0,VENDOR
03-01-2022,Adults & Health,Folkestone Nursing Home,Residential Placements - Private Contractors Payment,594.97,0,VENDOR
03-01-2022,Adults & Health,Barchester Healthcare Homes Limited t/a Westgate House,Residential Care Income,-163.61,0,NON COMMERCIAL SUPPLIER
03-01-2022,Adults & Health,Barchester Healthcare Homes Limited t/a Westgate House,Nursing Homes - Private Contractors Payment,608.31,0,NON COMMERCIAL SUPPLIER
03-01-2022,Adults & Health,Folkestone Nursing Home,Nursing Homes - Private Contractors Payment,637.98,0,VENDOR
03-01-2022,Adults & Health,Four Seasons (N0.10) Limited Re.Summerdale Court Care Home,Nursing Homes - Private Contractors Payment,637.98,0,VENDOR
03-01-2022,Adults & Health,Four Seasons (N0.10) Limited Re.Summerdale Court Care Home,Residential Placements - Private Contractors Payment,560.5,0,VENDOR
03-01-2022,Adults & Health,Four Seasons (N0.10) Limited Re.Summerdale Court Care Home,Residential Placements - Private Contractors Payment,591.64,0,VENDOR
03-01-2022,Adults & Health,HC-One,Residential Placements - Private Contractors Payment,560.5,0,COMMERCIAL SUPPLIER
03-01-2022,Adults & Health,Folkestone Nursing Home,Residential Placements - Private Contractors Payment,591.64,0,VENDOR
03-01-2022,Adults & Health,Four Seasons (N0.10) Limited Re.Summerdale Court Care Home,Residential Placements - Private Contractors Payment,591.64,0,VENDOR
03-01-2022,Adults & Health,Folkestone Nursing Home,Residential Placements - Private Contractors Payment,591.64,0,VENDOR
03-01-2022,Adults & Health,Four Seasons (N0.10) Limited Re.Summerdale Court Care Home,Residential Placements - Private Contractors Payment,591.64,0,VENDOR
03-01-2022,Adults & Health,HC-One,Residential Placements - Private Contractors Payment,560.5,0,COMMERCIAL SUPPLIER
03-01-2022,Adults & Health,Folkestone Nursing Home,Residential Placements - Private Contractors Payment,591.64,0,VENDOR
03-01-2022,Adults & Health,Four Seasons (N0.10) Limited Re.Summerdale Court Care Home,Residential Placements - Private Contractors Payment,591.64,0,VENDOR
03-01-2022,Adults & Health,HC-One,Residential Placements - Private Contractors Payment,560.5,0,COMMERCIAL SUPPLIER
03-01-2022,Adults & Health,Folkestone Nursing Home,Residential Placements - Private Contractors Payment,591.64,0,VENDOR
03-01-2022,Adults & Health,HC-One,Residential Placements - Private Contractors Payment,560.5,0,COMMERCIAL SUPPLIER
03-01-2022,Adults & Health,HC-One,Nursing Homes - Private Contractors Payment,608.31,0,COMMERCIAL SUPPLIER
03-01-2022,Adults & Health,Barchester Healthcare Homes Limited t/a Westgate House,Nursing Homes - Private Contractors Payment,608.31,0,NON COMMERCIAL SUPPLIER
03-01-2022,Adults & Health,Barchester Healthcare Homes Limited t/a Westgate House,Residential Care Income,-175.56,0,NON COMMERCIAL SUPPLIER
03-01-2022,Adults & Health,Four Seasons (N0.10) Limited Re.Summerdale Court Care Home,Residential Care Income,-131.06,0,VENDOR
03-01-2022,Adults & Health,Four Seasons (N0.10) Limited Re.Summerdale Court Care Home,Nursing Homes - Private Contractors Payment,608.31,0,VENDOR
03-01-2022,Adults & Health,Barchester Healthcare Homes Limited t/a Westgate House,Nursing Homes - Private Contractors Payment,600.55,0,NON COMMERCIAL SUPPLIER
03-01-2022,Adults & Health,Barchester Healthcare Homes Limited t/a Westgate House,Residential Care Income,-160.34,0,NON COMMERCIAL SUPPLIER
03-01-2022,Adults & Health,Four Seasons (N0.10) Limited Re.Summerdale Court Care Home,Residential Placements - Private Contractors Payment,591.64,0,VENDOR
03-01-2022,Adults & Health,Trees Park (Eastham) Limited,Nursing Homes - Private Contractors Payment,608.31,0,VENDOR
03-01-2022,Adults & Health,Barchester Healthcare Homes Limited t/a Westgate House,Nursing Homes - Private Contractors Payment,598.52,0,NON COMMERCIAL SUPPLIER
03-01-2022,Adults & Health,Trees Park (Eastham) Limited,Residential Placements - Private Contractors Payment,591.64,0,VENDOR
03-01-2022,Adults & Health,Folkestone Nursing Home,Nursing Homes - Private Contractors Payment,637.98,0,VENDOR
03-01-2022,Adults & Health,Folkestone Nursing Home,Residential Care Income,-206.73,0,VENDOR
03-01-2022,Adults & Health,HC-One,Nursing Homes - Private Contractors Payment,608.31,0,COMMERCIAL SUPPLIER
03-01-2022,Adults & Health,Barchester Healthcare Homes Limited t/a Westgate House,Residential Care Income,-86.75,0,NON COMMERCIAL SUPPLIER
03-01-2022,Adults & Health,Barchester Healthcare Homes Limited t/a Westgate House,Nursing Homes - Private Contractors Payment,599.03,0,NON COMMERCIAL SUPPLIER
03-01-2022,Adults & Health,Barchester Healthcare Homes Limited t/a Westgate House,Nursing Homes - Private Contractors Payment,637.98,0,NON COMMERCIAL SUPPLIER
03-01-2022,Adults & Health,Barchester Healthcare Homes Limited t/a Westgate House,Nursing Homes - Private Contractors Payment,598.52,0,NON COMMERCIAL SUPPLIER
03-01-2022,Adults & Health,Barchester Healthcare Homes Limited t/a Westgate House,Nursing Homes - Private Contractors Payment,608.31,0,NON COMMERCIAL SUPPLIER
03-01-2022,Adults & Health,Trees Park (Eastham) Limited,Nursing Homes - Private Contractors Payment,608.31,0,VENDOR
03-01-2022,Adults & Health,Four Seasons (N0.10) Limited Re.Summerdale Court Care Home,Residential Placements - Private Contractors Payment,591.64,0,VENDOR
03-01-2022,Adults & Health,Four Seasons (N0.10) Limited Re.Summerdale Court Care Home,Residential Placements - Private Contractors Payment,591.64,0,VENDOR
03-01-2022,Adults & Health,Folkestone Nursing Home,Nursing Homes - Private Contractors Payment,637.98,0,VENDOR
03-01-2022,Adults & Health,Folkestone Nursing Home,Residential Care Income,-206.73,0,VENDOR
03-01-2022,Adults & Health,Barchester Healthcare Homes Limited t/a Westgate House,Residential Care Income,-175.56,0,NON COMMERCIAL SUPPLIER
03-01-2022,Adults & Health,Barchester Healthcare Homes Limited t/a Westgate House,Nursing Homes - Private Contractors Payment,608.31,0,NON COMMERCIAL SUPPLIER
03-01-2022,Adults & Health,HC-One,Nursing Homes - Private Contractors Payment,608.31,0,COMMERCIAL SUPPLIER
03-01-2022,Adults & Health,Barchester Healthcare Homes Limited t/a Westgate House,Nursing Homes - Private Contractors Payment,600.55,0,NON COMMERCIAL SUPPLIER
03-01-2022,Adults & Health,Barchester Healthcare Homes Limited t/a Westgate House,Residential Care Income,-160.34,0,NON COMMERCIAL SUPPLIER
03-01-2022,Adults & Health,Barchester Healthcare Homes Limited t/a Westgate House,Nursing Homes - Private Contractors Payment,637.98,0,NON COMMERCIAL SUPPLIER
03-01-2022,Adults & Health,Barchester Healthcare Homes Limited t/a Westgate House,Nursing Homes - Private Contractors Payment,599.03,0,NON COMMERCIAL SUPPLIER
03-01-2022,Adults & Health,Barchester Healthcare Homes Limited t/a Westgate House,Residential Care Income,-86.75,0,NON COMMERCIAL SUPPLIER
03-01-2022,Adults & Health,Trees Park (Eastham) Limited,Nursing Homes - Private Contractors Payment,608.31,0,VENDOR
03-01-2022,Adults & Health,Four Seasons (N0.10) Limited Re.Summerdale Court Care Home,Residential Placements - Private Contractors Payment,591.64,0,VENDOR
03-01-2022,Adults & Health,Barchester Healthcare Homes Limited t/a Westgate House,Nursing Homes - Private Contractors Payment,608.31,0,NON COMMERCIAL SUPPLIER
03-01-2022,Adults & Health,Barchester Healthcare Homes Limited t/a Westgate House,Residential Care Income,-175.56,0,NON COMMERCIAL SUPPLIER
03-01-2022,Adults & Health,Trees Park (Eastham) Limited,Residential Placements - Private Contractors Payment,591.64,0,VENDOR
03-01-2022,Adults & Health,Four Seasons (N0.10) Limited Re.Summerdale Court Care Home,Residential Placements - Private Contractors Payment,591.64,0,VENDOR
03-01-2022,Adults & Health,Folkestone Nursing Home,Nursing Homes - Private Contractors Payment,637.98,0,VENDOR
03-01-2022,Adults & Health,Folkestone Nursing Home,Residential Care Income,-206.73,0,VENDOR
03-01-2022,Adults & Health,Barchester Healthcare Homes Limited t/a Westgate House,Nursing Homes - Private Contractors Payment,608.31,0,NON COMMERCIAL SUPPLIER
03-01-2022,Adults & Health,HC-One,Nursing Homes - Private Contractors Payment,608.31,0,COMMERCIAL SUPPLIER
03-01-2022,Adults & Health,Trees Park (Eastham) Limited,Nursing Homes - Private Contractors Payment,608.31,0,VENDOR
03-01-2022,Adults & Health,Barchester Healthcare Homes Limited t/a Westgate House,Residential Care Income,-160.34,0,NON COMMERCIAL SUPPLIER
03-01-2022,Adults & Health,Barchester Healthcare Homes Limited t/a Westgate House,Nursing Homes - Private Contractors Payment,600.55,0,NON COMMERCIAL SUPPLIER
03-01-2022,Adults & Health,Barchester Healthcare Homes Limited t/a Westgate House,Nursing Homes - Private Contractors Payment,598.52,0,NON COMMERCIAL SUPPLIER
03-01-2022,Adults & Health,Four Seasons (N0.10) Limited Re.Summerdale Court Care Home,Residential Placements - Private Contractors Payment,591.64,0,VENDOR
03-01-2022,Adults & Health,Barchester Healthcare Homes Limited t/a Westgate House,Nursing Homes - Private Contractors Payment,608.31,0,NON COMMERCIAL SUPPLIER
03-01-2022,Adults & Health,Four Seasons (N0.10) Limited Re.Summerdale Court Care Home,Residential Placements - Private Contractors Payment,591.64,0,VENDOR
03-01-2022,Adults & Health,Trees Park (Eastham) Limited,Residential Placements - Private Contractors Payment,591.64,0,VENDOR
03-01-2022,Adults & Health,Folkestone Nursing Home,Nursing Homes - Private Contractors Payment,637.98,0,VENDOR
03-01-2022,Adults & Health,Folkestone Nursing Home,Residential Care Income,-206.73,0,VENDOR
03-01-2022,Adults & Health,Barchester Healthcare Homes Limited t/a Westgate House,Nursing Homes - Private Contractors Payment,599.03,0,NON COMMERCIAL SUPPLIER
03-01-2022,Adults & Health,Barchester Healthcare Homes Limited t/a Westgate House,Residential Care Income,-86.75,0,NON COMMERCIAL SUPPLIER
03-01-2022,Adults & Health,HC-One,Nursing Homes - Private Contractors Payment,608.31,0,COMMERCIAL SUPPLIER
03-01-2022,Adults & Health,HC-One,Nursing Homes - Private Contractors Payment,608.31,0,COMMERCIAL SUPPLIER
03-01-2022,Adults & Health,Barchester Healthcare Homes Limited t/a Westgate House,Nursing Homes - Private Contractors Payment,608.31,0,NON COMMERCIAL SUPPLIER
03-01-2022,Adults & Health,Barchester Healthcare Homes Limited t/a Westgate House,Residential Care Income,-175.56,0,NON COMMERCIAL SUPPLIER
03-01-2022,Adults & Health,Four Seasons (N0.10) Limited Re.Summerdale Court Care Home,Residential Care Income,-131.06,0,VENDOR
03-01-2022,Adults & Health,Four Seasons (N0.10) Limited Re.Summerdale Court Care Home,Nursing Homes - Private Contractors Payment,608.31,0,VENDOR
03-01-2022,Adults & Health,Barchester Healthcare Homes Limited t/a Westgate House,Nursing Homes - Private Contractors Payment,637.98,0,NON COMMERCIAL SUPPLIER
03-01-2022,Adults & Health,Barchester Healthcare Homes Limited t/a Westgate House,Nursing Homes - Private Contractors Payment,599.03,0,NON COMMERCIAL SUPPLIER
03-01-2022,Adults & Health,Barchester Healthcare Homes Limited t/a Westgate House,Residential Care Income,-86.75,0,NON COMMERCIAL SUPPLIER
03-01-2022,Adults & Health,Four Seasons (N0.10) Limited Re.Summerdale Court Care Home,Residential Placements - Private Contractors Payment,591.64,0,VENDOR
03-01-2022,Adults & Health,Trees Park (Eastham) Limited,Residential Placements - Private Contractors Payment,591.64,0,VENDOR
03-01-2022,Adults & Health,Barchester Healthcare Homes Limited t/a Westgate House,Nursing Homes - Private Contractors Payment,600.55,0,NON COMMERCIAL SUPPLIER
03-01-2022,Adults & Health,Barchester Healthcare Homes Limited t/a Westgate House,Residential Care Income,-160.34,0,NON COMMERCIAL SUPPLIER
03-01-2022,Adults & Health,Barchester Healthcare Homes Limited t/a Westgate House,Nursing Homes - Private Contractors Payment,637.98,0,NON COMMERCIAL SUPPLIER
03-01-2022,Adults & Health,HC-One,Nursing Homes - Private Contractors Payment,608.31,0,COMMERCIAL SUPPLIER
03-01-2022,Adults & Health,Barchester Healthcare Homes Limited t/a Westgate House,Nursing Homes - Private Contractors Payment,598.52,0,NON COMMERCIAL SUPPLIER
03-01-2022,Adults & Health,HC-One,Nursing Homes - Private Contractors Payment,608.31,0,COMMERCIAL SUPPLIER
03-01-2022,Adults & Health,Four Seasons (N0.10) Limited Re.Summerdale Court Care Home,Nursing Homes - Private Contractors Payment,608.31,0,VENDOR
03-01-2022,Adults & Health,Four Seasons (N0.10) Limited Re.Summerdale Court Care Home,Residential Care Income,-131.06,0,VENDOR
03-01-2022,Adults & Health,Barchester Healthcare Homes Limited t/a Westgate House,Nursing Homes - Private Contractors Payment,608.31,0,NON COMMERCIAL SUPPLIER
03-01-2022,Adults & Health,Four Seasons (N0.10) Limited Re.Summerdale Court Care Home,Residential Care Income,-131.06,0,VENDOR
03-01-2022,Adults & Health,Four Seasons (N0.10) Limited Re.Summerdale Court Care Home,Nursing Homes - Private Contractors Payment,608.31,0,VENDOR
03-01-2022,Adults & Health,HC-One,Residential Placements - Private Contractors Payment,594.97,0,COMMERCIAL SUPPLIER
03-01-2022,Adults & Health,Folkestone Nursing Home,Residential Placements - Private Contractors Payment,560.5,0,VENDOR
03-01-2022,Adults & Health,Four Seasons (N0.10) Limited Re.Summerdale Court Care Home,Residential Placements - Private Contractors Payment,591.64,0,VENDOR
03-01-2022,Adults & Health,Four Seasons (N0.10) Limited Re.Summerdale Court Care Home,Residential Placements - Private Contractors Payment,560.5,0,VENDOR
03-01-2022,Adults & Health,HC-One,Residential Placements - Private Contractors Payment,591.64,0,COMMERCIAL SUPPLIER
03-01-2022,Adults & Health,HC-One,Residential Placements - Private Contractors Payment,591.64,0,COMMERCIAL SUPPLIER
03-01-2022,Adults & Health,Folkestone Nursing Home,Nursing Homes - Private Contractors Payment,637.98,0,VENDOR
03-01-2022,Adults & Health,Folkestone Nursing Home,Residential Care Income,-286.32,0,VENDOR
03-01-2022,Adults & Health,Barchester Healthcare Homes Limited t/a Westgate House,Residential Placements - Private Contractors Payment,556.5,0,NON COMMERCIAL SUPPLIER
03-01-2022,Adults & Health,Trees Park (Eastham) Limited,Residential Placements - Private Contractors Payment,594.97,0,VENDOR
03-01-2022,Adults & Health,Trees Park (Eastham) Limited,Residential Care Income,-212.97,0,VENDOR
03-01-2022,Adults & Health,Folkestone Nursing Home,Residential Placements - Private Contractors Payment,560.5,0,VENDOR
03-01-2022,Adults & Health,Folkestone Nursing Home,Residential Placements - Private Contractors Payment,591.64,0,VENDOR
03-01-2022,Adults & Health,Folkestone Nursing Home,Residential Placements - Private Contractors Payment,591.64,0,VENDOR
03-01-2022,Adults & Health,Folkestone Nursing Home,Residential Placements - Private Contractors Payment,591.64,0,VENDOR
03-01-2022,Adults & Health,HC-One,Residential Placements - Private Contractors Payment,560.5,0,COMMERCIAL SUPPLIER
03-01-2022,Adults & Health,HC-One,Residential Placements - Private Contractors Payment,560.5,0,COMMERCIAL SUPPLIER
03-01-2022,Adults & Health,Trees Park (Eastham) Limited,Residential Care Income,-220.51,0,VENDOR
03-01-2022,Adults & Health,Trees Park (Eastham) Limited,Residential Placements - Private Contractors Payment,560.5,0,VENDOR
03-01-2022,Adults & Health,Trees Park (Eastham) Limited,Residential Placements - Private Contractors Payment,560.5,0,VENDOR
03-01-2022,Adults & Health,Trees Park (Eastham) Limited,Residential Care Income,-172.96,0,VENDOR
03-01-2022,Adults & Health,Folkestone Nursing Home,Residential Placements - Private Contractors Payment,560.5,0,VENDOR
03-01-2022,Adults & Health,Four Seasons (N0.10) Limited Re.Summerdale Court Care Home,Residential Placements - Private Contractors Payment,591.64,0,VENDOR
03-01-2022,Adults & Health,HC-One,Residential Placements - Private Contractors Payment,594.97,0,COMMERCIAL SUPPLIER
03-01-2022,Adults & Health,HC-One,Residential Placements - Private Contractors Payment,591.64,0,COMMERCIAL SUPPLIER
03-01-2022,Adults & Health,HC-One,Residential Placements - Private Contractors Payment,591.64,0,COMMERCIAL SUPPLIER
03-01-2022,Adults & Health,Four Seasons (N0.10) Limited Re.Summerdale Court Care Home,Residential Care Income,-171.56,0,VENDOR
03-01-2022,Adults & Health,Four Seasons (N0.10) Limited Re.Summerdale Court Care Home,Nursing Homes - Private Contractors Payment,637.98,0,VENDOR
03-01-2022,Adults & Health,Folkestone Nursing Home,Residential Care Income,-286.32,0,VENDOR
03-01-2022,Adults & Health,Folkestone Nursing Home,Nursing Homes - Private Contractors Payment,637.98,0,VENDOR
03-01-2022,Adults & Health,Four Seasons (N0.10) Limited Re.Summerdale Court Care Home,Residential Placements - Private Contractors Payment,591.64,0,VENDOR
03-01-2022,Adults & Health,Barchester Healthcare Homes Limited t/a Westgate House,Residential Placements - Private Contractors Payment,556.5,0,NON COMMERCIAL SUPPLIER
03-01-2022,Adults & Health,Trees Park (Eastham) Limited,Residential Care Income,-212.97,0,VENDOR
03-01-2022,Adults & Health,Trees Park (Eastham) Limited,Residential Placements - Private Contractors Payment,594.97,0,VENDOR
03-01-2022,Adults & Health,Folkestone Nursing Home,Residential Placements - Private Contractors Payment,560.5,0,VENDOR
03-01-2022,Adults & Health,Folkestone Nursing Home,Residential Placements - Private Contractors Payment,591.64,0,VENDOR
03-01-2022,Adults & Health,Folkestone Nursing Home,Residential Placements - Private Contractors Payment,591.64,0,VENDOR
03-01-2022,Adults & Health,HC-One,Residential Placements - Private Contractors Payment,560.5,0,COMMERCIAL SUPPLIER
03-01-2022,Adults & Health,Folkestone Nursing Home,Residential Placements - Private Contractors Payment,594.97,0,VENDOR
03-01-2022,Adults & Health,HC-One,Residential Placements - Private Contractors Payment,560.5,0,COMMERCIAL SUPPLIER
03-01-2022,Adults & Health,Trees Park (Eastham) Limited,Residential Care Income,-172.96,0,VENDOR
03-01-2022,Adults & Health,Trees Park (Eastham) Limited,Residential Placements - Private Contractors Payment,560.5,0,VENDOR
03-01-2022,Adults & Health,Trees Park (Eastham) Limited,Residential Care Income,-220.51,0,VENDOR
03-01-2022,Adults & Health,Trees Park (Eastham) Limited,Residential Placements - Private Contractors Payment,560.5,0,VENDOR
03-01-2022,Adults & Health,HC-One,Residential Placements - Private Contractors Payment,591.64,0,COMMERCIAL SUPPLIER
03-01-2022,Adults & Health,HC-One,Residential Placements - Private Contractors Payment,594.97,0,COMMERCIAL SUPPLIER
03-01-2022,Adults & Health,Folkestone Nursing Home,Residential Placements - Private Contractors Payment,560.5,0,VENDOR
03-01-2022,Adults & Health,Four Seasons (N0.10) Limited Re.Summerdale Court Care Home,Residential Placements - Private Contractors Payment,560.5,0,VENDOR
03-01-2022,Adults & Health,Four Seasons (N0.10) Limited Re.Summerdale Court Care Home,Nursing Homes - Private Contractors Payment,637.98,0,VENDOR
03-01-2022,Adults & Health,Four Seasons (N0.10) Limited Re.Summerdale Court Care Home,Residential Care Income,-171.56,0,VENDOR
03-01-2022,Adults & Health,Four Seasons (N0.10) Limited Re.Summerdale Court Care Home,Residential Placements - Private Contractors Payment,591.64,0,VENDOR
03-01-2022,Adults & Health,Barchester Healthcare Homes Limited t/a Westgate House,Residential Placements - Private Contractors Payment,556.5,0,NON COMMERCIAL SUPPLIER
03-01-2022,Adults & Health,Four Seasons (N0.10) Limited Re.Summerdale Court Care Home,Residential Placements - Private Contractors Payment,591.64,0,VENDOR
03-01-2022,Adults & Health,Folkestone Nursing Home,Residential Placements - Private Contractors Payment,560.5,0,VENDOR
03-01-2022,Adults & Health,Folkestone Nursing Home,Residential Placements - Private Contractors Payment,591.64,0,VENDOR
03-01-2022,Adults & Health,Folkestone Nursing Home,Residential Placements - Private Contractors Payment,594.97,0,VENDOR
03-01-2022,Adults & Health,HC-One,Residential Placements - Private Contractors Payment,560.5,0,COMMERCIAL SUPPLIER
03-01-2022,Adults & Health,Folkestone Nursing Home,Residential Placements - Private Contractors Payment,594.97,0,VENDOR
03-01-2022,Adults & Health,HC-One,Residential Placements - Private Contractors Payment,560.5,0,COMMERCIAL SUPPLIER
03-01-2022,Adults & Health,HC-One,Residential Placements - Private Contractors Payment,560.5,0,COMMERCIAL SUPPLIER
03-01-2022,Adults & Health,HC-One,Residential Placements - Private Contractors Payment,560.5,0,COMMERCIAL SUPPLIER
03-01-2022,Adults & Health,Trees Park (Eastham) Limited,Residential Placements - Private Contractors Payment,560.5,0,VENDOR
03-01-2022,Adults & Health,Trees Park (Eastham) Limited,Residential Care Income,-220.51,0,VENDOR
03-01-2022,Adults & Health,HC-One,Residential Placements - Private Contractors Payment,591.64,0,COMMERCIAL SUPPLIER
03-01-2022,Adults & Health,Four Seasons (N0.10) Limited Re.Summerdale Court Care Home,Residential Placements - Private Contractors Payment,560.5,0,VENDOR
03-01-2022,Adults & Health,Four Seasons (N0.10) Limited Re.Summerdale Court Care Home,Residential Care Income,-171.56,0,VENDOR
03-01-2022,Adults & Health,Four Seasons (N0.10) Limited Re.Summerdale Court Care Home,Nursing Homes - Private Contractors Payment,637.98,0,VENDOR
03-01-2022,Adults & Health,Folkestone Nursing Home,Residential Care Income,-286.32,0,VENDOR
03-01-2022,Adults & Health,Folkestone Nursing Home,Nursing Homes - Private Contractors Payment,637.98,0,VENDOR
03-01-2022,Adults & Health,Barchester Healthcare Homes Limited t/a Westgate House,Residential Placements - Private Contractors Payment,556.5,0,NON COMMERCIAL SUPPLIER
03-01-2022,Adults & Health,Four Seasons (N0.10) Limited Re.Summerdale Court Care Home,Residential Placements - Private Contractors Payment,591.64,0,VENDOR
03-01-2022,Adults & Health,Trees Park (Eastham) Limited,Residential Care Income,-212.97,0,VENDOR
03-01-2022,Adults & Health,Trees Park (Eastham) Limited,Residential Placements - Private Contractors Payment,594.97,0,VENDOR
03-01-2022,Adults & Health,Four Seasons (N0.10) Limited Re.Summerdale Court Care Home,Residential Placements - Private Contractors Payment,591.64,0,VENDOR
03-01-2022,Adults & Health,Folkestone Nursing Home,Residential Placements - Private Contractors Payment,560.5,0,VENDOR
03-01-2022,Adults & Health,HC-One,Residential Placements - Private Contractors Payment,591.64,0,COMMERCIAL SUPPLIER
03-01-2022,Adults & Health,Folkestone Nursing Home,Residential Placements - Private Contractors Payment,594.97,0,VENDOR
03-01-2022,Adults & Health,HC-One,Residential Placements - Private Contractors Payment,560.5,0,COMMERCIAL SUPPLIER
03-01-2022,Adults & Health,HC-One,Residential Placements - Private Contractors Payment,560.5,0,COMMERCIAL SUPPLIER
03-01-2022,Adults & Health,Trees Park (Eastham) Limited,Residential Placements - Private Contractors Payment,560.5,0,VENDOR
03-01-2022,Adults & Health,Trees Park (Eastham) Limited,Residential Care Income,-172.96,0,VENDOR
03-01-2022,Adults & Health,HC-One,Residential Placements - Private Contractors Payment,591.64,0,COMMERCIAL SUPPLIER
03-01-2022,Adults & Health,HC-One,Residential Placements - Private Contractors Payment,594.97,0,COMMERCIAL SUPPLIER
03-01-2022,Adults & Health,HC-One,Residential Placements - Private Contractors Payment,591.64,0,COMMERCIAL SUPPLIER
03-01-2022,Adults & Health,Four Seasons (N0.10) Limited Re.Summerdale Court Care Home,Residential Placements - Private Contractors Payment,560.5,0,VENDOR
03-01-2022,Adults & Health,HC-One,Residential Placements - Private Contractors Payment,591.64,0,COMMERCIAL SUPPLIER
03-01-2022,Adults & Health,HC-One,Residential Placements - Private Contractors Payment,591.64,0,COMMERCIAL SUPPLIER
03-01-2022,Adults & Health,Four Seasons (N0.10) Limited Re.Summerdale Court Care Home,Nursing Homes - Private Contractors Payment,637.98,0,VENDOR
03-01-2022,Adults & Health,Four Seasons (N0.10) Limited Re.Summerdale Court Care Home,Residential Care Income,-171.56,0,VENDOR
03-01-2022,Adults & Health,Folkestone Nursing Home,Residential Care Income,-286.32,0,VENDOR
03-01-2022,Adults & Health,Folkestone Nursing Home,Nursing Homes - Private Contractors Payment,637.98,0,VENDOR
03-01-2022,Adults & Health,Trees Park (Eastham) Limited,Residential Care Income,-212.97,0,VENDOR
03-01-2022,Adults & Health,Trees Park (Eastham) Limited,Residential Placements - Private Contractors Payment,594.97,0,VENDOR
03-01-2022,Adults & Health,Folkestone Nursing Home,Residential Placements - Private Contractors Payment,560.5,0,VENDOR
03-01-2022,Adults & Health,HC-One,Residential Placements - Private Contractors Payment,591.64,0,COMMERCIAL SUPPLIER
03-01-2022,Adults & Health,Folkestone Nursing Home,Residential Placements - Private Contractors Payment,591.64,0,VENDOR
03-01-2022,Adults & Health,HC-One,Residential Placements - Private Contractors Payment,560.5,0,COMMERCIAL SUPPLIER
03-01-2022,Adults & Health,Folkestone Nursing Home,Residential Placements - Private Contractors Payment,591.64,0,VENDOR
03-01-2022,Adults & Health,HC-One,Residential Placements - Private Contractors Payment,560.5,0,COMMERCIAL SUPPLIER
03-01-2022,Adults & Health,Trees Park (Eastham) Limited,Residential Placements - Private Contractors Payment,560.5,0,VENDOR
03-01-2022,Adults & Health,Trees Park (Eastham) Limited,Residential Care Income,-172.96,0,VENDOR
03-01-2022,Adults & Health,Trees Park (Eastham) Limited,Residential Placements - Private Contractors Payment,560.5,0,VENDOR
03-01-2022,Adults & Health,Trees Park (Eastham) Limited,Residential Care Income,-220.51,0,VENDOR
03-01-2022,Adults & Health,Four Seasons (N0.10) Limited Re.Summerdale Court Care Home,Residential Placements - Private Contractors Payment,591.64,0,VENDOR
03-01-2022,Adults & Health,Woodlands Nursing Home,Nursing Homes - Private Contractors Payment,549.44,0,COMMERCIAL SUPPLIER
03-01-2022,Adults & Health,Woodlands Nursing Home,Nursing Homes - Private Contractors Payment,549.44,0,COMMERCIAL SUPPLIER
03-01-2022,Adults & Health,Woodlands Nursing Home,Nursing Homes - Private Contractors Payment,549.44,0,COMMERCIAL SUPPLIER
03-01-2022,Adults & Health,Woodlands Nursing Home,Nursing Homes - Private Contractors Payment,549.44,0,COMMERCIAL SUPPLIER
03-01-2022,Adults & Health,Abi Developments 3 Ltd t/a 1 Sewardstone Close,Nursing Homes - Private Contractors Payment,1643.01,0,NON COMMERCIAL SUPPLIER
03-01-2022,Adults & Health,Abi Developments 3 Ltd t/a 1 Sewardstone Close,Nursing Homes - Private Contractors Payment,1643.01,0,NON COMMERCIAL SUPPLIER
03-01-2022,Adults & Health,Abi Developments 3 Ltd t/a 1 Sewardstone Close,Nursing Homes - Private Contractors Payment,1643.01,0,NON COMMERCIAL SUPPLIER
03-01-2022,Adults & Health,Abi Developments 3 Ltd t/a 1 Sewardstone Close,Nursing Homes - Private Contractors Payment,1643.01,0,NON COMMERCIAL SUPPLIER
03-01-2022,Adults & Health,Larchwood Care Homes (South) Limited t/a Dove Court,Residential Placements - Private Contractors Payment,550,0,COMMERCIAL SUPPLIER
03-01-2022,Adults & Health,Larchwood Care Homes (South) Limited t/a Dove Court,Residential Placements - Private Contractors Payment,550,0,COMMERCIAL SUPPLIER
03-01-2022,Adults & Health,Larchwood Care Homes (South) Limited t/a Dove Court,Residential Placements - Private Contractors Payment,550,0,COMMERCIAL SUPPLIER
03-01-2022,Adults & Health,Larchwood Care Homes (South) Limited t/a Dove Court,Residential Placements - Private Contractors Payment,550,0,COMMERCIAL SUPPLIER
03-01-2022,Adults & Health,DMP Healthcare (Cherry Orchard) Ltd,Nursing Homes - Private Contractors Payment,626,0,COMMERCIAL SUPPLIER
03-01-2022,Adults & Health,DMP Healthcare (Cherry Orchard) Ltd,Nursing Homes - Private Contractors Payment,626,0,COMMERCIAL SUPPLIER
03-01-2022,Adults & Health,DMP Healthcare (Cherry Orchard) Ltd,Nursing Homes - Private Contractors Payment,626,0,COMMERCIAL SUPPLIER
03-01-2022,Adults & Health,DMP Healthcare (Cherry Orchard) Ltd,Nursing Homes - Private Contractors Payment,626,0,COMMERCIAL SUPPLIER
03-01-2022,Adults & Health,Ebenezer Residential Care Home,Supported Other Accommodation - Private Contractors Payment,1035,0,VENDOR
03-01-2022,Adults & Health,Ebenezer Residential Care Home,Supported Other Accommodation - Private Contractors Payment,1035,0,VENDOR
03-01-2022,Adults & Health,Ebenezer Residential Care Home,Supported Other Accommodation - Private Contractors Payment,1035,0,VENDOR
03-01-2022,Adults & Health,Ebenezer Residential Care Home,Supported Other Accommodation - Private Contractors Payment,1035,0,VENDOR
03-01-2022,Adults & Health,Vibrance,Supported Other Accommodation - Private Contractors Payment,1863.99,0,VOLUNTARY ORGANISATION
03-01-2022,Adults & Health,Vibrance,Supported Other Accommodation - Private Contractors Payment,1910.2,0,VOLUNTARY ORGANISATION
03-01-2022,Adults & Health,Ambient Support Ltd,Supported Other Accommodation - Private Contractors Payment,937.04,0,VENDOR
03-01-2022,Adults & Health,Vibrance,Supported Other Accommodation - Private Contractors Payment,1910.2,0,VOLUNTARY ORGANISATION
03-01-2022,Adults & Health,Vibrance,Supported Other Accommodation - Private Contractors Payment,1863.99,0,VOLUNTARY ORGANISATION
03-01-2022,Adults & Health,Ambient Support Ltd,Supported Other Accommodation - Private Contractors Payment,704.45,0,VENDOR
03-01-2022,Adults & Health,Vibrance,Supported Other Accommodation - Private Contractors Payment,1863.99,0,VOLUNTARY ORGANISATION
03-01-2022,Adults & Health,Vibrance,Supported Other Accommodation - Private Contractors Payment,1910.2,0,VOLUNTARY ORGANISATION
03-01-2022,Adults & Health,Ambient Support Ltd,Supported Other Accommodation - Private Contractors Payment,937.04,0,VENDOR
03-01-2022,Adults & Health,Ambient Support Ltd,Supported Other Accommodation - Private Contractors Payment,704.45,0,VENDOR
03-01-2022,Adults & Health,Vibrance,Supported Other Accommodation - Private Contractors Payment,1910.2,0,VOLUNTARY ORGANISATION
03-01-2022,Adults & Health,Ambient Support Ltd,Supported Other Accommodation - Private Contractors Payment,704.45,0,VENDOR
03-01-2022,Adults & Health,Ambient Support Ltd,Supported Other Accommodation - Private Contractors Payment,937.04,0,VENDOR
03-01-2022,Adults & Health,Vibrance,Supported Other Accommodation - Private Contractors Payment,1863.99,0,VOLUNTARY ORGANISATION
03-01-2022,Adults & Health,Ambient Support Ltd,Supported Other Accommodation - Private Contractors Payment,937.04,0,VENDOR
03-01-2022,Adults & Health,Ambient Support Ltd,Supported Other Accommodation - Private Contractors Payment,704.45,0,VENDOR
03-01-2022,Adults & Health,Ebenezer Residential Care Home,Supported Other Accommodation - Private Contractors Payment,498.2,0,VENDOR
03-01-2022,Adults & Health,Leyton House Community Care Ltd,Supported Other Accommodation - Private Contractors Payment,689,0,COMMERCIAL SUPPLIER
03-01-2022,Adults & Health,Inclusive Care Support Ltd,Supported Other Accommodation - Private Contractors Payment,1625.45,0,COMMERCIAL SUPPLIER
03-01-2022,Adults & Health,Aldanat Care,Supported Other Accommodation - Private Contractors Payment,1777.87,0,VENDOR
03-01-2022,Adults & Health,Ebenezer Residential Care Home,Supported Other Accommodation - Private Contractors Payment,424,0,VENDOR
03-01-2022,Adults & Health,Inclusive Care Support Ltd,Supported Other Accommodation - Private Contractors Payment,801.89,0,COMMERCIAL SUPPLIER
03-01-2022,Adults & Health,Kalsi Care,Supported Other Accommodation - Private Contractors Payment,371,0,VENDOR
03-01-2022,Adults & Health,Ambient Support Ltd,Supported Other Accommodation - Private Contractors Payment,535.94,0,VENDOR
03-01-2022,Adults & Health,Inclusive Care Support Ltd,Supported Other Accommodation - Private Contractors Payment,942.34,0,COMMERCIAL SUPPLIER
03-01-2022,Adults & Health,First Choice Supported Living,Supported Other Accommodation - Private Contractors Payment,482.35,0,VENDOR
03-01-2022,Adults & Health,Phoenix Homes Uk Ltd,Supported Other Accommodation - Private Contractors Payment,1020.4,0,VENDOR
03-01-2022,Adults & Health,Saffron Care Homes,Supported Other Accommodation - Private Contractors Payment,932.56,0,VENDOR
03-01-2022,Adults & Health,Ebenezer Residential Care Home,Supported Other Accommodation - Private Contractors Payment,477,0,VENDOR
03-01-2022,Adults & Health,Care London Ltd,Supported Other Accommodation - Private Contractors Payment,795,0,VENDOR
03-01-2022,Adults & Health,Orchid Lodge Ltd,Supported Other Accommodation - Private Contractors Payment,530,0,VENDOR
03-01-2022,Adults & Health,Phoenix Homes Uk Ltd,Supported Other Accommodation - Private Contractors Payment,530,0,VENDOR
03-01-2022,Adults & Health,Ebenezer Residential Care Home,Day Care Income,-4.53,0,VENDOR
03-01-2022,Adults & Health,Ebenezer Residential Care Home,Supported Other Accommodation - Private Contractors Payment,466.4,0,VENDOR
03-01-2022,Adults & Health,Three Cs,Supported Other Accommodation - Private Contractors Payment,661.58,0,VENDOR
03-01-2022,Adults & Health,Care London Ltd,Supported Other Accommodation - Private Contractors Payment,689,0,VENDOR
03-01-2022,Adults & Health,L & Q Living,Supported Other Accommodation - Private Contractors Payment,1255.02,0,VENDOR
03-01-2022,Adults & Health,S & E Housing,Supported Other Accommodation - Private Contractors Payment,689,0,VENDOR
03-01-2022,Adults & Health,Leyton House Community Care Ltd,Supported Other Accommodation - Private Contractors Payment,689,0,COMMERCIAL SUPPLIER
03-01-2022,Adults & Health,Ebenezer Residential Care Home,Supported Other Accommodation - Private Contractors Payment,477,0,VENDOR
03-01-2022,Adults & Health,Inclusive Care Support Ltd,Supported Other Accommodation - Private Contractors Payment,801.89,0,COMMERCIAL SUPPLIER
03-01-2022,Adults & Health,Aldanat Care,Supported Other Accommodation - Private Contractors Payment,1777.87,0,VENDOR
03-01-2022,Adults & Health,Ambient Support Ltd,Supported Other Accommodation - Private Contractors Payment,535.94,0,VENDOR
03-01-2022,Adults & Health,Inclusive Care Support Ltd,Supported Other Accommodation - Private Contractors Payment,942.34,0,COMMERCIAL SUPPLIER
03-01-2022,Adults & Health,Premier Care Contracts,Supported Other Accommodation - Private Contractors Payment,614.8,0,VENDOR
03-01-2022,Adults & Health,Orchid Lodge Ltd,Supported Other Accommodation - Private Contractors Payment,530,0,VENDOR
03-01-2022,Adults & Health,Kalsi Care,Supported Other Accommodation - Private Contractors Payment,371,0,VENDOR
03-01-2022,Adults & Health,Saffron Care Homes,Supported Other Accommodation - Private Contractors Payment,932.56,0,VENDOR
03-01-2022,Adults & Health,Ebenezer Residential Care Home,Supported Other Accommodation - Private Contractors Payment,424,0,VENDOR
03-01-2022,Adults & Health,Ambient Support Ltd,Supported Other Accommodation - Private Contractors Payment,795,0,VENDOR
03-01-2022,Adults & Health,Inclusive Care Support Ltd,Supported Other Accommodation - Private Contractors Payment,1225.56,0,COMMERCIAL SUPPLIER
03-01-2022,Adults & Health,First Choice Supported Living,Supported Other Accommodation - Private Contractors Payment,482.35,0,VENDOR
03-01-2022,Adults & Health,Orchid Lodge Ltd,Supported Other Accommodation - Private Contractors Payment,371,0,VENDOR
03-01-2022,Adults & Health,Phoenix Homes Uk Ltd,Supported Other Accommodation - Private Contractors Payment,530,0,VENDOR
03-01-2022,Adults & Health,Saffron Care Homes,Supported Other Accommodation - Private Contractors Payment,762.3,0,VENDOR
03-01-2022,Adults & Health,Three Cs,Supported Other Accommodation - Private Contractors Payment,661.58,0,VENDOR
03-01-2022,Adults & Health,Care London Ltd,Supported Other Accommodation - Private Contractors Payment,689,0,VENDOR
03-01-2022,Adults & Health,Phoenix Homes Uk Ltd,Supported Other Accommodation - Private Contractors Payment,1020.4,0,VENDOR
03-01-2022,Adults & Health,Ebenezer Residential Care Home,Supported Other Accommodation - Private Contractors Payment,477,0,VENDOR
03-01-2022,Adults & Health,Care London Ltd,Supported Other Accommodation - Private Contractors Payment,795,0,VENDOR
03-01-2022,Adults & Health,Ebenezer Residential Care Home,Supported Other Accommodation - Private Contractors Payment,498.2,0,VENDOR
03-01-2022,Adults & Health,Ebenezer Residential Care Home,Day Care Income,-4.53,0,VENDOR
03-01-2022,Adults & Health,Ebenezer Residential Care Home,Supported Other Accommodation - Private Contractors Payment,466.4,0,VENDOR
03-01-2022,Adults & Health,Inclusive Care Support Ltd,Supported Other Accommodation - Private Contractors Payment,942.34,0,COMMERCIAL SUPPLIER
03-01-2022,Adults & Health,Premier Care Contracts,Supported Other Accommodation - Private Contractors Payment,614.8,0,VENDOR
03-01-2022,Adults & Health,Aldanat Care,Supported Other Accommodation - Private Contractors Payment,1777.87,0,VENDOR
03-01-2022,Adults & Health,Ebenezer Residential Care Home,Supported Other Accommodation - Private Contractors Payment,477,0,VENDOR
03-01-2022,Adults & Health,Ambient Support Ltd,Supported Other Accommodation - Private Contractors Payment,795,0,VENDOR
03-01-2022,Adults & Health,Inclusive Care Support Ltd,Supported Other Accommodation - Private Contractors Payment,1225.56,0,COMMERCIAL SUPPLIER
03-01-2022,Adults & Health,Kalsi Care,Supported Other Accommodation - Private Contractors Payment,371,0,VENDOR
03-01-2022,Adults & Health,Saffron Care Homes,Supported Other Accommodation - Private Contractors Payment,762.3,0,VENDOR
03-01-2022,Adults & Health,Ambient Support Ltd,Supported Other Accommodation - Private Contractors Payment,535.94,0,VENDOR
03-01-2022,Adults & Health,Inclusive Care Support Ltd,Supported Other Accommodation - Private Contractors Payment,1625.45,0,COMMERCIAL SUPPLIER
03-01-2022,Adults & Health,Orchid Lodge Ltd,Supported Other Accommodation - Private Contractors Payment,530,0,VENDOR
03-01-2022,Adults & Health,Phoenix Homes Uk Ltd,Supported Other Accommodation - Private Contractors Payment,1020.4,0,VENDOR
03-01-2022,Adults & Health,Saffron Care Homes,Supported Other Accommodation - Private Contractors Payment,932.56,0,VENDOR
03-01-2022,Adults & Health,Ebenezer Residential Care Home,Supported Other Accommodation - Private Contractors Payment,424,0,VENDOR
03-01-2022,Adults & Health,Care London Ltd,Supported Other Accommodation - Private Contractors Payment,795,0,VENDOR
03-01-2022,Adults & Health,Orchid Lodge Ltd,Supported Other Accommodation - Private Contractors Payment,371,0,VENDOR
03-01-2022,Adults & Health,L & Q Living,Supported Other Accommodation - Private Contractors Payment,1255.02,0,VENDOR
03-01-2022,Adults & Health,S & E Housing,Supported Other Accommodation - Private Contractors Payment,689,0,VENDOR
03-01-2022,Adults & Health,Ebenezer Residential Care Home,Supported Other Accommodation - Private Contractors Payment,498.2,0,VENDOR
03-01-2022,Adults & Health,Leyton House Community Care Ltd,Supported Other Accommodation - Private Contractors Payment,689,0,COMMERCIAL SUPPLIER
03-01-2022,Adults & Health,Inclusive Care Support Ltd,Supported Other Accommodation - Private Contractors Payment,942.34,0,COMMERCIAL SUPPLIER
03-01-2022,Adults & Health,Ebenezer Residential Care Home,Supported Other Accommodation - Private Contractors Payment,477,0,VENDOR
03-01-2022,Adults & Health,Inclusive Care Support Ltd,Supported Other Accommodation - Private Contractors Payment,1225.56,0,COMMERCIAL SUPPLIER
03-01-2022,Adults & Health,Ebenezer Residential Care Home,Supported Other Accommodation - Private Contractors Payment,466.4,0,VENDOR
03-01-2022,Adults & Health,Ebenezer Residential Care Home,Day Care Income,-4.53,0,VENDOR
03-01-2022,Adults & Health,Ambient Support Ltd,Supported Other Accommodation - Private Contractors Payment,535.94,0,VENDOR
03-01-2022,Adults & Health,Inclusive Care Support Ltd,Supported Other Accommodation - Private Contractors Payment,1625.45,0,COMMERCIAL SUPPLIER
03-01-2022,Adults & Health,Premier Care Contracts,Supported Other Accommodation - Private Contractors Payment,614.8,0,VENDOR
03-01-2022,Adults & Health,First Choice Supported Living,Supported Other Accommodation - Private Contractors Payment,482.35,0,VENDOR
03-01-2022,Adults & Health,Orchid Lodge Ltd,Supported Other Accommodation - Private Contractors Payment,371,0,VENDOR
03-01-2022,Adults & Health,Saffron Care Homes,Supported Other Accommodation - Private Contractors Payment,932.56,0,VENDOR
03-01-2022,Adults & Health,Ebenezer Residential Care Home,Supported Other Accommodation - Private Contractors Payment,477,0,VENDOR
03-01-2022,Adults & Health,Ambient Support Ltd,Supported Other Accommodation - Private Contractors Payment,795,0,VENDOR
03-01-2022,Adults & Health,Inclusive Care Support Ltd,Supported Other Accommodation - Private Contractors Payment,801.89,0,COMMERCIAL SUPPLIER
03-01-2022,Adults & Health,Phoenix Homes Uk Ltd,Supported Other Accommodation - Private Contractors Payment,530,0,VENDOR
03-01-2022,Adults & Health,Saffron Care Homes,Supported Other Accommodation - Private Contractors Payment,762.3,0,VENDOR
03-01-2022,Adults & Health,Three Cs,Supported Other Accommodation - Private Contractors Payment,661.58,0,VENDOR
03-01-2022,Adults & Health,Care London Ltd,Supported Other Accommodation - Private Contractors Payment,689,0,VENDOR
03-01-2022,Adults & Health,Ebenezer Residential Care Home,Supported Other Accommodation - Private Contractors Payment,424,0,VENDOR
03-01-2022,Adults & Health,S & E Housing,Supported Other Accommodation - Private Contractors Payment,689,0,VENDOR
03-01-2022,Adults & Health,L & Q Living,Supported Other Accommodation - Private Contractors Payment,1255.02,0,VENDOR
03-01-2022,Adults & Health,Leyton House Community Care Ltd,Supported Other Accommodation - Private Contractors Payment,689,0,COMMERCIAL SUPPLIER
03-01-2022,Adults & Health,Ebenezer Residential Care Home,Supported Other Accommodation - Private Contractors Payment,498.2,0,VENDOR
03-01-2022,Adults & Health,Inclusive Care Support Ltd,Supported Other Accommodation - Private Contractors Payment,1225.56,0,COMMERCIAL SUPPLIER
03-01-2022,Adults & Health,Aldanat Care,Supported Other Accommodation - Private Contractors Payment,1777.87,0,VENDOR
03-01-2022,Adults & Health,Inclusive Care Support Ltd,Supported Other Accommodation - Private Contractors Payment,1625.45,0,COMMERCIAL SUPPLIER
03-01-2022,Adults & Health,Premier Care Contracts,Supported Other Accommodation - Private Contractors Payment,614.8,0,VENDOR
03-01-2022,Adults & Health,Kalsi Care,Supported Other Accommodation - Private Contractors Payment,371,0,VENDOR
03-01-2022,Adults & Health,Ebenezer Residential Care Home,Supported Other Accommodation - Private Contractors Payment,477,0,VENDOR
03-01-2022,Adults & Health,Ambient Support Ltd,Supported Other Accommodation - Private Contractors Payment,795,0,VENDOR
03-01-2022,Adults & Health,Inclusive Care Support Ltd,Supported Other Accommodation - Private Contractors Payment,801.89,0,COMMERCIAL SUPPLIER
03-01-2022,Adults & Health,First Choice Supported Living,Supported Other Accommodation - Private Contractors Payment,482.35,0,VENDOR
03-01-2022,Adults & Health,Orchid Lodge Ltd,Supported Other Accommodation - Private Contractors Payment,530,0,VENDOR
03-01-2022,Adults & Health,Phoenix Homes Uk Ltd,Supported Other Accommodation - Private Contractors Payment,530,0,VENDOR
03-01-2022,Adults & Health,Saffron Care Homes,Supported Other Accommodation - Private Contractors Payment,762.3,0,VENDOR
03-01-2022,Adults & Health,Ebenezer Residential Care Home,Supported Other Accommodation - Private Contractors Payment,466.4,0,VENDOR
03-01-2022,Adults & Health,Ebenezer Residential Care Home,Day Care Income,-4.53,0,VENDOR
03-01-2022,Adults & Health,Three Cs,Supported Other Accommodation - Private Contractors Payment,661.58,0,VENDOR
03-01-2022,Adults & Health,Care London Ltd,Supported Other Accommodation - Private Contractors Payment,689,0,VENDOR
03-01-2022,Adults & Health,Orchid Lodge Ltd,Supported Other Accommodation - Private Contractors Payment,371,0,VENDOR
03-01-2022,Adults & Health,Phoenix Homes Uk Ltd,Supported Other Accommodation - Private Contractors Payment,1020.4,0,VENDOR
03-01-2022,Adults & Health,L & Q Living,Supported Other Accommodation - Private Contractors Payment,1255.02,0,VENDOR
03-01-2022,Adults & Health,Ebenezer Residential Care Home,Supported Other Accommodation - Private Contractors Payment,477,0,VENDOR
03-01-2022,Adults & Health,Care London Ltd,Supported Other Accommodation - Private Contractors Payment,795,0,VENDOR
03-01-2022,Adults & Health,S & E Housing,Supported Other Accommodation - Private Contractors Payment,689,0,VENDOR
03-01-2022,Adults & Health,S & E Housing,Supported Other Accommodation - Private Contractors Payment,689,0,VENDOR
03-01-2022,Adults & Health,S & E Housing,Supported Other Accommodation - Private Contractors Payment,689,0,VENDOR
03-01-2022,Adults & Health,S & E Housing,Supported Other Accommodation - Private Contractors Payment,689,0,VENDOR
03-01-2022,Adults & Health,S & E Housing,Supported Other Accommodation - Private Contractors Payment,689,0,VENDOR
03-01-2022,Adults & Health,Ambient Support Ltd,Supported Other Accommodation - Private Contractors Payment,895.7,0,VENDOR
03-01-2022,Adults & Health,Ambient Support Ltd,Supported Other Accommodation - Private Contractors Payment,861.78,0,VENDOR
03-01-2022,Adults & Health,Affinia Health Care,Supported Other Accommodation - Private Contractors Payment,477.03,0,VENDOR
03-01-2022,Adults & Health,Ambient Support Ltd,Supported Other Accommodation - Private Contractors Payment,824.68,0,VENDOR
03-01-2022,Adults & Health,Ambient Support Ltd,Supported Other Accommodation - Private Contractors Payment,824.68,0,VENDOR
03-01-2022,Adults & Health,Platform Support Services,Supported Other Accommodation - Private Contractors Payment,455.8,0,COMMERCIAL SUPPLIER
03-01-2022,Adults & Health,Ambient Support Ltd,Supported Other Accommodation - Private Contractors Payment,978.38,0,VENDOR
03-01-2022,Adults & Health,Platform Support Services,Supported Other Accommodation - Private Contractors Payment,487.6,0,COMMERCIAL SUPPLIER
03-01-2022,Adults & Health,Vibrance,Supported Other Accommodation - Private Contractors Payment,1723.86,0,VOLUNTARY ORGANISATION
03-01-2022,Adults & Health,Vibrance,Supported Other Accommodation - Private Contractors Payment,1980.23,0,VOLUNTARY ORGANISATION
03-01-2022,Adults & Health,Precious Homes Ltd,Supported Other Accommodation - Private Contractors Payment,827.33,0,COMMERCIAL SUPPLIER
03-01-2022,Adults & Health,Ambient Support Ltd,Supported Other Accommodation - Private Contractors Payment,895.7,0,VENDOR
03-01-2022,Adults & Health,Ambient Support Ltd,Supported Other Accommodation - Private Contractors Payment,861.78,0,VENDOR
03-01-2022,Adults & Health,Ambient Support Ltd,Supported Other Accommodation - Private Contractors Payment,1239.14,0,VENDOR
03-01-2022,Adults & Health,Ambient Support Ltd,Supported Other Accommodation - Private Contractors Payment,898.88,0,VENDOR
03-01-2022,Adults & Health,Ambient Support Ltd,Supported Other Accommodation - Private Contractors Payment,1239.14,0,VENDOR
03-01-2022,Adults & Health,Ambient Support Ltd,Supported Other Accommodation - Private Contractors Payment,978.38,0,VENDOR
03-01-2022,Adults & Health,Platform Support Services,Supported Other Accommodation - Private Contractors Payment,487.6,0,COMMERCIAL SUPPLIER
03-01-2022,Adults & Health,Ambient Support Ltd,Supported Other Accommodation - Private Contractors Payment,679.57,0,VENDOR
03-01-2022,Adults & Health,Platform Support Services,Supported Other Accommodation - Private Contractors Payment,455.8,0,COMMERCIAL SUPPLIER
03-01-2022,Adults & Health,Vibrance,Supported Other Accommodation - Private Contractors Payment,1980.23,0,VOLUNTARY ORGANISATION
03-01-2022,Adults & Health,Vibrance,Supported Other Accommodation - Private Contractors Payment,1723.86,0,VOLUNTARY ORGANISATION
03-01-2022,Adults & Health,Precious Homes Ltd,Supported Other Accommodation - Private Contractors Payment,561.91,0,COMMERCIAL SUPPLIER
03-01-2022,Adults & Health,Ambient Support Ltd,Supported Other Accommodation - Private Contractors Payment,861.78,0,VENDOR
03-01-2022,Adults & Health,Ambient Support Ltd,Supported Other Accommodation - Private Contractors Payment,978.38,0,VENDOR
03-01-2022,Adults & Health,Affinia Health Care,Supported Other Accommodation - Private Contractors Payment,477.03,0,VENDOR
03-01-2022,Adults & Health,Ambient Support Ltd,Supported Other Accommodation - Private Contractors Payment,824.68,0,VENDOR
03-01-2022,Adults & Health,Ambient Support Ltd,Supported Other Accommodation - Private Contractors Payment,679.57,0,VENDOR
03-01-2022,Adults & Health,Platform Support Services,Supported Other Accommodation - Private Contractors Payment,455.8,0,COMMERCIAL SUPPLIER
03-01-2022,Adults & Health,Platform Support Services,Supported Other Accommodation - Private Contractors Payment,487.6,0,COMMERCIAL SUPPLIER
03-01-2022,Adults & Health,Vibrance,Supported Other Accommodation - Private Contractors Payment,1723.86,0,VOLUNTARY ORGANISATION
03-01-2022,Adults & Health,Precious Homes Ltd,Supported Other Accommodation - Private Contractors Payment,561.91,0,COMMERCIAL SUPPLIER
03-01-2022,Adults & Health,Precious Homes Ltd,Supported Other Accommodation - Private Contractors Payment,827.33,0,COMMERCIAL SUPPLIER
03-01-2022,Adults & Health,Ambient Support Ltd,Supported Other Accommodation - Private Contractors Payment,898.88,0,VENDOR
03-01-2022,Adults & Health,Ambient Support Ltd,Supported Other Accommodation - Private Contractors Payment,978.38,0,VENDOR
03-01-2022,Adults & Health,Ambient Support Ltd,Supported Other Accommodation - Private Contractors Payment,898.88,0,VENDOR
03-01-2022,Adults & Health,Ambient Support Ltd,Supported Other Accommodation - Private Contractors Payment,679.57,0,VENDOR
03-01-2022,Adults & Health,Affinia Health Care,Supported Other Accommodation - Private Contractors Payment,477.03,0,VENDOR
03-01-2022,Adults & Health,Ambient Support Ltd,Supported Other Accommodation - Private Contractors Payment,1239.14,0,VENDOR
03-01-2022,Adults & Health,Ambient Support Ltd,Supported Other Accommodation - Private Contractors Payment,895.7,0,VENDOR
03-01-2022,Adults & Health,Platform Support Services,Supported Other Accommodation - Private Contractors Payment,487.6,0,COMMERCIAL SUPPLIER
03-01-2022,Adults & Health,Vibrance,Supported Other Accommodation - Private Contractors Payment,1980.23,0,VOLUNTARY ORGANISATION
03-01-2022,Adults & Health,Precious Homes Ltd,Supported Other Accommodation - Private Contractors Payment,827.33,0,COMMERCIAL SUPPLIER
03-01-2022,Adults & Health,Precious Homes Ltd,Supported Other Accommodation - Private Contractors Payment,561.91,0,COMMERCIAL SUPPLIER
03-01-2022,Adults & Health,Ambient Support Ltd,Supported Other Accommodation - Private Contractors Payment,824.68,0,VENDOR
03-01-2022,Adults & Health,Ambient Support Ltd,Supported Other Accommodation - Private Contractors Payment,679.57,0,VENDOR
03-01-2022,Adults & Health,Ambient Support Ltd,Supported Other Accommodation - Private Contractors Payment,895.7,0,VENDOR
03-01-2022,Adults & Health,Affinia Health Care,Supported Other Accommodation - Private Contractors Payment,477.03,0,VENDOR
03-01-2022,Adults & Health,Ambient Support Ltd,Supported Other Accommodation - Private Contractors Payment,898.88,0,VENDOR
03-01-2022,Adults & Health,Ambient Support Ltd,Supported Other Accommodation - Private Contractors Payment,861.78,0,VENDOR
03-01-2022,Adults & Health,Platform Support Services,Supported Other Accommodation - Private Contractors Payment,455.8,0,COMMERCIAL SUPPLIER
03-01-2022,Adults & Health,Vibrance,Supported Other Accommodation - Private Contractors Payment,1980.23,0,VOLUNTARY ORGANISATION
03-01-2022,Adults & Health,Vibrance,Supported Other Accommodation - Private Contractors Payment,1723.86,0,VOLUNTARY ORGANISATION
03-01-2022,Adults & Health,Precious Homes Ltd,Supported Other Accommodation - Private Contractors Payment,561.91,0,COMMERCIAL SUPPLIER
03-01-2022,Adults & Health,Precious Homes Ltd,Supported Other Accommodation - Private Contractors Payment,827.33,0,COMMERCIAL SUPPLIER
03-01-2022,Adults & Health,Ambient Support Ltd,Supported Other Accommodation - Private Contractors Payment,1239.14,0,VENDOR
03-01-2022,Adults & Health,Inclusive Care Support Ltd,Supported Other Accommodation - Private Contractors Payment,823.09,0,COMMERCIAL SUPPLIER
03-01-2022,Adults & Health,Inclusive Care Support Ltd,Supported Other Accommodation - Private Contractors Payment,1054.7,0,COMMERCIAL SUPPLIER
03-01-2022,Adults & Health,Inclusive Care Support Ltd,Supported Other Accommodation - Private Contractors Payment,1181.31,0,COMMERCIAL SUPPLIER
03-01-2022,Adults & Health,Premier Care Contracts,Supported Other Accommodation - Private Contractors Payment,424,0,VENDOR
03-01-2022,Adults & Health,Premier Care Contracts,Supported Other Accommodation - Private Contractors Payment,371,0,VENDOR
03-01-2022,Adults & Health,Inclusive Care Support Ltd,Supported Other Accommodation - Private Contractors Payment,1181.31,0,COMMERCIAL SUPPLIER
03-01-2022,Adults & Health,Inclusive Care Support Ltd,Supported Other Accommodation - Private Contractors Payment,823.09,0,COMMERCIAL SUPPLIER
03-01-2022,Adults & Health,Inclusive Care Support Ltd,Supported Other Accommodation - Private Contractors Payment,1054.7,0,COMMERCIAL SUPPLIER
03-01-2022,Adults & Health,Premier Care Contracts,Supported Other Accommodation - Private Contractors Payment,371,0,VENDOR
03-01-2022,Adults & Health,Inclusive Care Support Ltd,Supported Other Accommodation - Private Contractors Payment,1054.7,0,COMMERCIAL SUPPLIER
03-01-2022,Adults & Health,Inclusive Care Support Ltd,Supported Other Accommodation - Private Contractors Payment,1181.31,0,COMMERCIAL SUPPLIER
03-01-2022,Adults & Health,Premier Care Contracts,Supported Other Accommodation - Private Contractors Payment,371,0,VENDOR
03-01-2022,Adults & Health,Premier Care Contracts,Supported Other Accommodation - Private Contractors Payment,424,0,VENDOR
03-01-2022,Adults & Health,Premier Care Contracts,Supported Other Accommodation - Private Contractors Payment,424,0,VENDOR
03-01-2022,Adults & Health,Inclusive Care Support Ltd,Supported Other Accommodation - Private Contractors Payment,823.09,0,COMMERCIAL SUPPLIER
03-01-2022,Adults & Health,Inclusive Care Support Ltd,Supported Other Accommodation - Private Contractors Payment,1054.7,0,COMMERCIAL SUPPLIER
03-01-2022,Adults & Health,Premier Care Contracts,Supported Other Accommodation - Private Contractors Payment,371,0,VENDOR
03-01-2022,Adults & Health,Premier Care Contracts,Supported Other Accommodation - Private Contractors Payment,424,0,VENDOR
03-01-2022,Adults & Health,Premier Care Contracts,Supported Other Accommodation - Private Contractors Payment,424,0,VENDOR
03-01-2022,Adults & Health,Premier Care Contracts,Supported Other Accommodation - Private Contractors Payment,424,0,VENDOR
03-01-2022,Adults & Health,Inclusive Care Support Ltd,Supported Other Accommodation - Private Contractors Payment,1181.31,0,COMMERCIAL SUPPLIER
03-01-2022,Adults & Health,Inclusive Care Support Ltd,Supported Other Accommodation - Private Contractors Payment,823.09,0,COMMERCIAL SUPPLIER
03-01-2022,Adults & Health,Premier Care Contracts,Supported Other Accommodation - Private Contractors Payment,424,0,VENDOR
03-01-2022,Adults & Health,Premier Care Contracts,Supported Other Accommodation - Private Contractors Payment,424,0,VENDOR
03-01-2022,Adults & Health,Leyton House Community Care Ltd,Supported Other Accommodation - Private Contractors Payment,689,0,COMMERCIAL SUPPLIER
03-01-2022,Adults & Health,Leyton House Community Care Ltd,Supported Other Accommodation - Private Contractors Payment,524.7,0,COMMERCIAL SUPPLIER
03-01-2022,Adults & Health,Leyton House Community Care Ltd,Supported Other Accommodation - Private Contractors Payment,524.7,0,COMMERCIAL SUPPLIER
03-01-2022,Adults & Health,Leyton House Community Care Ltd,Supported Other Accommodation - Private Contractors Payment,689,0,COMMERCIAL SUPPLIER
03-01-2022,Adults & Health,Leyton House Community Care Ltd,Supported Other Accommodation - Private Contractors Payment,689,0,COMMERCIAL SUPPLIER
03-01-2022,Adults & Health,Leyton House Community Care Ltd,Supported Other Accommodation - Private Contractors Payment,524.7,0,COMMERCIAL SUPPLIER
03-01-2022,Adults & Health,Leyton House Community Care Ltd,Supported Other Accommodation - Private Contractors Payment,524.7,0,COMMERCIAL SUPPLIER
03-01-2022,Adults & Health,Leyton House Community Care Ltd,Supported Other Accommodation - Private Contractors Payment,689,0,COMMERCIAL SUPPLIER
03-01-2022,Adults & Health,Care London Ltd,Supported Other Accommodation - Private Contractors Payment,731.4,0,VENDOR
03-01-2022,Adults & Health,Care London Ltd,Supported Other Accommodation - Private Contractors Payment,731.4,0,VENDOR
03-01-2022,Adults & Health,Premier Care Contracts,Supported Other Accommodation - Private Contractors Payment,424,0,VENDOR
03-01-2022,Adults & Health,Phoenix Homes Uk Ltd,Supported Other Accommodation - Private Contractors Payment,689,0,VENDOR
03-01-2022,Adults & Health,Care London Ltd,Supported Other Accommodation - Private Contractors Payment,731.4,0,VENDOR
03-01-2022,Adults & Health,Ambient Support Ltd,Supported Other Accommodation - Private Contractors Payment,844.82,0,VENDOR
03-01-2022,Adults & Health,Phoenix Homes Uk Ltd,Supported Other Accommodation - Private Contractors Payment,795,0,VENDOR
03-01-2022,Adults & Health,Care London Ltd,Supported Other Accommodation - Private Contractors Payment,731.4,0,VENDOR
03-01-2022,Adults & Health,Phoenix Homes Uk Ltd,Supported Other Accommodation - Private Contractors Payment,715.5,0,VENDOR
03-01-2022,Adults & Health,Phoenix Homes Uk Ltd,Supported Other Accommodation - Private Contractors Payment,726.1,0,VENDOR
03-01-2022,Adults & Health,First Care Lodge Ltd,Supported Other Accommodation - Private Contractors Payment,477,0,COMMERCIAL SUPPLIER
03-01-2022,Adults & Health,First Care Lodge Ltd,Supported Other Accommodation - Private Contractors Payment,689,0,COMMERCIAL SUPPLIER
03-01-2022,Adults & Health,Care London Ltd,Supported Other Accommodation - Private Contractors Payment,689,0,VENDOR
03-01-2022,Adults & Health,Care London Ltd,Supported Other Accommodation - Private Contractors Payment,689,0,VENDOR
03-01-2022,Adults & Health,Phoenix Homes Uk Ltd,Supported Other Accommodation - Private Contractors Payment,689,0,VENDOR
03-01-2022,Adults & Health,Care London Ltd,Supported Other Accommodation - Private Contractors Payment,689,0,VENDOR
03-01-2022,Adults & Health,Ambient Support Ltd,Supported Other Accommodation - Private Contractors Payment,844.82,0,VENDOR
03-01-2022,Adults & Health,Care London Ltd,Supported Other Accommodation - Private Contractors Payment,689,0,VENDOR
03-01-2022,Adults & Health,Phoenix Homes Uk Ltd,Supported Other Accommodation - Private Contractors Payment,689,0,VENDOR
03-01-2022,Adults & Health,Phoenix Homes Uk Ltd,Supported Other Accommodation - Private Contractors Payment,795,0,VENDOR
03-01-2022,Adults & Health,Phoenix Homes Uk Ltd,Supported Other Accommodation - Private Contractors Payment,715.5,0,VENDOR
03-01-2022,Adults & Health,First Care Lodge Ltd,Supported Other Accommodation - Private Contractors Payment,689,0,COMMERCIAL SUPPLIER
03-01-2022,Adults & Health,Care London Ltd,Supported Other Accommodation - Private Contractors Payment,689,0,VENDOR
03-01-2022,Adults & Health,Care London Ltd,Supported Other Accommodation - Private Contractors Payment,689,0,VENDOR
03-01-2022,Adults & Health,Premier Care Contracts,Supported Other Accommodation - Private Contractors Payment,424,0,VENDOR
03-01-2022,Adults & Health,Phoenix Homes Uk Ltd,Supported Other Accommodation - Private Contractors Payment,726.1,0,VENDOR
03-01-2022,Adults & Health,Care London Ltd,Supported Other Accommodation - Private Contractors Payment,689,0,VENDOR
03-01-2022,Adults & Health,Phoenix Homes Uk Ltd,Supported Other Accommodation - Private Contractors Payment,689,0,VENDOR
03-01-2022,Adults & Health,Care London Ltd,Supported Other Accommodation - Private Contractors Payment,689,0,VENDOR
03-01-2022,Adults & Health,Ambient Support Ltd,Supported Other Accommodation - Private Contractors Payment,844.82,0,VENDOR
03-01-2022,Adults & Health,Phoenix Homes Uk Ltd,Supported Other Accommodation - Private Contractors Payment,689,0,VENDOR
03-01-2022,Adults & Health,Phoenix Homes Uk Ltd,Supported Other Accommodation - Private Contractors Payment,795,0,VENDOR
03-01-2022,Adults & Health,First Care Lodge Ltd,Supported Other Accommodation - Private Contractors Payment,477,0,COMMERCIAL SUPPLIER
03-01-2022,Adults & Health,First Care Lodge Ltd,Supported Other Accommodation - Private Contractors Payment,689,0,COMMERCIAL SUPPLIER
03-01-2022,Adults & Health,Care London Ltd,Supported Other Accommodation - Private Contractors Payment,689,0,VENDOR
03-01-2022,Adults & Health,Care London Ltd,Supported Other Accommodation - Private Contractors Payment,689,0,VENDOR
03-01-2022,Adults & Health,Premier Care Contracts,Supported Other Accommodation - Private Contractors Payment,424,0,VENDOR
03-01-2022,Adults & Health,Phoenix Homes Uk Ltd,Supported Other Accommodation - Private Contractors Payment,715.5,0,VENDOR
03-01-2022,Adults & Health,Care London Ltd,Supported Other Accommodation - Private Contractors Payment,689,0,VENDOR
03-01-2022,Adults & Health,Ambient Support Ltd,Supported Other Accommodation - Private Contractors Payment,844.82,0,VENDOR
03-01-2022,Adults & Health,Phoenix Homes Uk Ltd,Supported Other Accommodation - Private Contractors Payment,726.1,0,VENDOR
03-01-2022,Adults & Health,Care London Ltd,Supported Other Accommodation - Private Contractors Payment,689,0,VENDOR
03-01-2022,Adults & Health,Phoenix Homes Uk Ltd,Supported Other Accommodation - Private Contractors Payment,689,0,VENDOR
03-01-2022,Adults & Health,Phoenix Homes Uk Ltd,Supported Other Accommodation - Private Contractors Payment,689,0,VENDOR
03-01-2022,Adults & Health,First Care Lodge Ltd,Supported Other Accommodation - Private Contractors Payment,477,0,COMMERCIAL SUPPLIER
03-01-2022,Adults & Health,Care London Ltd,Supported Other Accommodation - Private Contractors Payment,943.4,0,VENDOR
03-01-2022,Adults & Health,Care London Ltd,Supported Other Accommodation - Private Contractors Payment,943.4,0,VENDOR
03-01-2022,Adults & Health,Premier Care Contracts,Supported Other Accommodation - Private Contractors Payment,424,0,VENDOR
03-01-2022,Adults & Health,Phoenix Homes Uk Ltd,Supported Other Accommodation - Private Contractors Payment,795,0,VENDOR
03-01-2022,Adults & Health,Care London Ltd,Supported Other Accommodation - Private Contractors Payment,943.4,0,VENDOR
03-01-2022,Adults & Health,Phoenix Homes Uk Ltd,Supported Other Accommodation - Private Contractors Payment,715.5,0,VENDOR
03-01-2022,Adults & Health,Care London Ltd,Supported Other Accommodation - Private Contractors Payment,943.4,0,VENDOR
03-01-2022,Adults & Health,Phoenix Homes Uk Ltd,Supported Other Accommodation - Private Contractors Payment,726.1,0,VENDOR
03-01-2022,Adults & Health,Phoenix Homes Uk Ltd,Supported Other Accommodation - Private Contractors Payment,689,0,VENDOR
03-01-2022,Adults & Health,First Care Lodge Ltd,Supported Other Accommodation - Private Contractors Payment,477,0,COMMERCIAL SUPPLIER
03-01-2022,Adults & Health,First Care Lodge Ltd,Supported Other Accommodation - Private Contractors Payment,689,0,COMMERCIAL SUPPLIER
03-01-2022,Adults & Health,Inclusive Care Support Ltd,Supported Other Accommodation - Private Contractors Payment,823.09,0,COMMERCIAL SUPPLIER
03-01-2022,Adults & Health,Oaklodge Supporting Living Ltd,Supported Other Accommodation - Private Contractors Payment,826.8,0,VENDOR
03-01-2022,Adults & Health,Independant Community Support T/A Heaton Lodge,Supported Other Accommodation - Private Contractors Payment,1026.88,0,NON COMMERCIAL SUPPLIER
03-01-2022,Adults & Health,Woodlands Villa,Supported Other Accommodation - Private Contractors Payment,873.44,0,NON COMMERCIAL SUPPLIER
03-01-2022,Adults & Health,Inclusive Care Support Ltd,Supported Other Accommodation - Private Contractors Payment,1133.14,0,COMMERCIAL SUPPLIER
03-01-2022,Adults & Health,Kalsi Care,Supported Other Accommodation - Private Contractors Payment,636,0,VENDOR
03-01-2022,Adults & Health,Kalsi Care,Supported Other Accommodation - Private Contractors Payment,477,0,VENDOR
03-01-2022,Adults & Health,Kalsi Care,Supported Other Accommodation - Private Contractors Payment,636,0,VENDOR
03-01-2022,Adults & Health,Ebenezer Residential Care Home,Supported Other Accommodation - Private Contractors Payment,667.8,0,VENDOR
03-01-2022,Adults & Health,Kalsi Care,Supported Other Accommodation - Private Contractors Payment,477,0,VENDOR
03-01-2022,Adults & Health,Oaklodge Supporting Living Ltd,Supported Other Accommodation - Private Contractors Payment,508.8,0,VENDOR
03-01-2022,Adults & Health,Kalsi Care,Supported Other Accommodation - Private Contractors Payment,636,0,VENDOR
03-01-2022,Adults & Health,Kalsi Care,Supported Other Accommodation - Private Contractors Payment,477,0,VENDOR
03-01-2022,Adults & Health,Kalsi Care,Supported Other Accommodation - Private Contractors Payment,636,0,VENDOR
03-01-2022,Adults & Health,Kalsi Care,Supported Other Accommodation - Private Contractors Payment,477,0,VENDOR
03-01-2022,Adults & Health,Inclusive Care Support Ltd,Supported Other Accommodation - Private Contractors Payment,1442.52,0,COMMERCIAL SUPPLIER
03-01-2022,Adults & Health,Inclusive Care Support Ltd,Supported Other Accommodation - Private Contractors Payment,1442.52,0,COMMERCIAL SUPPLIER
03-01-2022,Adults & Health,Oaklodge Supporting Living Ltd,Supported Other Accommodation - Private Contractors Payment,508.8,0,VENDOR
03-01-2022,Adults & Health,Inclusive Care Support Ltd,Supported Other Accommodation - Private Contractors Payment,823.09,0,COMMERCIAL SUPPLIER
03-01-2022,Adults & Health,Woodlands Villa,Supported Other Accommodation - Private Contractors Payment,873.44,0,NON COMMERCIAL SUPPLIER
03-01-2022,Adults & Health,Kalsi Care,Supported Other Accommodation - Private Contractors Payment,424,0,VENDOR
03-01-2022,Adults & Health,Inclusive Care Support Ltd,Supported Other Accommodation - Private Contractors Payment,846.35,0,COMMERCIAL SUPPLIER
03-01-2022,Adults & Health,Ebenezer Residential Care Home,Supported Other Accommodation - Private Contractors Payment,424,0,VENDOR
03-01-2022,Adults & Health,Kalsi Care,Supported Other Accommodation - Private Contractors Payment,424,0,VENDOR
03-01-2022,Adults & Health,Kalsi Care,Supported Other Accommodation - Private Contractors Payment,424,0,VENDOR
03-01-2022,Adults & Health,Kalsi Care,Supported Other Accommodation - Private Contractors Payment,424,0,VENDOR
03-01-2022,Adults & Health,Inclusive Care Support Ltd,Supported Other Accommodation - Private Contractors Payment,1133.14,0,COMMERCIAL SUPPLIER
03-01-2022,Adults & Health,Inclusive Care Support Ltd,Supported Other Accommodation - Private Contractors Payment,846.35,0,COMMERCIAL SUPPLIER
03-01-2022,Adults & Health,Independant Community Support T/A Heaton Lodge,Supported Other Accommodation - Private Contractors Payment,1026.88,0,NON COMMERCIAL SUPPLIER
03-01-2022,Adults & Health,Woodlands Villa,Supported Other Accommodation - Private Contractors Payment,873.44,0,NON COMMERCIAL SUPPLIER
03-01-2022,Adults & Health,Kalsi Care,Supported Other Accommodation - Private Contractors Payment,477,0,VENDOR
03-01-2022,Adults & Health,Ebenezer Residential Care Home,Supported Other Accommodation - Private Contractors Payment,424,0,VENDOR
03-01-2022,Adults & Health,Kalsi Care,Supported Other Accommodation - Private Contractors Payment,477,0,VENDOR
03-01-2022,Adults & Health,Ebenezer Residential Care Home,Supported Other Accommodation - Private Contractors Payment,667.8,0,VENDOR
03-01-2022,Adults & Health,Inclusive Care Support Ltd,Supported Other Accommodation - Private Contractors Payment,1133.14,0,COMMERCIAL SUPPLIER
03-01-2022,Adults & Health,Oaklodge Supporting Living Ltd,Supported Other Accommodation - Private Contractors Payment,826.8,0,VENDOR
03-01-2022,Adults & Health,Kalsi Care,Supported Other Accommodation - Private Contractors Payment,477,0,VENDOR
03-01-2022,Adults & Health,Kalsi Care,Supported Other Accommodation - Private Contractors Payment,477,0,VENDOR
03-01-2022,Adults & Health,Inclusive Care Support Ltd,Supported Other Accommodation - Private Contractors Payment,823.09,0,COMMERCIAL SUPPLIER
03-01-2022,Adults & Health,Oaklodge Supporting Living Ltd,Supported Other Accommodation - Private Contractors Payment,826.8,0,VENDOR
03-01-2022,Adults & Health,Independant Community Support T/A Heaton Lodge,Supported Other Accommodation - Private Contractors Payment,1026.88,0,NON COMMERCIAL SUPPLIER
03-01-2022,Adults & Health,Woodlands Villa,Supported Other Accommodation - Private Contractors Payment,873.44,0,NON COMMERCIAL SUPPLIER
03-01-2022,Adults & Health,Inclusive Care Support Ltd,Supported Other Accommodation - Private Contractors Payment,823.09,0,COMMERCIAL SUPPLIER
03-01-2022,Adults & Health,Kalsi Care,Supported Other Accommodation - Private Contractors Payment,689,0,VENDOR
03-01-2022,Adults & Health,Ebenezer Residential Care Home,Supported Other Accommodation - Private Contractors Payment,667.8,0,VENDOR
03-01-2022,Adults & Health,Inclusive Care Support Ltd,Supported Other Accommodation - Private Contractors Payment,1442.52,0,COMMERCIAL SUPPLIER
03-01-2022,Adults & Health,Kalsi Care,Supported Other Accommodation - Private Contractors Payment,689,0,VENDOR
03-01-2022,Adults & Health,Ebenezer Residential Care Home,Supported Other Accommodation - Private Contractors Payment,424,0,VENDOR
03-01-2022,Adults & Health,Oaklodge Supporting Living Ltd,Supported Other Accommodation - Private Contractors Payment,508.8,0,VENDOR
03-01-2022,Adults & Health,Kalsi Care,Supported Other Accommodation - Private Contractors Payment,689,0,VENDOR
03-01-2022,Adults & Health,Kalsi Care,Supported Other Accommodation - Private Contractors Payment,689,0,VENDOR
03-01-2022,Adults & Health,Inclusive Care Support Ltd,Supported Other Accommodation - Private Contractors Payment,1442.52,0,COMMERCIAL SUPPLIER
03-01-2022,Adults & Health,Inclusive Care Support Ltd,Supported Other Accommodation - Private Contractors Payment,846.35,0,COMMERCIAL SUPPLIER
03-01-2022,Adults & Health,Oaklodge Supporting Living Ltd,Supported Other Accommodation - Private Contractors Payment,508.8,0,VENDOR
03-01-2022,Adults & Health,Independant Community Support T/A Heaton Lodge,Supported Other Accommodation - Private Contractors Payment,1026.88,0,NON COMMERCIAL SUPPLIER
03-01-2022,Adults & Health,Inclusive Care Support Ltd,Supported Other Accommodation - Private Contractors Payment,846.35,0,COMMERCIAL SUPPLIER
03-01-2022,Adults & Health,Kalsi Care,Supported Other Accommodation - Private Contractors Payment,482.3,0,VENDOR
03-01-2022,Adults & Health,Kalsi Care,Supported Other Accommodation - Private Contractors Payment,445.2,0,VENDOR
03-01-2022,Adults & Health,Ebenezer Residential Care Home,Supported Other Accommodation - Private Contractors Payment,424,0,VENDOR
03-01-2022,Adults & Health,Inclusive Care Support Ltd,Supported Other Accommodation - Private Contractors Payment,1133.14,0,COMMERCIAL SUPPLIER
03-01-2022,Adults & Health,Kalsi Care,Supported Other Accommodation - Private Contractors Payment,482.3,0,VENDOR
03-01-2022,Adults & Health,Ebenezer Residential Care Home,Supported Other Accommodation - Private Contractors Payment,667.8,0,VENDOR
03-01-2022,Adults & Health,Oaklodge Supporting Living Ltd,Supported Other Accommodation - Private Contractors Payment,826.8,0,VENDOR
03-01-2022,Adults & Health,Kalsi Care,Supported Other Accommodation - Private Contractors Payment,445.2,0,VENDOR
03-01-2022,Adults & Health,Kalsi Care,Supported Other Accommodation - Private Contractors Payment,482.3,0,VENDOR
03-01-2022,Adults & Health,Kalsi Care,Supported Other Accommodation - Private Contractors Payment,445.2,0,VENDOR
03-01-2022,Adults & Health,Kalsi Care,Supported Other Accommodation - Private Contractors Payment,482.3,0,VENDOR
03-01-2022,Adults & Health,Kalsi Care,Supported Other Accommodation - Private Contractors Payment,445.2,0,VENDOR
03-01-2022,Adults & Health,Tender Heart Supported Accommodation,Supported Other Accommodation - Private Contractors Payment,424,0,VENDOR
03-01-2022,Adults & Health,Tender Heart Supported Accommodation,Supported Other Accommodation - Private Contractors Payment,286.2,0,VENDOR
03-01-2022,Adults & Health,L & Q Living,Supported Other Accommodation - Private Contractors Payment,1471.39,0,VENDOR
03-01-2022,Adults & Health,Saffron Care Homes,Supported Other Accommodation - Private Contractors Payment,1172.43,0,VENDOR
03-01-2022,Adults & Health,Leyton House Community Care Ltd,Supported Other Accommodation - Private Contractors Payment,689,0,COMMERCIAL SUPPLIER
03-01-2022,Adults & Health,Ebenezer Residential Care Home,Supported Other Accommodation - Private Contractors Payment,673.1,0,VENDOR
03-01-2022,Adults & Health,Orchid Lodge Ltd,Supported Other Accommodation - Private Contractors Payment,477,0,VENDOR
03-01-2022,Adults & Health,Ebenezer Residential Care Home,Supported Other Accommodation - Private Contractors Payment,424,0,VENDOR
03-01-2022,Adults & Health,Tender Heart Supported Accommodation,Supported Other Accommodation - Private Contractors Payment,477,0,VENDOR
03-01-2022,Adults & Health,Tender Heart Supported Accommodation,Supported Other Accommodation - Private Contractors Payment,286.2,0,VENDOR
03-01-2022,Adults & Health,Saffron Care Homes,Supported Other Accommodation - Private Contractors Payment,689,0,VENDOR
03-01-2022,Adults & Health,Leyton House Community Care Ltd,Supported Other Accommodation - Private Contractors Payment,689,0,COMMERCIAL SUPPLIER
03-01-2022,Adults & Health,Orchid Lodge Ltd,Supported Other Accommodation - Private Contractors Payment,477,0,VENDOR
03-01-2022,Adults & Health,Ebenezer Residential Care Home,Supported Other Accommodation - Private Contractors Payment,424,0,VENDOR
03-01-2022,Adults & Health,Orchid Lodge Ltd,Supported Other Accommodation - Private Contractors Payment,477,0,VENDOR
03-01-2022,Adults & Health,Ebenezer Residential Care Home,Supported Other Accommodation - Private Contractors Payment,673.1,0,VENDOR
03-01-2022,Adults & Health,Tender Heart Supported Accommodation,Supported Other Accommodation - Private Contractors Payment,424,0,VENDOR
03-01-2022,Adults & Health,Tender Heart Supported Accommodation,Supported Other Accommodation - Private Contractors Payment,286.2,0,VENDOR
03-01-2022,Adults & Health,Tender Heart Supported Accommodation,Supported Other Accommodation - Private Contractors Payment,477,0,VENDOR
03-01-2022,Adults & Health,L & Q Living,Supported Other Accommodation - Private Contractors Payment,1471.39,0,VENDOR
03-01-2022,Adults & Health,Saffron Care Homes,Supported Other Accommodation - Private Contractors Payment,689,0,VENDOR
03-01-2022,Adults & Health,Saffron Care Homes,Supported Other Accommodation - Private Contractors Payment,1172.43,0,VENDOR
03-01-2022,Adults & Health,Leyton House Community Care Ltd,Supported Other Accommodation - Private Contractors Payment,689,0,COMMERCIAL SUPPLIER
03-01-2022,Adults & Health,Orchid Lodge Ltd,Supported Other Accommodation - Private Contractors Payment,477,0,VENDOR
03-01-2022,Adults & Health,Ebenezer Residential Care Home,Supported Other Accommodation - Private Contractors Payment,673.1,0,VENDOR
03-01-2022,Adults & Health,Orchid Lodge Ltd,Supported Other Accommodation - Private Contractors Payment,477,0,VENDOR
03-01-2022,Adults & Health,Tender Heart Supported Accommodation,Supported Other Accommodation - Private Contractors Payment,477,0,VENDOR
03-01-2022,Adults & Health,Tender Heart Supported Accommodation,Supported Other Accommodation - Private Contractors Payment,424,0,VENDOR
03-01-2022,Adults & Health,L & Q Living,Supported Other Accommodation - Private Contractors Payment,1471.39,0,VENDOR
03-01-2022,Adults & Health,Saffron Care Homes,Supported Other Accommodation - Private Contractors Payment,1172.43,0,VENDOR
03-01-2022,Adults & Health,Saffron Care Homes,Supported Other Accommodation - Private Contractors Payment,689,0,VENDOR
03-01-2022,Adults & Health,Orchid Lodge Ltd,Supported Other Accommodation - Private Contractors Payment,477,0,VENDOR
03-01-2022,Adults & Health,Ebenezer Residential Care Home,Supported Other Accommodation - Private Contractors Payment,424,0,VENDOR
03-01-2022,Adults & Health,Orchid Lodge Ltd,Supported Other Accommodation - Private Contractors Payment,477,0,VENDOR
03-01-2022,Adults & Health,Tender Heart Supported Accommodation,Supported Other Accommodation - Private Contractors Payment,286.2,0,VENDOR
03-01-2022,Adults & Health,Tender Heart Supported Accommodation,Supported Other Accommodation - Private Contractors Payment,424,0,VENDOR
03-01-2022,Adults & Health,L & Q Living,Supported Other Accommodation - Private Contractors Payment,1471.39,0,VENDOR
03-01-2022,Adults & Health,Saffron Care Homes,Supported Other Accommodation - Private Contractors Payment,689,0,VENDOR
03-01-2022,Adults & Health,Saffron Care Homes,Supported Other Accommodation - Private Contractors Payment,1172.43,0,VENDOR
03-01-2022,Adults & Health,Leyton House Community Care Ltd,Supported Other Accommodation - Private Contractors Payment,689,0,COMMERCIAL SUPPLIER
03-01-2022,Adults & Health,Ebenezer Residential Care Home,Supported Other Accommodation - Private Contractors Payment,424,0,VENDOR
03-01-2022,Adults & Health,Orchid Lodge Ltd,Supported Other Accommodation - Private Contractors Payment,477,0,VENDOR
03-01-2022,Adults & Health,Ebenezer Residential Care Home,Supported Other Accommodation - Private Contractors Payment,673.1,0,VENDOR
03-01-2022,Adults & Health,Tender Heart Supported Accommodation,Supported Other Accommodation - Private Contractors Payment,477,0,VENDOR
03-01-2022,Adults & Health,Independant Community Support T/A Heaton Lodge,Supported Other Accommodation - Private Contractors Payment,583,0,NON COMMERCIAL SUPPLIER
03-01-2022,Adults & Health,Tender Heart Supported Accommodation,Supported Other Accommodation - Private Contractors Payment,599.96,0,VENDOR
03-01-2022,Adults & Health,Tender Heart Supported Accommodation,Supported Other Accommodation - Private Contractors Payment,372.06,0,VENDOR
03-01-2022,Adults & Health,Tender Heart Supported Accommodation,Supported Other Accommodation - Private Contractors Payment,610.56,0,VENDOR
03-01-2022,Adults & Health,Tender Heart Supported Accommodation,Supported Other Accommodation - Private Contractors Payment,610.56,0,VENDOR
03-01-2022,Adults & Health,Tender Heart Supported Accommodation,Supported Other Accommodation - Private Contractors Payment,286.2,0,VENDOR
03-01-2022,Adults & Health,Tender Heart Supported Accommodation,Supported Other Accommodation - Private Contractors Payment,419.76,0,VENDOR
03-01-2022,Adults & Health,Tender Heart Supported Accommodation,Supported Other Accommodation - Private Contractors Payment,610.56,0,VENDOR
03-01-2022,Adults & Health,Independant Community Support T/A Heaton Lodge,Supported Other Accommodation - Private Contractors Payment,583,0,NON COMMERCIAL SUPPLIER
03-01-2022,Adults & Health,Tender Heart Supported Accommodation,Supported Other Accommodation - Private Contractors Payment,286.2,0,VENDOR
03-01-2022,Adults & Health,Tender Heart Supported Accommodation,Supported Other Accommodation - Private Contractors Payment,419.76,0,VENDOR
03-01-2022,Adults & Health,Tender Heart Supported Accommodation,Supported Other Accommodation - Private Contractors Payment,599.96,0,VENDOR
03-01-2022,Adults & Health,Tender Heart Supported Accommodation,Supported Other Accommodation - Private Contractors Payment,372.06,0,VENDOR
03-01-2022,Adults & Health,Tender Heart Supported Accommodation,Supported Other Accommodation - Private Contractors Payment,419.76,0,VENDOR
03-01-2022,Adults & Health,Independant Community Support T/A Heaton Lodge,Supported Other Accommodation - Private Contractors Payment,583,0,NON COMMERCIAL SUPPLIER
03-01-2022,Adults & Health,Tender Heart Supported Accommodation,Supported Other Accommodation - Private Contractors Payment,599.96,0,VENDOR
03-01-2022,Adults & Health,Tender Heart Supported Accommodation,Supported Other Accommodation - Private Contractors Payment,372.06,0,VENDOR
03-01-2022,Adults & Health,Tender Heart Supported Accommodation,Supported Other Accommodation - Private Contractors Payment,610.56,0,VENDOR
03-01-2022,Adults & Health,Tender Heart Supported Accommodation,Supported Other Accommodation - Private Contractors Payment,286.2,0,VENDOR
03-01-2022,Adults & Health,Tender Heart Supported Accommodation,Supported Other Accommodation - Private Contractors Payment,372.06,0,VENDOR
03-01-2022,Adults & Health,Independant Community Support T/A Heaton Lodge,Supported Other Accommodation - Private Contractors Payment,583,0,NON COMMERCIAL SUPPLIER
03-01-2022,Adults & Health,Tender Heart Supported Accommodation,Supported Other Accommodation - Private Contractors Payment,286.2,0,VENDOR
03-01-2022,Adults & Health,Tender Heart Supported Accommodation,Supported Other Accommodation - Private Contractors Payment,419.76,0,VENDOR
03-01-2022,Adults & Health,Tender Heart Supported Accommodation,Supported Other Accommodation - Private Contractors Payment,599.96,0,VENDOR
03-01-2022,Adults & Health,Kalsi Care,Supported Other Accommodation - Private Contractors Payment,583,0,VENDOR
03-01-2022,Adults & Health,Kalsi Care,Supported Other Accommodation - Private Contractors Payment,583,0,VENDOR
03-01-2022,Adults & Health,Kalsi Care,Supported Other Accommodation - Private Contractors Payment,583,0,VENDOR
03-01-2022,Adults & Health,Kalsi Care,Supported Other Accommodation - Private Contractors Payment,583,0,VENDOR
03-01-2022,Adults & Health,Premier Care Contracts,Supported Other Accommodation - Private Contractors Payment,530,0,VENDOR
03-01-2022,Adults & Health,Premier Care Contracts,Supported Other Accommodation - Private Contractors Payment,530,0,VENDOR
03-01-2022,Adults & Health,Premier Care Contracts,Supported Other Accommodation - Private Contractors Payment,530,0,VENDOR
03-01-2022,Adults & Health,Premier Care Contracts,Supported Other Accommodation - Private Contractors Payment,530,0,VENDOR
03-01-2022,Adults & Health,Premier Care Contracts,Supported Other Accommodation - Private Contractors Payment,530,0,VENDOR
03-01-2022,Adults & Health,Premier Care Contracts,Supported Other Accommodation - Private Contractors Payment,477,0,VENDOR
03-01-2022,Adults & Health,Premier Care Contracts,Supported Other Accommodation - Private Contractors Payment,477,0,VENDOR
03-01-2022,Adults & Health,Premier Care Contracts,Supported Other Accommodation - Private Contractors Payment,530,0,VENDOR
03-01-2022,Adults & Health,Premier Care Contracts,Supported Other Accommodation - Private Contractors Payment,477,0,VENDOR
03-01-2022,Adults & Health,Premier Care Contracts,Supported Other Accommodation - Private Contractors Payment,530,0,VENDOR
03-01-2022,Adults & Health,Premier Care Contracts,Supported Other Accommodation - Private Contractors Payment,530,0,VENDOR
03-01-2022,Adults & Health,Premier Care Contracts,Supported Other Accommodation - Private Contractors Payment,477,0,VENDOR
03-01-2022,Adults & Health,Premier Care Contracts,Supported Other Accommodation - Private Contractors Payment,530,0,VENDOR
03-01-2022,Adults & Health,Premier Care Contracts,Supported Other Accommodation - Private Contractors Payment,530,0,VENDOR
03-01-2022,Adults & Health,Premier Care Contracts,Supported Other Accommodation - Private Contractors Payment,530,0,VENDOR
03-01-2022,Adults & Health,Premier Care Contracts,Supported Other Accommodation - Private Contractors Payment,530,0,VENDOR
03-01-2022,Adults & Health,Fari Care,Supported Other Accommodation - Private Contractors Payment,1590,0,COMMERCIAL SUPPLIER
03-01-2022,Adults & Health,S & E Housing,Supported Other Accommodation - Private Contractors Payment,583,0,VENDOR
03-01-2022,Adults & Health,L & Q Living,Supported Other Accommodation - Private Contractors Payment,3798.88,0,VENDOR
03-01-2022,Adults & Health,Normanshire Care Services,Supported Other Accommodation - Private Contractors Payment,4028,0,COMMERCIAL SUPPLIER
03-01-2022,Adults & Health,Fern Leaf Care Limited,Supported Other Accommodation - Private Contractors Payment,901,0,COMMERCIAL SUPPLIER
03-01-2022,Adults & Health,Leyton House Community Care Ltd,Supported Other Accommodation - Private Contractors Payment,954,0,COMMERCIAL SUPPLIER
03-01-2022,Adults & Health,S & E Housing,Supported Other Accommodation - Private Contractors Payment,583,0,VENDOR
03-01-2022,Adults & Health,Normanshire Care Services,Supported Other Accommodation - Private Contractors Payment,2509.55,0,COMMERCIAL SUPPLIER
03-01-2022,Adults & Health,Leyton House Community Care Ltd,Supported Other Accommodation - Private Contractors Payment,954,0,COMMERCIAL SUPPLIER
03-01-2022,Adults & Health,Oaklodge Supporting Living Ltd,Supported Other Accommodation - Private Contractors Payment,848,0,VENDOR
03-01-2022,Adults & Health,Leyton House Community Care Ltd,Supported Other Accommodation - Private Contractors Payment,954,0,COMMERCIAL SUPPLIER
03-01-2022,Adults & Health,Leyton House Community Care Ltd,Supported Other Accommodation - Private Contractors Payment,954,0,COMMERCIAL SUPPLIER
03-01-2022,Adults & Health,Kalsi Care,Supported Other Accommodation - Private Contractors Payment,477,0,VENDOR
03-01-2022,Adults & Health,Hilton Supported Living,Supported Other Accommodation - Private Contractors Payment,874.5,0,COMMERCIAL SUPPLIER
03-01-2022,Adults & Health,Three Cs,Supported Other Accommodation - Private Contractors Payment,954.24,0,VENDOR
03-01-2022,Adults & Health,Care London Ltd,Supported Other Accommodation - Private Contractors Payment,689,0,VENDOR
03-01-2022,Adults & Health,Kalsi Care,Supported Other Accommodation - Private Contractors Payment,636,0,VENDOR
03-01-2022,Adults & Health,Hilton Supported Living,Supported Other Accommodation - Private Contractors Payment,848,0,COMMERCIAL SUPPLIER
03-01-2022,Adults & Health,Three Cs,Supported Other Accommodation - Private Contractors Payment,954.24,0,VENDOR
03-01-2022,Adults & Health,Care London Ltd,Supported Other Accommodation - Private Contractors Payment,689,0,VENDOR
03-01-2022,Adults & Health,Angel Support Living Ltd,Supported Other Accommodation - Private Contractors Payment,890.4,0,NON COMMERCIAL SUPPLIER
03-01-2022,Adults & Health,Kalsi Care,Supported Other Accommodation - Private Contractors Payment,689,0,VENDOR
03-01-2022,Adults & Health,Tender Heart Supported Accommodation,Supported Other Accommodation - Private Contractors Payment,530,0,VENDOR
03-01-2022,Adults & Health,Leyton House Community Care Ltd,Supported Other Accommodation - Private Contractors Payment,689,0,COMMERCIAL SUPPLIER
03-01-2022,Adults & Health,Kalsi Care,Supported Other Accommodation - Private Contractors Payment,657.2,0,VENDOR
03-01-2022,Adults & Health,Leyton House Community Care Ltd,Supported Other Accommodation - Private Contractors Payment,689,0,COMMERCIAL SUPPLIER
03-01-2022,Adults & Health,Fari Care,Supported Other Accommodation - Private Contractors Payment,1590,0,COMMERCIAL SUPPLIER
03-01-2022,Adults & Health,Leyton House Community Care Ltd,Supported Other Accommodation - Private Contractors Payment,689,0,COMMERCIAL SUPPLIER
03-01-2022,Adults & Health,S & E Housing,Supported Other Accommodation - Private Contractors Payment,583,0,VENDOR
03-01-2022,Adults & Health,Outward Housing,Supported Other Accommodation - Private Contractors Payment,777.75,0,VENDOR
03-01-2022,Adults & Health,Normanshire Care Services,Supported Other Accommodation - Private Contractors Payment,4028,0,COMMERCIAL SUPPLIER
03-01-2022,Adults & Health,S & E Housing,Supported Other Accommodation - Private Contractors Payment,689,0,VENDOR
03-01-2022,Adults & Health,Outward Housing,Supported Other Accommodation - Private Contractors Payment,777.75,0,VENDOR
03-01-2022,Adults & Health,Normanshire Care Services,Supported Other Accommodation - Private Contractors Payment,2509.55,0,COMMERCIAL SUPPLIER
03-01-2022,Adults & Health,Leyton House Community Care Ltd,Supported Other Accommodation - Private Contractors Payment,689,0,COMMERCIAL SUPPLIER
03-01-2022,Adults & Health,S & E Housing,Supported Other Accommodation - Private Contractors Payment,583,0,VENDOR
03-01-2022,Adults & Health,Oaklodge Supporting Living Ltd,Supported Other Accommodation - Private Contractors Payment,901,0,VENDOR
03-01-2022,Adults & Health,Outward Housing,Supported Other Accommodation - Private Contractors Payment,777.75,0,VENDOR
03-01-2022,Adults & Health,Fern Leaf Care Limited,Supported Other Accommodation - Private Contractors Payment,901,0,COMMERCIAL SUPPLIER
03-01-2022,Adults & Health,Leyton House Community Care Ltd,Supported Other Accommodation - Private Contractors Payment,689,0,COMMERCIAL SUPPLIER
03-01-2022,Adults & Health,Outward Housing,Supported Other Accommodation - Private Contractors Payment,777.75,0,VENDOR
03-01-2022,Adults & Health,Leyton House Community Care Ltd,Supported Other Accommodation - Private Contractors Payment,689,0,COMMERCIAL SUPPLIER
03-01-2022,Adults & Health,Kalsi Care,Supported Other Accommodation - Private Contractors Payment,530,0,VENDOR
03-01-2022,Adults & Health,Hilton Supported Living,Supported Other Accommodation - Private Contractors Payment,848,0,COMMERCIAL SUPPLIER
03-01-2022,Adults & Health,Three Cs,Supported Other Accommodation - Private Contractors Payment,954.24,0,VENDOR
03-01-2022,Adults & Health,Leyton House Community Care Ltd,Supported Other Accommodation - Private Contractors Payment,689,0,COMMERCIAL SUPPLIER
03-01-2022,Adults & Health,Kalsi Care,Supported Other Accommodation - Private Contractors Payment,530,0,VENDOR
03-01-2022,Adults & Health,Hilton Supported Living,Supported Other Accommodation - Private Contractors Payment,689,0,COMMERCIAL SUPPLIER
03-01-2022,Adults & Health,Three Cs,Supported Other Accommodation - Private Contractors Payment,954.24,0,VENDOR
03-01-2022,Adults & Health,Care London Ltd,Supported Other Accommodation - Private Contractors Payment,689,0,VENDOR
03-01-2022,Adults & Health,Kalsi Care,Supported Other Accommodation - Private Contractors Payment,477,0,VENDOR
03-01-2022,Adults & Health,Hilton Supported Living,Supported Other Accommodation - Private Contractors Payment,874.5,0,COMMERCIAL SUPPLIER
03-01-2022,Adults & Health,Three Cs,Supported Other Accommodation - Private Contractors Payment,954.24,0,VENDOR
03-01-2022,Adults & Health,Care London Ltd,Supported Other Accommodation - Private Contractors Payment,689,0,VENDOR
03-01-2022,Adults & Health,Angel Support Living Ltd,Supported Other Accommodation - Private Contractors Payment,890.4,0,NON COMMERCIAL SUPPLIER
03-01-2022,Adults & Health,Kalsi Care,Supported Other Accommodation - Private Contractors Payment,636,0,VENDOR
03-01-2022,Adults & Health,Tender Heart Supported Accommodation,Supported Other Accommodation - Private Contractors Payment,530,0,VENDOR
03-01-2022,Adults & Health,Leyton House Community Care Ltd,Supported Other Accommodation - Private Contractors Payment,689,0,COMMERCIAL SUPPLIER
03-01-2022,Adults & Health,Kalsi Care,Supported Other Accommodation - Private Contractors Payment,689,0,VENDOR
03-01-2022,Adults & Health,Care London Ltd,Supported Other Accommodation - Private Contractors Payment,689,0,VENDOR
03-01-2022,Adults & Health,Leyton House Community Care Ltd,Supported Other Accommodation - Private Contractors Payment,689,0,COMMERCIAL SUPPLIER
03-01-2022,Adults & Health,S & E Housing,Supported Other Accommodation - Private Contractors Payment,583,0,VENDOR
03-01-2022,Adults & Health,Outward Housing,Supported Other Accommodation - Private Contractors Payment,1540.32,0,VENDOR
03-01-2022,Adults & Health,L & Q Living,Supported Other Accommodation - Private Contractors Payment,3798.88,0,VENDOR
03-01-2022,Adults & Health,Normanshire Care Services,Supported Other Accommodation - Private Contractors Payment,2509.55,0,COMMERCIAL SUPPLIER
03-01-2022,Adults & Health,S & E Housing,Supported Other Accommodation - Private Contractors Payment,583,0,VENDOR
03-01-2022,Adults & Health,Outward Housing,Supported Other Accommodation - Private Contractors Payment,1540.32,0,VENDOR
03-01-2022,Adults & Health,Fern Leaf Care Limited,Supported Other Accommodation - Private Contractors Payment,901,0,COMMERCIAL SUPPLIER
03-01-2022,Adults & Health,Leyton House Community Care Ltd,Supported Other Accommodation - Private Contractors Payment,689,0,COMMERCIAL SUPPLIER
03-01-2022,Adults & Health,S & E Housing,Supported Other Accommodation - Private Contractors Payment,689,0,VENDOR
03-01-2022,Adults & Health,Oaklodge Supporting Living Ltd,Supported Other Accommodation - Private Contractors Payment,848,0,VENDOR
03-01-2022,Adults & Health,Outward Housing,Supported Other Accommodation - Private Contractors Payment,1540.32,0,VENDOR
03-01-2022,Adults & Health,Leyton House Community Care Ltd,Supported Other Accommodation - Private Contractors Payment,689,0,COMMERCIAL SUPPLIER
03-01-2022,Adults & Health,Oaklodge Supporting Living Ltd,Supported Other Accommodation - Private Contractors Payment,901,0,VENDOR
03-01-2022,Adults & Health,Three Cs,Supported Other Accommodation - Private Contractors Payment,954.24,0,VENDOR
03-01-2022,Adults & Health,Leyton House Community Care Ltd,Supported Other Accommodation - Private Contractors Payment,689,0,COMMERCIAL SUPPLIER
03-01-2022,Adults & Health,Kalsi Care,Supported Other Accommodation - Private Contractors Payment,657.2,0,VENDOR
03-01-2022,Adults & Health,Hilton Supported Living,Supported Other Accommodation - Private Contractors Payment,874.5,0,COMMERCIAL SUPPLIER
03-01-2022,Adults & Health,Three Cs,Supported Other Accommodation - Private Contractors Payment,954.24,0,VENDOR
03-01-2022,Adults & Health,Leyton House Community Care Ltd,Supported Other Accommodation - Private Contractors Payment,689,0,COMMERCIAL SUPPLIER
03-01-2022,Adults & Health,Kalsi Care,Supported Other Accommodation - Private Contractors Payment,530,0,VENDOR
03-01-2022,Adults & Health,Orchid Lodge Ltd,Supported Other Accommodation - Private Contractors Payment,424,0,VENDOR
03-01-2022,Adults & Health,Leyton House Community Care Ltd,Supported Other Accommodation - Private Contractors Payment,689,0,COMMERCIAL SUPPLIER
03-01-2022,Adults & Health,Leyton House Community Care Ltd,Supported Other Accommodation - Private Contractors Payment,689,0,COMMERCIAL SUPPLIER
03-01-2022,Adults & Health,Leyton House Community Care Ltd,Supported Other Accommodation - Private Contractors Payment,689,0,COMMERCIAL SUPPLIER
03-01-2022,Adults & Health,Leyton House Community Care Ltd,Supported Other Accommodation - Private Contractors Payment,689,0,COMMERCIAL SUPPLIER
03-01-2022,Adults & Health,Orchid Lodge Ltd,Supported Other Accommodation - Private Contractors Payment,424,0,VENDOR
03-01-2022,Adults & Health,Leyton House Community Care Ltd,Supported Other Accommodation - Private Contractors Payment,689,0,COMMERCIAL SUPPLIER
03-01-2022,Adults & Health,Leyton House Community Care Ltd,Supported Other Accommodation - Private Contractors Payment,689,0,COMMERCIAL SUPPLIER
03-01-2022,Adults & Health,Leyton House Community Care Ltd,Supported Other Accommodation - Private Contractors Payment,689,0,COMMERCIAL SUPPLIER
03-01-2022,Adults & Health,Leyton House Community Care Ltd,Supported Other Accommodation - Private Contractors Payment,689,0,COMMERCIAL SUPPLIER
03-01-2022,Adults & Health,Orchid Lodge Ltd,Supported Other Accommodation - Private Contractors Payment,424,0,VENDOR
03-01-2022,Adults & Health,Leyton House Community Care Ltd,Supported Other Accommodation - Private Contractors Payment,689,0,COMMERCIAL SUPPLIER
03-01-2022,Adults & Health,Leyton House Community Care Ltd,Supported Other Accommodation - Private Contractors Payment,689,0,COMMERCIAL SUPPLIER
03-01-2022,Adults & Health,Leyton House Community Care Ltd,Supported Other Accommodation - Private Contractors Payment,689,0,COMMERCIAL SUPPLIER
03-01-2022,Adults & Health,Leyton House Community Care Ltd,Supported Other Accommodation - Private Contractors Payment,689,0,COMMERCIAL SUPPLIER
03-01-2022,Adults & Health,Leyton House Community Care Ltd,Supported Other Accommodation - Private Contractors Payment,689,0,COMMERCIAL SUPPLIER
03-01-2022,Adults & Health,Leyton House Community Care Ltd,Supported Other Accommodation - Private Contractors Payment,689,0,COMMERCIAL SUPPLIER
03-01-2022,Adults & Health,Orchid Lodge Ltd,Supported Other Accommodation - Private Contractors Payment,424,0,VENDOR
03-01-2022,Adults & Health,Leyton House Community Care Ltd,Supported Other Accommodation - Private Contractors Payment,689,0,COMMERCIAL SUPPLIER
03-01-2022,Adults & Health,Leyton House Community Care Ltd,Supported Other Accommodation - Private Contractors Payment,689,0,COMMERCIAL SUPPLIER
03-01-2022,Adults & Health,Liberty Centre Ltd,Supported Other Accommodation - Private Contractors Payment,2862,0,COMMERCIAL SUPPLIER
03-01-2022,Adults & Health,Voyage 1 Ltd,Supported Other Accommodation - Private Contractors Payment,1046.49,0,COMMERCIAL SUPPLIER
03-01-2022,Adults & Health,First Care Lodge Ltd,Supported Other Accommodation - Private Contractors Payment,503.5,0,COMMERCIAL SUPPLIER
03-01-2022,Adults & Health,L & Q Living,Supported Other Accommodation - Private Contractors Payment,2616.08,0,VENDOR
03-01-2022,Adults & Health,Affinia Health Care,Supported Other Accommodation - Private Contractors Payment,545.9,0,VENDOR
03-01-2022,Adults & Health,Phoenix Homes Uk Ltd,Supported Other Accommodation - Private Contractors Payment,742,0,VENDOR
03-01-2022,Adults & Health,Inclusive Care Support Ltd,Supported Other Accommodation - Private Contractors Payment,1885.15,0,COMMERCIAL SUPPLIER
03-01-2022,Adults & Health,Fern Leaf Care Limited,Supported Other Accommodation - Private Contractors Payment,901,0,COMMERCIAL SUPPLIER
03-01-2022,Adults & Health,Ashcroft Care Services,Supported Other Accommodation - Private Contractors Payment,1284.46,0,COMMERCIAL SUPPLIER
03-01-2022,Adults & Health,Havilah Prospects Ltd,Supported Other Accommodation - Private Contractors Payment,811.78,0,COMMERCIAL SUPPLIER
03-01-2022,Adults & Health,S & E Housing,Supported Other Accommodation - Private Contractors Payment,662.5,0,VENDOR
03-01-2022,Adults & Health,Springfield Supported Services Limited,Supported Other Accommodation - Private Contractors Payment,1838.25,0,COMMERCIAL SUPPLIER
03-01-2022,Adults & Health,Liberty Centre Ltd,Supported Other Accommodation - Private Contractors Payment,2862,0,COMMERCIAL SUPPLIER
03-01-2022,Adults & Health,Voyage 1 Ltd,Supported Other Accommodation - Private Contractors Payment,1046.49,0,COMMERCIAL SUPPLIER
03-01-2022,Adults & Health,First Care Lodge Ltd,Supported Other Accommodation - Private Contractors Payment,503.5,0,COMMERCIAL SUPPLIER
03-01-2022,Adults & Health,L & Q Living,Supported Other Accommodation - Private Contractors Payment,2616.08,0,VENDOR
03-01-2022,Adults & Health,Affinia Health Care,Supported Other Accommodation - Private Contractors Payment,545.9,0,VENDOR
03-01-2022,Adults & Health,Phoenix Homes Uk Ltd,Supported Other Accommodation - Private Contractors Payment,742,0,VENDOR
03-01-2022,Adults & Health,Fern Leaf Care Limited,Supported Other Accommodation - Private Contractors Payment,901,0,COMMERCIAL SUPPLIER
03-01-2022,Adults & Health,Ashcroft Care Services,Supported Other Accommodation - Private Contractors Payment,1284.46,0,COMMERCIAL SUPPLIER
03-01-2022,Adults & Health,Havilah Prospects Ltd,Supported Other Accommodation - Private Contractors Payment,811.78,0,COMMERCIAL SUPPLIER
03-01-2022,Adults & Health,Springfield Supported Services Limited,Supported Other Accommodation - Private Contractors Payment,1838.25,0,COMMERCIAL SUPPLIER
03-01-2022,Adults & Health,Care London Ltd,Supported Other Accommodation - Private Contractors Payment,689,0,VENDOR
03-01-2022,Adults & Health,Liberty Centre Ltd,Supported Other Accommodation - Private Contractors Payment,2686.93,0,COMMERCIAL SUPPLIER
03-01-2022,Adults & Health,Voyage 1 Ltd,Supported Other Accommodation - Private Contractors Payment,1046.49,0,COMMERCIAL SUPPLIER
03-01-2022,Adults & Health,First Care Lodge Ltd,Supported Other Accommodation - Private Contractors Payment,503.5,0,COMMERCIAL SUPPLIER
03-01-2022,Adults & Health,Affinia Health Care,Supported Other Accommodation - Private Contractors Payment,545.9,0,VENDOR
03-01-2022,Adults & Health,Phoenix Homes Uk Ltd,Supported Other Accommodation - Private Contractors Payment,742,0,VENDOR
03-01-2022,Adults & Health,Inclusive Care Support Ltd,Supported Other Accommodation - Private Contractors Payment,1885.15,0,COMMERCIAL SUPPLIER
03-01-2022,Adults & Health,Havilah Prospects Ltd,Supported Other Accommodation - Private Contractors Payment,811.78,0,COMMERCIAL SUPPLIER
03-01-2022,Adults & Health,S & E Housing,Supported Other Accommodation - Private Contractors Payment,662.5,0,VENDOR
03-01-2022,Adults & Health,L & Q Living,Supported Other Accommodation - Private Contractors Payment,2616.08,0,VENDOR
03-01-2022,Adults & Health,Care London Ltd,Supported Other Accommodation - Private Contractors Payment,689,0,VENDOR
03-01-2022,Adults & Health,Liberty Centre Ltd,Supported Other Accommodation - Private Contractors Payment,2686.93,0,COMMERCIAL SUPPLIER
03-01-2022,Adults & Health,Liberty Centre Ltd,Supported Other Accommodation - Private Contractors Payment,2862,0,COMMERCIAL SUPPLIER
03-01-2022,Adults & Health,First Care Lodge Ltd,Supported Other Accommodation - Private Contractors Payment,503.5,0,COMMERCIAL SUPPLIER
03-01-2022,Adults & Health,Affinia Health Care,Supported Other Accommodation - Private Contractors Payment,545.9,0,VENDOR
03-01-2022,Adults & Health,Inclusive Care Support Ltd,Supported Other Accommodation - Private Contractors Payment,1885.15,0,COMMERCIAL SUPPLIER
03-01-2022,Adults & Health,Fern Leaf Care Limited,Supported Other Accommodation - Private Contractors Payment,901,0,COMMERCIAL SUPPLIER
03-01-2022,Adults & Health,Ashcroft Care Services,Supported Other Accommodation - Private Contractors Payment,1284.46,0,COMMERCIAL SUPPLIER
03-01-2022,Adults & Health,Voyage 1 Ltd,Supported Other Accommodation - Private Contractors Payment,1046.49,0,COMMERCIAL SUPPLIER
03-01-2022,Adults & Health,S & E Housing,Supported Other Accommodation - Private Contractors Payment,662.5,0,VENDOR
03-01-2022,Adults & Health,Springfield Supported Services Limited,Supported Other Accommodation - Private Contractors Payment,1838.25,0,COMMERCIAL SUPPLIER
03-01-2022,Adults & Health,Care London Ltd,Supported Other Accommodation - Private Contractors Payment,689,0,VENDOR
03-01-2022,Adults & Health,Liberty Centre Ltd,Supported Other Accommodation - Private Contractors Payment,2862,0,COMMERCIAL SUPPLIER
03-01-2022,Adults & Health,L & Q Living,Supported Other Accommodation - Private Contractors Payment,2616.08,0,VENDOR
03-01-2022,Adults & Health,Liberty Centre Ltd,Supported Other Accommodation - Private Contractors Payment,2686.93,0,COMMERCIAL SUPPLIER
03-01-2022,Adults & Health,Phoenix Homes Uk Ltd,Supported Other Accommodation - Private Contractors Payment,742,0,VENDOR
03-01-2022,Adults & Health,Inclusive Care Support Ltd,Supported Other Accommodation - Private Contractors Payment,1885.15,0,COMMERCIAL SUPPLIER
03-01-2022,Adults & Health,Fern Leaf Care Limited,Supported Other Accommodation - Private Contractors Payment,901,0,COMMERCIAL SUPPLIER
03-01-2022,Adults & Health,Ashcroft Care Services,Supported Other Accommodation - Private Contractors Payment,1284.46,0,COMMERCIAL SUPPLIER
03-01-2022,Adults & Health,Havilah Prospects Ltd,Supported Other Accommodation - Private Contractors Payment,811.78,0,COMMERCIAL SUPPLIER
03-01-2022,Adults & Health,Springfield Supported Services Limited,Supported Other Accommodation - Private Contractors Payment,1838.25,0,COMMERCIAL SUPPLIER
03-01-2022,Adults & Health,S & E Housing,Supported Other Accommodation - Private Contractors Payment,662.5,0,VENDOR
03-01-2022,Adults & Health,Care London Ltd,Supported Other Accommodation - Private Contractors Payment,689,0,VENDOR
03-01-2022,Adults & Health,Liberty Centre Ltd,Supported Other Accommodation - Private Contractors Payment,2686.93,0,COMMERCIAL SUPPLIER
03-01-2022,Adults & Health,Hilton Supported Living,Supported Other Accommodation - Private Contractors Payment,848,0,COMMERCIAL SUPPLIER
03-01-2022,Adults & Health,Three Cs,Supported Other Accommodation - Private Contractors Payment,954.24,0,VENDOR
03-01-2022,Adults & Health,Care London Ltd,Supported Other Accommodation - Private Contractors Payment,689,0,VENDOR
03-01-2022,Adults & Health,Kalsi Care,Supported Other Accommodation - Private Contractors Payment,530,0,VENDOR
03-01-2022,Adults & Health,Hilton Supported Living,Supported Other Accommodation - Private Contractors Payment,689,0,COMMERCIAL SUPPLIER
03-01-2022,Adults & Health,Angel Support Living Ltd,Supported Other Accommodation - Private Contractors Payment,890.4,0,NON COMMERCIAL SUPPLIER
03-01-2022,Adults & Health,Kalsi Care,Supported Other Accommodation - Private Contractors Payment,477,0,VENDOR
03-01-2022,Adults & Health,Kalsi Care,Supported Other Accommodation - Private Contractors Payment,636,0,VENDOR
03-01-2022,Adults & Health,Care London Ltd,Supported Other Accommodation - Private Contractors Payment,689,0,VENDOR
03-01-2022,Adults & Health,Leyton House Community Care Ltd,Supported Other Accommodation - Private Contractors Payment,689,0,COMMERCIAL SUPPLIER
03-01-2022,Adults & Health,Outward Housing,Supported Other Accommodation - Private Contractors Payment,1540.32,0,VENDOR
03-01-2022,Adults & Health,Fari Care,Supported Other Accommodation - Private Contractors Payment,1590,0,COMMERCIAL SUPPLIER
03-01-2022,Adults & Health,Leyton House Community Care Ltd,Supported Other Accommodation - Private Contractors Payment,689,0,COMMERCIAL SUPPLIER
03-01-2022,Adults & Health,S & E Housing,Supported Other Accommodation - Private Contractors Payment,689,0,VENDOR
03-01-2022,Adults & Health,Outward Housing,Supported Other Accommodation - Private Contractors Payment,1657.95,0,VENDOR
03-01-2022,Adults & Health,L & Q Living,Supported Other Accommodation - Private Contractors Payment,3798.88,0,VENDOR
03-01-2022,Adults & Health,S & E Housing,Supported Other Accommodation - Private Contractors Payment,583,0,VENDOR
03-01-2022,Adults & Health,Oaklodge Supporting Living Ltd,Supported Other Accommodation - Private Contractors Payment,901,0,VENDOR
03-01-2022,Adults & Health,Outward Housing,Supported Other Accommodation - Private Contractors Payment,1657.95,0,VENDOR
03-01-2022,Adults & Health,Leyton House Community Care Ltd,Supported Other Accommodation - Private Contractors Payment,689,0,COMMERCIAL SUPPLIER
03-01-2022,Adults & Health,Outward Housing,Supported Other Accommodation - Private Contractors Payment,1657.95,0,VENDOR
03-01-2022,Adults & Health,Normanshire Care Services,Supported Other Accommodation - Private Contractors Payment,4028,0,COMMERCIAL SUPPLIER
03-01-2022,Adults & Health,Leyton House Community Care Ltd,Supported Other Accommodation - Private Contractors Payment,689,0,COMMERCIAL SUPPLIER
03-01-2022,Adults & Health,Oaklodge Supporting Living Ltd,Supported Other Accommodation - Private Contractors Payment,848,0,VENDOR
03-01-2022,Adults & Health,Three Cs,Supported Other Accommodation - Private Contractors Payment,954.24,0,VENDOR
03-01-2022,Adults & Health,Leyton House Community Care Ltd,Supported Other Accommodation - Private Contractors Payment,689,0,COMMERCIAL SUPPLIER
03-01-2022,Adults & Health,Kalsi Care,Supported Other Accommodation - Private Contractors Payment,689,0,VENDOR
03-01-2022,Adults & Health,Hilton Supported Living,Supported Other Accommodation - Private Contractors Payment,689,0,COMMERCIAL SUPPLIER
03-01-2022,Adults & Health,Three Cs,Supported Other Accommodation - Private Contractors Payment,954.24,0,VENDOR
03-01-2022,Adults & Health,Leyton House Community Care Ltd,Supported Other Accommodation - Private Contractors Payment,689,0,COMMERCIAL SUPPLIER
03-01-2022,Adults & Health,Kalsi Care,Supported Other Accommodation - Private Contractors Payment,657.2,0,VENDOR
03-01-2022,Adults & Health,Hilton Supported Living,Supported Other Accommodation - Private Contractors Payment,874.5,0,COMMERCIAL SUPPLIER
03-01-2022,Adults & Health,Care London Ltd,Supported Other Accommodation - Private Contractors Payment,689,0,VENDOR
03-01-2022,Adults & Health,Kalsi Care,Supported Other Accommodation - Private Contractors Payment,530,0,VENDOR
03-01-2022,Adults & Health,Tender Heart Supported Accommodation,Supported Other Accommodation - Private Contractors Payment,530,0,VENDOR
03-01-2022,Adults & Health,Angel Support Living Ltd,Supported Other Accommodation - Private Contractors Payment,890.4,0,NON COMMERCIAL SUPPLIER
03-01-2022,Adults & Health,Kalsi Care,Supported Other Accommodation - Private Contractors Payment,530,0,VENDOR
03-01-2022,Adults & Health,Leyton House Community Care Ltd,Supported Other Accommodation - Private Contractors Payment,689,0,COMMERCIAL SUPPLIER
03-01-2022,Adults & Health,Kalsi Care,Supported Other Accommodation - Private Contractors Payment,477,0,VENDOR
03-01-2022,Adults & Health,Care London Ltd,Supported Other Accommodation - Private Contractors Payment,689,0,VENDOR
03-01-2022,Adults & Health,Leyton House Community Care Ltd,Supported Other Accommodation - Private Contractors Payment,689,0,COMMERCIAL SUPPLIER
03-01-2022,Adults & Health,Outward Housing,Supported Other Accommodation - Private Contractors Payment,1657.95,0,VENDOR
03-01-2022,Adults & Health,Fari Care,Supported Other Accommodation - Private Contractors Payment,1590,0,COMMERCIAL SUPPLIER
03-01-2022,Adults & Health,S & E Housing,Supported Other Accommodation - Private Contractors Payment,583,0,VENDOR
03-01-2022,Adults & Health,L & Q Living,Supported Other Accommodation - Private Contractors Payment,3798.88,0,VENDOR
03-01-2022,Adults & Health,Leyton House Community Care Ltd,Supported Other Accommodation - Private Contractors Payment,689,0,COMMERCIAL SUPPLIER
03-01-2022,Adults & Health,S & E Housing,Supported Other Accommodation - Private Contractors Payment,689,0,VENDOR
03-01-2022,Adults & Health,Oaklodge Supporting Living Ltd,Supported Other Accommodation - Private Contractors Payment,848,0,VENDOR
03-01-2022,Adults & Health,Normanshire Care Services,Supported Other Accommodation - Private Contractors Payment,4028,0,COMMERCIAL SUPPLIER
03-01-2022,Adults & Health,Fern Leaf Care Limited,Supported Other Accommodation - Private Contractors Payment,901,0,COMMERCIAL SUPPLIER
03-01-2022,Adults & Health,Leyton House Community Care Ltd,Supported Other Accommodation - Private Contractors Payment,689,0,COMMERCIAL SUPPLIER
03-01-2022,Adults & Health,Oaklodge Supporting Living Ltd,Supported Other Accommodation - Private Contractors Payment,901,0,VENDOR
03-01-2022,Adults & Health,Normanshire Care Services,Supported Other Accommodation - Private Contractors Payment,2509.55,0,COMMERCIAL SUPPLIER
03-01-2022,Adults & Health,Leyton House Community Care Ltd,Supported Other Accommodation - Private Contractors Payment,689,0,COMMERCIAL SUPPLIER
03-01-2022,Adults & Health,Three Cs,Supported Other Accommodation - Private Contractors Payment,954.24,0,VENDOR
03-01-2022,Adults & Health,Leyton House Community Care Ltd,Supported Other Accommodation - Private Contractors Payment,689,0,COMMERCIAL SUPPLIER
03-01-2022,Adults & Health,Kalsi Care,Supported Other Accommodation - Private Contractors Payment,636,0,VENDOR
03-01-2022,Adults & Health,Hilton Supported Living,Supported Other Accommodation - Private Contractors Payment,848,0,COMMERCIAL SUPPLIER
03-01-2022,Adults & Health,Care London Ltd,Supported Other Accommodation - Private Contractors Payment,689,0,VENDOR
03-01-2022,Adults & Health,Kalsi Care,Supported Other Accommodation - Private Contractors Payment,689,0,VENDOR
03-01-2022,Adults & Health,Hilton Supported Living,Supported Other Accommodation - Private Contractors Payment,689,0,COMMERCIAL SUPPLIER
03-01-2022,Adults & Health,Three Cs,Supported Other Accommodation - Private Contractors Payment,954.24,0,VENDOR
03-01-2022,Adults & Health,Care London Ltd,Supported Other Accommodation - Private Contractors Payment,689,0,VENDOR
03-01-2022,Adults & Health,Kalsi Care,Supported Other Accommodation - Private Contractors Payment,657.2,0,VENDOR
03-01-2022,Adults & Health,Tender Heart Supported Accommodation,Supported Other Accommodation - Private Contractors Payment,530,0,VENDOR
03-01-2022,Adults & Health,Leyton House Community Care Ltd,Supported Other Accommodation - Private Contractors Payment,689,0,COMMERCIAL SUPPLIER
03-01-2022,Adults & Health,Kalsi Care,Supported Other Accommodation - Private Contractors Payment,530,0,VENDOR
03-01-2022,Adults & Health,Leyton House Community Care Ltd,Supported Other Accommodation - Private Contractors Payment,689,0,COMMERCIAL SUPPLIER
03-01-2022,Adults & Health,Kalsi Care,Supported Other Accommodation - Private Contractors Payment,530,0,VENDOR
03-01-2022,Adults & Health,Care London Ltd,Supported Other Accommodation - Private Contractors Payment,689,0,VENDOR
03-01-2022,Adults & Health,Leyton House Community Care Ltd,Supported Other Accommodation - Private Contractors Payment,689,0,COMMERCIAL SUPPLIER
03-01-2022,Adults & Health,Inclusive Care Support Ltd,Supported Other Accommodation - Private Contractors Payment,1495.6,0,COMMERCIAL SUPPLIER
03-01-2022,Adults & Health,Inclusive Care Support Ltd,Supported Other Accommodation - Private Contractors Payment,1040.39,0,COMMERCIAL SUPPLIER
03-01-2022,Adults & Health,Maison Moti Ltd,Supported Other Accommodation - Private Contractors Payment,593.6,0,COMMERCIAL SUPPLIER
03-01-2022,Adults & Health,Endsleigh House,Supported Other Accommodation - Private Contractors Payment,636,0,COMMERCIAL SUPPLIER
03-01-2022,Adults & Health,Liberty Centre Ltd,Supported Other Accommodation - Private Contractors Payment,1146.92,0,COMMERCIAL SUPPLIER
03-01-2022,Adults & Health,Ambient Support Ltd,Supported Other Accommodation - Private Contractors Payment,897.82,0,VENDOR
03-01-2022,Adults & Health,Inclusive Care Support Ltd,Supported Other Accommodation - Private Contractors Payment,1040.39,0,COMMERCIAL SUPPLIER
03-01-2022,Adults & Health,Inclusive Care Support Ltd,Supported Other Accommodation - Private Contractors Payment,1495.6,0,COMMERCIAL SUPPLIER
03-01-2022,Adults & Health,Step Ahead Care Services Ltd,Supported Other Accommodation - Private Contractors Payment,1007,0,COMMERCIAL SUPPLIER
03-01-2022,Adults & Health,Maison Moti Ltd,Supported Other Accommodation - Private Contractors Payment,593.6,0,COMMERCIAL SUPPLIER
03-01-2022,Adults & Health,Liberty Centre Ltd,Supported Other Accommodation - Private Contractors Payment,1146.92,0,COMMERCIAL SUPPLIER
03-01-2022,Adults & Health,Ambient Support Ltd,Supported Other Accommodation - Private Contractors Payment,897.82,0,VENDOR
03-01-2022,Adults & Health,Inclusive Care Support Ltd,Supported Other Accommodation - Private Contractors Payment,1495.6,0,COMMERCIAL SUPPLIER
03-01-2022,Adults & Health,Inclusive Care Support Ltd,Supported Other Accommodation - Private Contractors Payment,1040.39,0,COMMERCIAL SUPPLIER
03-01-2022,Adults & Health,Maison Moti Ltd,Supported Other Accommodation - Private Contractors Payment,593.6,0,COMMERCIAL SUPPLIER
03-01-2022,Adults & Health,Endsleigh House,Supported Other Accommodation - Private Contractors Payment,636,0,COMMERCIAL SUPPLIER
03-01-2022,Adults & Health,Liberty Centre Ltd,Supported Other Accommodation - Private Contractors Payment,1146.92,0,COMMERCIAL SUPPLIER
03-01-2022,Adults & Health,Step Ahead Care Services Ltd,Supported Other Accommodation - Private Contractors Payment,1007,0,COMMERCIAL SUPPLIER
03-01-2022,Adults & Health,Ambient Support Ltd,Supported Other Accommodation - Private Contractors Payment,897.82,0,VENDOR
03-01-2022,Adults & Health,Inclusive Care Support Ltd,Supported Other Accommodation - Private Contractors Payment,1495.6,0,COMMERCIAL SUPPLIER
03-01-2022,Adults & Health,Step Ahead Care Services Ltd,Supported Other Accommodation - Private Contractors Payment,1007,0,COMMERCIAL SUPPLIER
03-01-2022,Adults & Health,Endsleigh House,Supported Other Accommodation - Private Contractors Payment,636,0,COMMERCIAL SUPPLIER
03-01-2022,Adults & Health,Liberty Centre Ltd,Supported Other Accommodation - Private Contractors Payment,1146.92,0,COMMERCIAL SUPPLIER
03-01-2022,Adults & Health,Ambient Support Ltd,Supported Other Accommodation - Private Contractors Payment,897.82,0,VENDOR
03-01-2022,Adults & Health,Inclusive Care Support Ltd,Supported Other Accommodation - Private Contractors Payment,1040.39,0,COMMERCIAL SUPPLIER
03-01-2022,Adults & Health,Endsleigh House,Supported Other Accommodation - Private Contractors Payment,636,0,COMMERCIAL SUPPLIER
03-01-2022,Adults & Health,Step Ahead Care Services Ltd,Supported Other Accommodation - Private Contractors Payment,1007,0,COMMERCIAL SUPPLIER
03-01-2022,Adults & Health,Maison Moti Ltd,Supported Other Accommodation - Private Contractors Payment,593.6,0,COMMERCIAL SUPPLIER
03-01-2022,Adults & Health,Ebenezer Residential Care Home,Supported Other Accommodation - Private Contractors Payment,820,0,VENDOR
03-01-2022,Adults & Health,Ebenezer Residential Care Home,Supported Other Accommodation - Private Contractors Payment,820,0,VENDOR
03-01-2022,Adults & Health,Ebenezer Residential Care Home,Supported Other Accommodation - Private Contractors Payment,820,0,VENDOR
03-01-2022,Adults & Health,Ebenezer Residential Care Home,Supported Other Accommodation - Private Contractors Payment,820,0,VENDOR
03-01-2022,Adults & Health,Platform Support Services,Supported Other Accommodation - Private Contractors Payment,689,0,COMMERCIAL SUPPLIER
03-01-2022,Adults & Health,Platform Support Services,Supported Other Accommodation - Private Contractors Payment,689,0,COMMERCIAL SUPPLIER
03-01-2022,Adults & Health,Platform Support Services,Supported Other Accommodation - Private Contractors Payment,689,0,COMMERCIAL SUPPLIER
03-01-2022,Adults & Health,Platform Support Services,Supported Other Accommodation - Private Contractors Payment,689,0,COMMERCIAL SUPPLIER
03-01-2022,Adults & Health,Folkestone Nursing Home,Residential Placements - Private Contractors Payment,569.89,0,VENDOR
03-01-2022,Adults & Health,Folkestone Nursing Home,Residential Placements - Private Contractors Payment,569.89,0,VENDOR
03-01-2022,Adults & Health,Folkestone Nursing Home,Residential Placements - Private Contractors Payment,569.89,0,VENDOR
03-01-2022,Adults & Health,Folkestone Nursing Home,Residential Placements - Private Contractors Payment,569.89,0,VENDOR
03-01-2022,Adults & Health,Oakwood Lodge,Residential Placements - Private Contractors Payment,1122,0,VENDOR
03-01-2022,Adults & Health,Rosewood Lodge,Residential Placements - Private Contractors Payment,586.14,0,VENDOR
03-01-2022,Adults & Health,Oakwood Lodge,Residential Placements - Private Contractors Payment,1122,0,VENDOR
03-01-2022,Adults & Health,Rosewood Lodge,Residential Placements - Private Contractors Payment,586.14,0,VENDOR
03-01-2022,Adults & Health,Oakwood Lodge,Residential Placements - Private Contractors Payment,1122,0,VENDOR
03-01-2022,Adults & Health,Rosewood Lodge,Residential Placements - Private Contractors Payment,586.14,0,VENDOR
03-01-2022,Adults & Health,Oakwood Lodge,Residential Placements - Private Contractors Payment,1122,0,VENDOR
03-01-2022,Adults & Health,Rosewood Lodge,Residential Placements - Private Contractors Payment,586.14,0,VENDOR
03-01-2022,Adults & Health,Bondcare(London)Springfield Main,Residential Placements - Private Contractors Payment,632,0,COMMERCIAL SUPPLIER
03-01-2022,Adults & Health,Bondcare(London)Springfield Main,Residential Care Income,-105.75,0,COMMERCIAL SUPPLIER
03-01-2022,Adults & Health,Bondcare(London)Springfield Main,Residential Placements - Private Contractors Payment,632,0,COMMERCIAL SUPPLIER
03-01-2022,Adults & Health,Bondcare(London)Springfield Main,Residential Care Income,-105.75,0,COMMERCIAL SUPPLIER
03-01-2022,Adults & Health,Bondcare(London)Springfield Main,Residential Care Income,-105.75,0,COMMERCIAL SUPPLIER
03-01-2022,Adults & Health,Bondcare(London)Springfield Main,Residential Placements - Private Contractors Payment,632,0,COMMERCIAL SUPPLIER
03-01-2022,Adults & Health,Bondcare(London)Springfield Main,Residential Placements - Private Contractors Payment,632,0,COMMERCIAL SUPPLIER
03-01-2022,Adults & Health,Bondcare(London)Springfield Main,Residential Care Income,-105.75,0,COMMERCIAL SUPPLIER
03-01-2022,Adults & Health,Kalsi Care,Supported Other Accommodation - Private Contractors Payment,600,0,VENDOR
03-01-2022,Adults & Health,Kalsi Care,Supported Other Accommodation - Private Contractors Payment,600,0,VENDOR
03-01-2022,Adults & Health,Kalsi Care,Supported Other Accommodation - Private Contractors Payment,600,0,VENDOR
03-01-2022,Adults & Health,Kalsi Care,Supported Other Accommodation - Private Contractors Payment,600,0,VENDOR
03-01-2022,Adults & Health,Leyton House Community Care Ltd,Supported Other Accommodation - Private Contractors Payment,650,0,COMMERCIAL SUPPLIER
03-01-2022,Adults & Health,Leyton House Community Care Ltd,Supported Other Accommodation - Private Contractors Payment,650,0,COMMERCIAL SUPPLIER
03-01-2022,Adults & Health,Leyton House Community Care Ltd,Supported Other Accommodation - Private Contractors Payment,650,0,COMMERCIAL SUPPLIER
03-01-2022,Adults & Health,Leyton House Community Care Ltd,Supported Other Accommodation - Private Contractors Payment,650,0,COMMERCIAL SUPPLIER
03-01-2022,Adults & Health,Chosen Care Group Ltd,Home Care - Private Contractors Payment,438.7,0,VENDOR
03-01-2022,Adults & Health,Chosen Care Group Ltd,Home Care - Private Contractors Payment,438.7,0,VENDOR
03-01-2022,Adults & Health,Chosen Care Group Ltd,Home Care - Private Contractors Payment,438.7,0,VENDOR
03-01-2022,Adults & Health,Chosen Care Group Ltd,Home Care - Private Contractors Payment,438.7,0,VENDOR
03-01-2022,Adults & Health,Barchester Healthcare Homes Limited t/a Westgate House,Nursing Homes - Private Contractors Payment,719.08,0,NON COMMERCIAL SUPPLIER
03-01-2022,Adults & Health,Barchester Healthcare Homes Limited t/a Westgate House,Nursing Homes - Private Contractors Payment,719.08,0,NON COMMERCIAL SUPPLIER
03-01-2022,Adults & Health,Barchester Healthcare Homes Limited t/a Westgate House,Nursing Homes - Private Contractors Payment,719.08,0,NON COMMERCIAL SUPPLIER
03-01-2022,Adults & Health,Barchester Healthcare Homes Limited t/a Westgate House,Nursing Homes - Private Contractors Payment,719.08,0,NON COMMERCIAL SUPPLIER
03-01-2022,Adults & Health,Oaklodge Supporting Living Ltd,Supported Other Accommodation - Private Contractors Payment,983,0,VENDOR
03-01-2022,Adults & Health,Oaklodge Supporting Living Ltd,Supported Other Accommodation - Private Contractors Payment,983,0,VENDOR
03-01-2022,Adults & Health,Oaklodge Supporting Living Ltd,Supported Other Accommodation - Private Contractors Payment,983,0,VENDOR
03-01-2022,Adults & Health,Oaklodge Supporting Living Ltd,Supported Other Accommodation - Private Contractors Payment,983,0,VENDOR
03-01-2022,Adults & Health,HC-One,Residential Placements - Private Contractors Payment,632.98,0,COMMERCIAL SUPPLIER
03-01-2022,Adults & Health,HC-One,Residential Placements - Private Contractors Payment,632.98,0,COMMERCIAL SUPPLIER
03-01-2022,Adults & Health,HC-One,Residential Placements - Private Contractors Payment,632.98,0,COMMERCIAL SUPPLIER
03-01-2022,Adults & Health,HC-One,Residential Placements - Private Contractors Payment,632.98,0,COMMERCIAL SUPPLIER
03-01-2022,Adults & Health,Leyton House Community Care Ltd,Supported Other Accommodation - Private Contractors Payment,750,0,COMMERCIAL SUPPLIER
03-01-2022,Adults & Health,Leyton House Community Care Ltd,Supported Other Accommodation - Private Contractors Payment,750,0,COMMERCIAL SUPPLIER
03-01-2022,Adults & Health,Leyton House Community Care Ltd,Supported Other Accommodation - Private Contractors Payment,750,0,COMMERCIAL SUPPLIER
03-01-2022,Adults & Health,Leyton House Community Care Ltd,Supported Other Accommodation - Private Contractors Payment,750,0,COMMERCIAL SUPPLIER
03-01-2022,Adults & Health,Leyton House Community Care Ltd,Supported Other Accommodation - Private Contractors Payment,750,0,COMMERCIAL SUPPLIER
03-01-2022,Adults & Health,Leyton House Community Care Ltd,Supported Other Accommodation - Private Contractors Payment,750,0,COMMERCIAL SUPPLIER
03-01-2022,Adults & Health,Leyton House Community Care Ltd,Supported Other Accommodation - Private Contractors Payment,750,0,COMMERCIAL SUPPLIER
03-01-2022,Adults & Health,Leyton House Community Care Ltd,Supported Other Accommodation - Private Contractors Payment,750,0,COMMERCIAL SUPPLIER
03-01-2022,Adults & Health,L & Q Living,Residential Placements - Private Contractors Payment,1527.54,0,VENDOR
03-01-2022,Adults & Health,L & Q Living,Residential Placements - Private Contractors Payment,1527.54,0,VENDOR
03-01-2022,Adults & Health,L & Q Living,Residential Placements - Private Contractors Payment,1527.54,0,VENDOR
03-01-2022,Adults & Health,L & Q Living,Residential Placements - Private Contractors Payment,1527.54,0,VENDOR
03-01-2022,Adults & Health,Wortley Lodge,Residential Placements - Private Contractors Payment,860.04,0,VENDOR
03-01-2022,Adults & Health,Wortley Lodge,Residential Placements - Private Contractors Payment,860.04,0,VENDOR
03-01-2022,Adults & Health,Wortley Lodge,Residential Placements - Private Contractors Payment,860.04,0,VENDOR
03-01-2022,Adults & Health,Wortley Lodge,Residential Placements - Private Contractors Payment,860.04,0,VENDOR
03-01-2022,Adults & Health,Tender Heart Supported Accommodation,Supported Other Accommodation - Private Contractors Payment,350,0,VENDOR
03-01-2022,Adults & Health,Tender Heart Supported Accommodation,Supported Other Accommodation - Private Contractors Payment,350,0,VENDOR
03-01-2022,Adults & Health,Tender Heart Supported Accommodation,Supported Other Accommodation - Private Contractors Payment,350,0,VENDOR
03-01-2022,Adults & Health,Tender Heart Supported Accommodation,Supported Other Accommodation - Private Contractors Payment,350,0,VENDOR
03-01-2022,Adults & Health,Care London Ltd,Supported Other Accommodation - Private Contractors Payment,750,0,VENDOR
03-01-2022,Adults & Health,Oak Farm(Taverham)Ltd),Residential Placements - Private Contractors Payment,1119.27,0,NON COMMERCIAL SUPPLIER
03-01-2022,Adults & Health,Oak Farm(Taverham)Ltd),Residential Placements - Private Contractors Payment,1119.27,0,NON COMMERCIAL SUPPLIER
03-01-2022,Adults & Health,Care London Ltd,Supported Other Accommodation - Private Contractors Payment,750,0,VENDOR
03-01-2022,Adults & Health,Care London Ltd,Supported Other Accommodation - Private Contractors Payment,750,0,VENDOR
03-01-2022,Adults & Health,Oak Farm(Taverham)Ltd),Residential Placements - Private Contractors Payment,1119.27,0,NON COMMERCIAL SUPPLIER
03-01-2022,Adults & Health,Care London Ltd,Supported Other Accommodation - Private Contractors Payment,750,0,VENDOR
03-01-2022,Adults & Health,Oak Farm(Taverham)Ltd),Residential Placements - Private Contractors Payment,1119.27,0,NON COMMERCIAL SUPPLIER
03-01-2022,Adults & Health,Beechwood Residential Home,Residential Care Income,-84.9,0,VENDOR
03-01-2022,Adults & Health,Beechwood Residential Home,Residential Placements - Private Contractors Payment,1569.53,0,VENDOR
03-01-2022,Adults & Health,Beechwood Residential Home,Residential Care Income,-84.9,0,VENDOR
03-01-2022,Adults & Health,Beechwood Residential Home,Residential Placements - Private Contractors Payment,1569.53,0,VENDOR
03-01-2022,Adults & Health,Beechwood Residential Home,Residential Placements - Private Contractors Payment,1569.53,0,VENDOR
03-01-2022,Adults & Health,Beechwood Residential Home,Residential Care Income,-84.9,0,VENDOR
03-01-2022,Adults & Health,Beechwood Residential Home,Residential Placements - Private Contractors Payment,1569.53,0,VENDOR
03-01-2022,Adults & Health,Beechwood Residential Home,Residential Care Income,-84.9,0,VENDOR
03-01-2022,Adults & Health,Sahara Homes Ltd,Residential Care Income,-85.85,0,COMMERCIAL SUPPLIER
03-01-2022,Adults & Health,Sahara Homes Ltd,Residential Placements - Private Contractors Payment,1484,0,COMMERCIAL SUPPLIER
